Hi Eli,BODY NAME,SERVICE CODE,ORGANISATIONAL UNIT,ORGANISATIONAL UNIT CODE,EXPENDITURE CATEGORY,EXPENDITURE CODE,DATE (POSTING DATE),TRANSACTION NUMBER,AMOUNT,SUPPLIER NAME,SUPPLIER ID
WARRINGTON BOROUGH COUNCIL,http://opendatacommunities.org/id/unitary-authority/warrington,RSC,One - Off ICT Costs,23200,Computer Software - Maintenance,450850,03/08/2020,5100435795,1000,4net Technologies Ltd,116339
WARRINGTON BOROUGH COUNCIL,http://opendatacommunities.org/id/unitary-authority/warrington,FWB,Special Schools Transport,33208,Statemented - Special Unit Pupil Transpo,300750,06/08/2020,5100436229,1034.8,Abba Cars,105302
WARRINGTON BOROUGH COUNCIL,http://opendatacommunities.org/id/unitary-authority/warrington,FWB,Special Schools Transport,33208,Statemented - Special Unit Pupil Transpo,300750,19/08/2020,5100437354,647.4,Abba Cars,105302
WARRINGTON BOROUGH COUNCIL,http://opendatacommunities.org/id/unitary-authority/warrington,FWB,Special Schools Transport,33208,Statemented - Special Unit Pupil Transpo,300750,19/08/2020,5100437355,907.4,Abba Cars,105302
WARRINGTON BOROUGH COUNCIL,http://opendatacommunities.org/id/unitary-authority/warrington,FWB,Special Schools Transport,33208,Statemented - Special Unit Pupil Transpo,300750,19/08/2020,5100437356,883.05,Abba Cars,105302
WARRINGTON BOROUGH COUNCIL,http://opendatacommunities.org/id/unitary-authority/warrington,ENO,Housing Projects,82008,Minor Adaptations<750,400700,03/08/2020,5100435799,2785.68,Acorn Building Projects Ltd,105557
WARRINGTON BOROUGH COUNCIL,http://opendatacommunities.org/id/unitary-authority/warrington,ET0,Land Drainage,44120,Consult.& Prof. Serv,440000,07/08/2020,5100436339,6522,Aecom Limited,101037
WARRINGTON BOROUGH COUNCIL,http://opendatacommunities.org/id/unitary-authority/warrington,ET0,South Warington M'way Junction,40057,Consult.& Prof. Serv,440000,24/08/2020,5100436750,6500,Aecom Limited,101037
WARRINGTON BOROUGH COUNCIL,http://opendatacommunities.org/id/unitary-authority/warrington,ET0,Recreation & Games,41431,Materials,400500,05/08/2020,5100436138,2856,Agrovista Uk Ltd,101700
WARRINGTON BOROUGH COUNCIL,http://opendatacommunities.org/id/unitary-authority/warrington,FWB,BCF - Equipment Store,54930,Equipment Purchase & Contract,400000,03/08/2020,5100435803,1100,Aidapt Bathrooms Ltd,100366
WARRINGTON BOROUGH COUNCIL,http://opendatacommunities.org/id/unitary-authority/warrington,FWB,BCF - Equipment Store,54930,Equipment Purchase & Contract,400000,03/08/2020,5100435812,1200,Aidapt Bathrooms Ltd,100366
WARRINGTON BOROUGH COUNCIL,http://opendatacommunities.org/id/unitary-authority/warrington,ET0,Transport Holding Account,41311,Materials,400500,10/08/2020,5100436237,919.66,Air Products Plc,100173
WARRINGTON BOROUGH COUNCIL,http://opendatacommunities.org/id/unitary-authority/warrington,FWB,Special Schools Transport,33208,Statemented - Special Unit Pupil Transpo,300750,06/08/2020,5100436232,1290,Alan Delooze Premier Travel,100727
WARRINGTON BOROUGH COUNCIL,http://opendatacommunities.org/id/unitary-authority/warrington,RSC,Financial Protection Team,56130,Consult.& Prof. Serv,440000,14/07/2020,5100434267,794.13,Allied Publicity Services (Man) LTD,117019
WARRINGTON BOROUGH COUNCIL,http://opendatacommunities.org/id/unitary-authority/warrington,FWB,DSG Inter Authority Recoupment,32009,Fees (Including Agents Fees),441450,14/07/2020,5100434261,1663.9,Alt Bridge Secondary Support Centre,116942
WARRINGTON BOROUGH COUNCIL,http://opendatacommunities.org/id/unitary-authority/warrington,PIO,People & Improvement Other,85002,Lifts from Stock,400850,03/08/2020,5100435818,2460,AMW Lift & Mobility Services Ltd,112766
WARRINGTON BOROUGH COUNCIL,http://opendatacommunities.org/id/unitary-authority/warrington,FWB,Special Schools Transport,33208,Statemented - Special Unit Pupil Transpo,300750,04/08/2020,5100435937,4422,Andys Bus Company,100654
WARRINGTON BOROUGH COUNCIL,http://opendatacommunities.org/id/unitary-authority/warrington,FWB,Transport - Adult Social Care,54950,Transport-Snad Cot,300600,04/08/2020,5100435938,744,Andys Bus Company,100654
WARRINGTON BOROUGH COUNCIL,http://opendatacommunities.org/id/unitary-authority/warrington,FWB,Special Schools Transport,33208,Statemented - Special Unit Pupil Transpo,300750,04/08/2020,5100435939,2015,Andys Bus Company,100654
WARRINGTON BOROUGH COUNCIL,http://opendatacommunities.org/id/unitary-authority/warrington,ET0,PW&F Management Operations,41427,Kennel Fees,440550,03/08/2020,5100435820,520.3,Animal Wardens Ltd,103042
WARRINGTON BOROUGH COUNCIL,http://opendatacommunities.org/id/unitary-authority/warrington,HOL,Insurance Fund,91100,Insurance Premium,443350,29/07/2020,5100435557,4300.8,Aon Ltd,102117
WARRINGTON BOROUGH COUNCIL,http://opendatacommunities.org/id/unitary-authority/warrington,HOL,Insurance Fund,91100,Insurance Premium,443350,29/07/2020,5100435558,1680,Aon Ltd,102117
WARRINGTON BOROUGH COUNCIL,http://opendatacommunities.org/id/unitary-authority/warrington,HOL,Insurance Fund,91100,Insurance Premium,443350,29/07/2020,5100435559,1680,Aon Ltd,102117
WARRINGTON BOROUGH COUNCIL,http://opendatacommunities.org/id/unitary-authority/warrington,HOL,Insurance Fund,91100,Insurance Premium,443350,29/07/2020,5100435560,13919.36,Aon Ltd,102117
WARRINGTON BOROUGH COUNCIL,http://opendatacommunities.org/id/unitary-authority/warrington,HOL,Insurance Fund,91100,Insurance Premium,443350,29/07/2020,5100435561,8545.6,Aon Ltd,102117
WARRINGTON BOROUGH COUNCIL,http://opendatacommunities.org/id/unitary-authority/warrington,HOL,Insurance Fund,91100,Insurance Premium,443350,29/07/2020,5100435563,974.4,Aon Ltd,102117
WARRINGTON BOROUGH COUNCIL,http://opendatacommunities.org/id/unitary-authority/warrington,HOL,Insurance Fund,91100,Insurance Premium,443350,29/07/2020,5100435564,9731.68,Aon Ltd,102117
WARRINGTON BOROUGH COUNCIL,http://opendatacommunities.org/id/unitary-authority/warrington,HOL,Insurance Fund,91100,Insurance Premium,443350,29/07/2020,5100435566,13154.4,Aon Ltd,102117
WARRINGTON BOROUGH COUNCIL,http://opendatacommunities.org/id/unitary-authority/warrington,HOL,Insurance Fund,91100,Insurance Premium,443350,29/07/2020,5100435567,11054.4,Aon Ltd,102117
WARRINGTON BOROUGH COUNCIL,http://opendatacommunities.org/id/unitary-authority/warrington,HOL,Insurance Fund,91100,Insurance Premium,443350,29/07/2020,5100435568,19040,Aon Ltd,102117
WARRINGTON BOROUGH COUNCIL,http://opendatacommunities.org/id/unitary-authority/warrington,HOL,Insurance Fund,91100,Insurance Premium,443350,29/07/2020,5100435569,2340.81,Aon Ltd,102117
WARRINGTON BOROUGH COUNCIL,http://opendatacommunities.org/id/unitary-authority/warrington,HOL,Insurance Fund,91100,Insurance Premium,443350,04/08/2020,5100436047,44788.8,Aon Ltd,102117
WARRINGTON BOROUGH COUNCIL,http://opendatacommunities.org/id/unitary-authority/warrington,HOL,Insurance Fund,91100,Insurance Premium,443350,04/08/2020,5100436048,280000,Aon Ltd,102117
WARRINGTON BOROUGH COUNCIL,http://opendatacommunities.org/id/unitary-authority/warrington,HOL,Insurance Fund,91100,Insurance Premium,443350,04/08/2020,5100436060,150214.4,Aon Ltd,102117
WARRINGTON BOROUGH COUNCIL,http://opendatacommunities.org/id/unitary-authority/warrington,HOL,Insurance Fund,91100,Insurance Premium,443350,04/08/2020,5100436061,99137.95,Aon Ltd,102117
WARRINGTON BOROUGH COUNCIL,http://opendatacommunities.org/id/unitary-authority/warrington,HOL,Insurance Fund,91100,Insurance Premium,443350,07/08/2020,5100436322,64768.87,Aon Ltd,102117
WARRINGTON BOROUGH COUNCIL,http://opendatacommunities.org/id/unitary-authority/warrington,FWB,Care Purchase Budget,54490,Rent Of Premises,220000,25/08/2020,5100437796,661.28,Arena Housing,102199
WARRINGTON BOROUGH COUNCIL,http://opendatacommunities.org/id/unitary-authority/warrington,FWB,Care Purchase Budget,54490,Rent Of Premises,220000,25/08/2020,5100437797,661.28,Arena Housing,102199
WARRINGTON BOROUGH COUNCIL,http://opendatacommunities.org/id/unitary-authority/warrington,FWB,Supporting People Contracts,53260,Young People and/or Care Leavers,535150,31/07/2020,5100435697,17159.12,Arena Options,101746
WARRINGTON BOROUGH COUNCIL,http://opendatacommunities.org/id/unitary-authority/warrington,FWB,Supporting People Contracts,53260,Risk of Homelessness and Floating Suppor,535100,31/07/2020,5100435698,16666,Arena Options,101746
WARRINGTON BOROUGH COUNCIL,http://opendatacommunities.org/id/unitary-authority/warrington,FWB,Collaborative Training Group,33301,Training,190150,11/08/2020,5100436715,4000,Ariel Trust Limited,117557
WARRINGTON BOROUGH COUNCIL,http://opendatacommunities.org/id/unitary-authority/warrington,FWB,BCF - Intermediate Care at Home,54520,Car Leasing Charges,350000,03/08/2020,5100435822,1486.44,Arnold Clark Finance Ltd,103263
WARRINGTON BOROUGH COUNCIL,http://opendatacommunities.org/id/unitary-authority/warrington,FWB,Transport - Adult Social Care,54950,Transport-Snad Cot,300600,10/08/2020,5100436564,720,Arrivals Star,101879
WARRINGTON BOROUGH COUNCIL,http://opendatacommunities.org/id/unitary-authority/warrington,FWB,Special Schools Transport,33208,Statemented - Special Unit Pupil Transpo,300750,12/08/2020,5100436810,1575,Arrivals Star,101879
WARRINGTON BOROUGH COUNCIL,http://opendatacommunities.org/id/unitary-authority/warrington,FWB,Special Schools Transport,33208,Statemented - Special Unit Pupil Transpo,300750,12/08/2020,5100436811,2070,Arrivals Star,101879
WARRINGTON BOROUGH COUNCIL,http://opendatacommunities.org/id/unitary-authority/warrington,FWB,Special Schools Transport,33208,Statemented - Special Unit Pupil Transpo,300750,12/08/2020,5100436883,1088,Arrivals Star,101879
WARRINGTON BOROUGH COUNCIL,http://opendatacommunities.org/id/unitary-authority/warrington,FWB,Housing Strategy,43620,Employees - Covid 19,199919,21/07/2020,5100434913,506.4,Ashberry Recruitment Limited,117639
WARRINGTON BOROUGH COUNCIL,http://opendatacommunities.org/id/unitary-authority/warrington,ET0,South Warington M'way Junction,40057,Consult.& Prof. Serv,440000,17/08/2020,5100436519,5746,Atkins Ltd,105752
WARRINGTON BOROUGH COUNCIL,http://opendatacommunities.org/id/unitary-authority/warrington,ENO,Highways Other,82005,Consult.& Prof. Serv,440000,19/08/2020,5100437429,5399,Atkins Ltd,105752
WARRINGTON BOROUGH COUNCIL,http://opendatacommunities.org/id/unitary-authority/warrington,FWB,Transport - Adult Social Care,54950,Transport-Snad Cot,300600,12/08/2020,5100436809,672,Avatar Exectutive Travel,117555
WARRINGTON BOROUGH COUNCIL,http://opendatacommunities.org/id/unitary-authority/warrington,DG0,Fiddlers Ferry Marina,51001,Specific Work,200200,03/08/2020,5100435800,4000,B & K Landscapes,105448
WARRINGTON BOROUGH COUNCIL,http://opendatacommunities.org/id/unitary-authority/warrington,DG0,Former GGHT Garage Sites,41847,Maintenance Work - Sub Contractors,301150,03/08/2020,5100435825,700,B & K Landscapes,105448
WARRINGTON BOROUGH COUNCIL,http://opendatacommunities.org/id/unitary-authority/warrington,ET0,Transport Holding Account,41311,Vehicle Hire Charges,320000,17/08/2020,5100436240,980,B & T Skip Hire,100921
WARRINGTON BOROUGH COUNCIL,http://opendatacommunities.org/id/unitary-authority/warrington,ET0,Transport Holding Account,41311,Vehicle Hire Charges,320000,24/08/2020,5100436241,680,B & T Skip Hire,100921
WARRINGTON BOROUGH COUNCIL,http://opendatacommunities.org/id/unitary-authority/warrington,DG0,Site Management,43530,Maintenance Work - Sub Contractors,301150,24/08/2020,5100437696,2000,B & T Skip Hire,100921
WARRINGTON BOROUGH COUNCIL,http://opendatacommunities.org/id/unitary-authority/warrington,ET0,Building Control Services,43410,Consult.& Prof. Serv,440000,20/07/2020,5100434811,870,B E Building Service,114760
WARRINGTON BOROUGH COUNCIL,http://opendatacommunities.org/id/unitary-authority/warrington,NEO,Neighbourhood & Community Other,83002,Consult.& Prof. Serv,440000,14/08/2020,5100437112,2975,Baker Mallett LLP,116160
WARRINGTON BOROUGH COUNCIL,http://opendatacommunities.org/id/unitary-authority/warrington,NEO,Neighbourhood & Community Other,83002,Consult.& Prof. Serv,440000,14/08/2020,5100437120,2750,Baker Mallett LLP,116160
WARRINGTON BOROUGH COUNCIL,http://opendatacommunities.org/id/unitary-authority/warrington,ENO,Highways Other,82005,Environmental Works,531050,13/08/2020,5100436978,1413750,Balfour Beatty Civil Engineering Li,114442
WARRINGTON BOROUGH COUNCIL,http://opendatacommunities.org/id/unitary-authority/warrington,ENO,Priority Infrastructure,82009,Consult.& Prof. Serv,440000,13/08/2020,5100436979,74359.03,Balfour Beatty Civil Engineering Li,114442
WARRINGTON BOROUGH COUNCIL,http://opendatacommunities.org/id/unitary-authority/warrington,ENO,Priority Infrastructure,82009,Fct Repairs,532600,13/08/2020,5100436980,234543.85,Balfour Beatty Civil Engineering Li,114442
WARRINGTON BOROUGH COUNCIL,http://opendatacommunities.org/id/unitary-authority/warrington,PIO,People & Improvement Other,85002,Consult.& Prof. Serv,440000,24/08/2020,5100437671,1707.63,Bam Construction Ltd,105324
WARRINGTON BOROUGH COUNCIL,http://opendatacommunities.org/id/unitary-authority/warrington,FWB,BCF - Intermediate Care at Home,54520,Stationery,430150,21/08/2020,5100437561,1084,Banner Group Ltd,111644
WARRINGTON BOROUGH COUNCIL,http://opendatacommunities.org/id/unitary-authority/warrington,FWB,Leaving Care,31101,Looked after children in Warrington,301000,22/10/2019,5100408397,507.9,BedSpace,103530
WARRINGTON BOROUGH COUNCIL,http://opendatacommunities.org/id/unitary-authority/warrington,FWB,DSG Independent School Fees,32011,Fees (Including Agents Fees),441450,21/07/2020,5100434944,3453.75,Beech Hall School Limited,117355
WARRINGTON BOROUGH COUNCIL,http://opendatacommunities.org/id/unitary-authority/warrington,FWB,DSG Independent School Fees,32011,Fees (Including Agents Fees),441450,21/07/2020,5100434945,2943.5,Beech Hall School Limited,117355
WARRINGTON BOROUGH COUNCIL,http://opendatacommunities.org/id/unitary-authority/warrington,FWB,DSG Independent School Fees,32011,Fees (Including Agents Fees),441450,25/08/2020,5100437792,5921.42,Belmont School Limited,400047
WARRINGTON BOROUGH COUNCIL,http://opendatacommunities.org/id/unitary-authority/warrington,ET0,Transport Holding Account,41311,Accidental Damage - Sub Contractors,301200,05/05/2020,5100427865,655.06,Bentleys Motors Warrington Ltd,104511
WARRINGTON BOROUGH COUNCIL,http://opendatacommunities.org/id/unitary-authority/warrington,ENO,Environment & Regeneration Other,82002,Consult.& Prof. Serv,440000,16/07/2020,5100434506,650,Bob Costello Associates,115107
WARRINGTON BOROUGH COUNCIL,http://opendatacommunities.org/id/unitary-authority/warrington,ET0,Facilities Management,41422,Materials,400500,07/08/2020,5100436333,3010,Boss Stone Ltd,117671
WARRINGTON BOROUGH COUNCIL,http://opendatacommunities.org/id/unitary-authority/warrington,COR,Other Commercial Prop.,43560,Consult.& Prof. Serv,440000,03/08/2020,5100435828,520,Brabners LLP,117064
WARRINGTON BOROUGH COUNCIL,http://opendatacommunities.org/id/unitary-authority/warrington,COR,Other Commercial Prop.,43560,Consult.& Prof. Serv,440000,03/08/2020,5100435829,1000,Brabners LLP,117064
WARRINGTON BOROUGH COUNCIL,http://opendatacommunities.org/id/unitary-authority/warrington,COR,Other Commercial Prop.,43560,Consult.& Prof. Serv,440000,03/08/2020,5100435830,2000,Brabners LLP,117064
WARRINGTON BOROUGH COUNCIL,http://opendatacommunities.org/id/unitary-authority/warrington,COR,Other Commercial Prop.,43560,Consult.& Prof. Serv,440000,14/08/2020,5100437115,3477,Brabners LLP,117064
WARRINGTON BOROUGH COUNCIL,http://opendatacommunities.org/id/unitary-authority/warrington,COR,Hatters Row,43710,Consult.& Prof. Serv,440000,14/08/2020,5100437124,842,Brabners LLP,117064
WARRINGTON BOROUGH COUNCIL,http://opendatacommunities.org/id/unitary-authority/warrington,FWB,Contracts - SM Commissioning Team 1,55910,Public Health Contract Payments,540000,07/08/2020,5100436309,272166,Bridgewater Community Healthcare,108932
WARRINGTON BOROUGH COUNCIL,http://opendatacommunities.org/id/unitary-authority/warrington,FWB,DSG Independent School Fees,32011,Fees (Including Agents Fees),441450,27/07/2020,5100435353,82809.98,Bright Futures Care Ltd,114579
WARRINGTON BOROUGH COUNCIL,http://opendatacommunities.org/id/unitary-authority/warrington,FWB,DSG Independent School Fees,32011,Fees (Including Agents Fees),441450,21/08/2020,5100437519,75609.03,Bright Futures Care Ltd,114579
WARRINGTON BOROUGH COUNCIL,http://opendatacommunities.org/id/unitary-authority/warrington,FWB,Contracts - SM Commissioning Team 1,55910,Public Health Contract Payments,540000,21/07/2020,5100434965,1300,Brookfield Surgery,108155
WARRINGTON BOROUGH COUNCIL,http://opendatacommunities.org/id/unitary-authority/warrington,ET0,Crematorium,41411,Consult.& Prof. Serv,440000,03/08/2020,5100435831,1025,BSI - Management Systems,104551
WARRINGTON BOROUGH COUNCIL,http://opendatacommunities.org/id/unitary-authority/warrington,ET0,CCTV Operations exp,44380,Equipment Purchase & Contract,400000,07/08/2020,5100436329,29005.35,Bt Red Care,100411
WARRINGTON BOROUGH COUNCIL,http://opendatacommunities.org/id/unitary-authority/warrington,RSC,Democratic Services,11400,Security Systems,250000,07/08/2020,5100436330,7801.68,Bt Red Care,100411
WARRINGTON BOROUGH COUNCIL,http://opendatacommunities.org/id/unitary-authority/warrington,ET0,Urban Traffic Management Control,44370,Signal Equipment,531650,07/08/2020,5100436331,21601.81,Bt Red Care,100411
WARRINGTON BOROUGH COUNCIL,http://opendatacommunities.org/id/unitary-authority/warrington,FWB,BCF - Intermediate Care at Home,54520,Supplies & Services - Covid 19,499919,17/08/2020,5100437249,840,Bunzl Cleaning And Hygiene Supplies,104650
WARRINGTON BOROUGH COUNCIL,http://opendatacommunities.org/id/unitary-authority/warrington,FWB,DSG Sensory,32010,Fees (Including Agents Fees),441450,12/08/2020,5100436751,6000,Care 4 Children Residential Service,116771
WARRINGTON BOROUGH COUNCIL,http://opendatacommunities.org/id/unitary-authority/warrington,FWB,DSG Sensory,32010,Fees (Including Agents Fees),441450,12/08/2020,5100436752,7400,Care 4 Children Residential Service,116771
WARRINGTON BOROUGH COUNCIL,http://opendatacommunities.org/id/unitary-authority/warrington,FWB,DSG Sensory,32010,Fees (Including Agents Fees),441450,12/08/2020,5100436753,11800,Care 4 Children Residential Service,116771
WARRINGTON BOROUGH COUNCIL,http://opendatacommunities.org/id/unitary-authority/warrington,FWB,Supporting People Contracts,53260,People with Mental Health Problems,535200,02/08/2020,5100435753,2977.54,Carr Gomm,106573
WARRINGTON BOROUGH COUNCIL,http://opendatacommunities.org/id/unitary-authority/warrington,DG0,Employment Skills,22210,Supplies & Services - Covid 19,499919,07/08/2020,5100436312,2235,Castle Industrial Supplies Ltd,117634
WARRINGTON BOROUGH COUNCIL,http://opendatacommunities.org/id/unitary-authority/warrington,FWB,Contracts - SM Commissioning Team 1,55910,Public Health Contract Payments,540000,21/07/2020,5100435011,1824,Causeway Medical Centre,109278
WARRINGTON BOROUGH COUNCIL,http://opendatacommunities.org/id/unitary-authority/warrington,FWB,Contracts - SM Commissioning Team 1,55910,Public Health Contract Payments,540000,21/07/2020,5100435011,1283.85,Causeway Medical Centre,109278
WARRINGTON BOROUGH COUNCIL,http://opendatacommunities.org/id/unitary-authority/warrington,FWB,Contracts - SM Commissioning Team 1,55910,Public Health Contract Payments,540000,21/07/2020,5100435011,642,Causeway Medical Centre,109278
WARRINGTON BOROUGH COUNCIL,http://opendatacommunities.org/id/unitary-authority/warrington,FWB,Contracts - SM Commissioning Team 1,55910,Drug Action,443600,17/08/2020,5100436324,129229.58,CGL,440139
WARRINGTON BOROUGH COUNCIL,http://opendatacommunities.org/id/unitary-authority/warrington,FWB,Prison Substance Misuse Services,53840,Drug Action,443600,17/08/2020,5100436325,94806.67,CGL,440139
WARRINGTON BOROUGH COUNCIL,http://opendatacommunities.org/id/unitary-authority/warrington,ET0,Domestic (Drivers & Collectors),41840,Bulky Waste Collections,442600,17/08/2020,5100437068,9015,Changing Lives in Cheshire,111607
WARRINGTON BOROUGH COUNCIL,http://opendatacommunities.org/id/unitary-authority/warrington,FWB,Contracts - SM Commissioning Team 1,55910,Public Health Contract Payments,540000,16/07/2020,5100434615,680,Chapelford Medical Centre,117118
WARRINGTON BOROUGH COUNCIL,http://opendatacommunities.org/id/unitary-authority/warrington,RSC,ICT & Business Improvement,23020,Computer Hardware - Maintenance,450750,10/08/2020,5100436583,1693.25,Cheshire East Council,410116
WARRINGTON BOROUGH COUNCIL,http://opendatacommunities.org/id/unitary-authority/warrington,FWB,Appropriate Adults Project,33314,Consult.& Prof. Serv,440000,10/08/2020,5100436610,1414.43,Child Action North West,109412
WARRINGTON BOROUGH COUNCIL,http://opendatacommunities.org/id/unitary-authority/warrington,FWB,Public Health Licensing,41550,Training,190150,14/08/2020,5100437039,1600,Cieh,100887
WARRINGTON BOROUGH COUNCIL,http://opendatacommunities.org/id/unitary-authority/warrington,ET0,School Brow Depot,41330,Annual Maintenance,442100,04/08/2020,5100431533,615,Clean Waste Ltd,117684
WARRINGTON BOROUGH COUNCIL,http://opendatacommunities.org/id/unitary-authority/warrington,FWB,Housing Strategy,43620,Equipment Purchase & Contract,400000,07/08/2020,5100436351,2100,Complete Home Energy Systems,111861
WARRINGTON BOROUGH COUNCIL,http://opendatacommunities.org/id/unitary-authority/warrington,FWB,Housing Strategy,43620,Equipment Purchase & Contract,400000,07/08/2020,5100436352,1800,Complete Home Energy Systems,111861
WARRINGTON BOROUGH COUNCIL,http://opendatacommunities.org/id/unitary-authority/warrington,FWB,Housing Strategy,43620,Equipment Purchase & Contract,400000,10/08/2020,5100436472,1800,Complete Home Energy Systems,111861
WARRINGTON BOROUGH COUNCIL,http://opendatacommunities.org/id/unitary-authority/warrington,FWB,Housing Strategy,43620,Equipment Purchase & Contract,400000,10/08/2020,5100436473,1800,Complete Home Energy Systems,111861
WARRINGTON BOROUGH COUNCIL,http://opendatacommunities.org/id/unitary-authority/warrington,ET0,Paper Recycling (Drivers & Collectors),41842,Waste Initiatives,443200,24/08/2020,5100437686,11536.08,Contenur UK Ltd,117538
WARRINGTON BOROUGH COUNCIL,http://opendatacommunities.org/id/unitary-authority/warrington,COR,Markets,43711,Equipment Purchase & Contract,400000,14/07/2020,5100434334,1590,Contract Furniture Ltd,110861
WARRINGTON BOROUGH COUNCIL,http://opendatacommunities.org/id/unitary-authority/warrington,FWB,MH Outreach,54090,Rent Of Premises,220000,12/08/2020,5100426073,504,Culture Warrington,100957
WARRINGTON BOROUGH COUNCIL,http://opendatacommunities.org/id/unitary-authority/warrington,FWB,MH Outreach,54090,Rent Of Premises,220000,12/08/2020,5100426111,702,Culture Warrington,100957
WARRINGTON BOROUGH COUNCIL,http://opendatacommunities.org/id/unitary-authority/warrington,FWB,MH Outreach,54090,Rent Of Premises,220000,12/08/2020,5100426310,732,Culture Warrington,100957
WARRINGTON BOROUGH COUNCIL,http://opendatacommunities.org/id/unitary-authority/warrington,FWB,MH Outreach,54090,Rent Of Premises,220000,12/08/2020,5100426312,762,Culture Warrington,100957
WARRINGTON BOROUGH COUNCIL,http://opendatacommunities.org/id/unitary-authority/warrington,FWB,MH Outreach,54090,Rent Of Premises,220000,12/08/2020,5100426313,672,Culture Warrington,100957
WARRINGTON BOROUGH COUNCIL,http://opendatacommunities.org/id/unitary-authority/warrington,DG0,Project Delivery & Communications,43830,Consult.& Prof. Serv,440000,24/08/2020,5100437518,650,Cushman & Wakefield Debenham Tie Le,116480
WARRINGTON BOROUGH COUNCIL,http://opendatacommunities.org/id/unitary-authority/warrington,ENO,Housing Projects,82008,Building Work,200850,21/07/2020,5100434974,3380.73,D J Hughes Construction Ltd,103261
WARRINGTON BOROUGH COUNCIL,http://opendatacommunities.org/id/unitary-authority/warrington,FWB,Homelessness,43650,Emergency Accommodation Allowance,550500,27/07/2020,5100435357,540,DANL Limited,116459
WARRINGTON BOROUGH COUNCIL,http://opendatacommunities.org/id/unitary-authority/warrington,FWB,Temporary Accomodation,43652,Maintenance Work - Sub Contractors,301150,27/07/2020,5100435358,502,DANL Limited,116459
WARRINGTON BOROUGH COUNCIL,http://opendatacommunities.org/id/unitary-authority/warrington,FWB,Temporary Accomodation,43652,Maintenance Work - Sub Contractors,301150,27/07/2020,5100435362,680,DANL Limited,116459
WARRINGTON BOROUGH COUNCIL,http://opendatacommunities.org/id/unitary-authority/warrington,ET0,Crematorium,41411,Equipment Purchase & Contract,400000,04/08/2020,5100435898,2017.93,Dash Information Systems Ltd,113111
WARRINGTON BOROUGH COUNCIL,http://opendatacommunities.org/id/unitary-authority/warrington,ENO,Open Spaces,82006,Equipment Purchase & Contract,400000,22/07/2020,5100435089,3681,David Webster & Sons Ltd,102202
WARRINGTON BOROUGH COUNCIL,http://opendatacommunities.org/id/unitary-authority/warrington,ET0,Facilities Management,41422,Materials,400500,22/07/2020,5100435090,980,David Webster & Sons Ltd,102202
WARRINGTON BOROUGH COUNCIL,http://opendatacommunities.org/id/unitary-authority/warrington,ET0,Facilities Management,41422,Equipment Purchase & Contract,400000,22/07/2020,5100435092,7650,David Webster & Sons Ltd,102202
WARRINGTON BOROUGH COUNCIL,http://opendatacommunities.org/id/unitary-authority/warrington,NEO,IT Projects,83003,Computer Hardware - Purchase,450700,10/07/2020,5100433966,1799.6,Dell,104659
WARRINGTON BOROUGH COUNCIL,http://opendatacommunities.org/id/unitary-authority/warrington,NEO,IT Projects,83003,Computer Hardware - Purchase,450700,10/07/2020,5100433967,4499,Dell,104659
WARRINGTON BOROUGH COUNCIL,http://opendatacommunities.org/id/unitary-authority/warrington,NEO,IT Projects,83003,Computer Hardware - Purchase,450700,13/07/2020,5100434145,4499,Dell,104659
WARRINGTON BOROUGH COUNCIL,http://opendatacommunities.org/id/unitary-authority/warrington,NEO,IT Projects,83003,Computer Hardware - Purchase,450700,13/07/2020,5100434145,1136,Dell,104659
WARRINGTON BOROUGH COUNCIL,http://opendatacommunities.org/id/unitary-authority/warrington,NEO,IT Projects,83003,Computer Hardware - Purchase,450700,13/07/2020,5100434145,1098,Dell,104659
WARRINGTON BOROUGH COUNCIL,http://opendatacommunities.org/id/unitary-authority/warrington,ET0,Transport Holding Account,41311,Veh Maint. Materials,300000,18/08/2020,5100432831,772.42,Dennis Eagle Parts,104661
WARRINGTON BOROUGH COUNCIL,http://opendatacommunities.org/id/unitary-authority/warrington,FWB,Special Schools Transport,33208,Statemented - Special Unit Pupil Transpo,300750,04/08/2020,5100436049,2304,Diamond Travel,104665
WARRINGTON BOROUGH COUNCIL,http://opendatacommunities.org/id/unitary-authority/warrington,FWB,Special Schools Transport,33208,Statemented - Special Unit Pupil Transpo,300750,04/08/2020,5100436054,1984,Diamond Travel,104665
WARRINGTON BOROUGH COUNCIL,http://opendatacommunities.org/id/unitary-authority/warrington,FWB,Special Schools Transport,33208,Statemented - Special Unit Pupil Transpo,300750,06/08/2020,5100436224,1984,Diamond Travel,104665
WARRINGTON BOROUGH COUNCIL,http://opendatacommunities.org/id/unitary-authority/warrington,ET0,Vehicle & Plant Acq.,41312,Vehicle & Plant Purchase,301350,10/08/2020,5100436605,653.4,Dick Leigh Chainsaw Specialist,104876
WARRINGTON BOROUGH COUNCIL,http://opendatacommunities.org/id/unitary-authority/warrington,ET0,Vehicle & Plant Acq.,41312,Vehicle & Plant Purchase,301350,10/08/2020,5100436605,806.4,Dick Leigh Chainsaw Specialist,104876
WARRINGTON BOROUGH COUNCIL,http://opendatacommunities.org/id/unitary-authority/warrington,FWB,Special Schools Transport,33208,Statemented - Special Unit Pupil Transpo,300750,06/08/2020,5100436236,1394,Direct Taxis,101873
WARRINGTON BOROUGH COUNCIL,http://opendatacommunities.org/id/unitary-authority/warrington,FWB,Special Schools Transport,33208,Statemented - Special Unit Pupil Transpo,300750,11/08/2020,5100436664,1496,Direct Taxis,101873
WARRINGTON BOROUGH COUNCIL,http://opendatacommunities.org/id/unitary-authority/warrington,FWB,Special Schools Transport,33208,Statemented - Special Unit Pupil Transpo,300750,11/08/2020,5100436665,1937,Direct Taxis,101873
WARRINGTON BOROUGH COUNCIL,http://opendatacommunities.org/id/unitary-authority/warrington,FWB,Special Schools Transport,33208,Statemented - Special Unit Pupil Transpo,300750,11/08/2020,5100436667,1650,Direct Taxis,101873
WARRINGTON BOROUGH COUNCIL,http://opendatacommunities.org/id/unitary-authority/warrington,FWB,Special Schools Transport,33208,Statemented - Special Unit Pupil Transpo,300750,11/08/2020,5100436671,2006,Direct Taxis,101873
WARRINGTON BOROUGH COUNCIL,http://opendatacommunities.org/id/unitary-authority/warrington,FWB,Transport - Adult Social Care,54950,Transport-Snad Cot,300600,11/08/2020,5100436672,1610,Direct Taxis,101873
WARRINGTON BOROUGH COUNCIL,http://opendatacommunities.org/id/unitary-authority/warrington,FWB,Special Schools Transport,33208,Statemented - Special Unit Pupil Transpo,300750,11/08/2020,5100436673,1890,Direct Taxis,101873
WARRINGTON BOROUGH COUNCIL,http://opendatacommunities.org/id/unitary-authority/warrington,FWB,Special Schools Transport,33208,Statemented - Special Unit Pupil Transpo,300750,11/08/2020,5100436675,2560,Direct Taxis,101873
WARRINGTON BOROUGH COUNCIL,http://opendatacommunities.org/id/unitary-authority/warrington,FWB,Transport - Adult Social Care,54950,Transport-Snad Cot,300600,11/08/2020,5100436678,2944,Direct Taxis,101873
WARRINGTON BOROUGH COUNCIL,http://opendatacommunities.org/id/unitary-authority/warrington,FWB,Special Schools Transport,33208,Statemented - Special Unit Pupil Transpo,300750,11/08/2020,5100436681,1690,Direct Taxis,101873
WARRINGTON BOROUGH COUNCIL,http://opendatacommunities.org/id/unitary-authority/warrington,FWB,Special Schools Transport,33208,Statemented - Special Unit Pupil Transpo,300750,11/08/2020,5100436684,1408,Direct Taxis,101873
WARRINGTON BOROUGH COUNCIL,http://opendatacommunities.org/id/unitary-authority/warrington,FWB,Special Schools Transport,33208,Statemented - Special Unit Pupil Transpo,300750,11/08/2020,5100436685,1962,Direct Taxis,101873
WARRINGTON BOROUGH COUNCIL,http://opendatacommunities.org/id/unitary-authority/warrington,FWB,Special Schools Transport,33208,Statemented - Special Unit Pupil Transpo,300750,11/08/2020,5100436686,1356,Direct Taxis,101873
WARRINGTON BOROUGH COUNCIL,http://opendatacommunities.org/id/unitary-authority/warrington,FWB,Special Schools Transport,33208,Statemented - Special Unit Pupil Transpo,300750,12/08/2020,5100436804,1632,Direct Taxis,101873
WARRINGTON BOROUGH COUNCIL,http://opendatacommunities.org/id/unitary-authority/warrington,FWB,Special Schools Transport,33208,Statemented - Special Unit Pupil Transpo,300750,12/08/2020,5100436805,1872,Direct Taxis,101873
WARRINGTON BOROUGH COUNCIL,http://opendatacommunities.org/id/unitary-authority/warrington,FWB,Transport - Adult Social Care,54950,Transport-Snad Cot,300600,12/08/2020,5100436806,1206,Direct Taxis,101873
WARRINGTON BOROUGH COUNCIL,http://opendatacommunities.org/id/unitary-authority/warrington,FWB,Special Schools Transport,33208,Statemented - Special Unit Pupil Transpo,300750,12/08/2020,5100436807,1188,Direct Taxis,101873
WARRINGTON BOROUGH COUNCIL,http://opendatacommunities.org/id/unitary-authority/warrington,FWB,Transport - Adult Social Care,54950,Transport-Snad Cot,300600,12/08/2020,5100436808,2030,Direct Taxis,101873
WARRINGTON BOROUGH COUNCIL,http://opendatacommunities.org/id/unitary-authority/warrington,FWB,Special Schools Transport,33208,Statemented - Special Unit Pupil Transpo,300750,12/08/2020,5100436812,2394,Direct Taxis,101873
WARRINGTON BOROUGH COUNCIL,http://opendatacommunities.org/id/unitary-authority/warrington,FWB,Special Schools Transport,33208,Statemented - Special Unit Pupil Transpo,300750,12/08/2020,5100436813,1440,Direct Taxis,101873
WARRINGTON BOROUGH COUNCIL,http://opendatacommunities.org/id/unitary-authority/warrington,FWB,Special Schools Transport,33208,Statemented - Special Unit Pupil Transpo,300750,12/08/2020,5100436814,512,Direct Taxis,101873
WARRINGTON BOROUGH COUNCIL,http://opendatacommunities.org/id/unitary-authority/warrington,FWB,Special Schools Transport,33208,Statemented - Special Unit Pupil Transpo,300750,12/08/2020,5100436815,1008,Direct Taxis,101873
WARRINGTON BOROUGH COUNCIL,http://opendatacommunities.org/id/unitary-authority/warrington,FWB,Special Schools Transport,33208,Statemented - Special Unit Pupil Transpo,300750,12/08/2020,5100436816,1812,Direct Taxis,101873
WARRINGTON BOROUGH COUNCIL,http://opendatacommunities.org/id/unitary-authority/warrington,FWB,Special Schools Transport,33208,Statemented - Special Unit Pupil Transpo,300750,12/08/2020,5100436817,2854,Direct Taxis,101873
WARRINGTON BOROUGH COUNCIL,http://opendatacommunities.org/id/unitary-authority/warrington,FWB,Special Schools Transport,33208,Statemented - Special Unit Pupil Transpo,300750,12/08/2020,5100436818,2159,Direct Taxis,101873
WARRINGTON BOROUGH COUNCIL,http://opendatacommunities.org/id/unitary-authority/warrington,FWB,Special Schools Transport,33208,Statemented - Special Unit Pupil Transpo,300750,12/08/2020,5100436819,1408,Direct Taxis,101873
WARRINGTON BOROUGH COUNCIL,http://opendatacommunities.org/id/unitary-authority/warrington,FWB,Special Schools Transport,33208,Statemented - Special Unit Pupil Transpo,300750,12/08/2020,5100436830,1404,Direct Taxis,101873
WARRINGTON BOROUGH COUNCIL,http://opendatacommunities.org/id/unitary-authority/warrington,FWB,Special Schools Transport,33208,Statemented - Special Unit Pupil Transpo,300750,12/08/2020,5100436831,2544,Direct Taxis,101873
WARRINGTON BOROUGH COUNCIL,http://opendatacommunities.org/id/unitary-authority/warrington,FWB,Special Schools Transport,33208,Statemented - Special Unit Pupil Transpo,300750,12/08/2020,5100436832,1800,Direct Taxis,101873
WARRINGTON BOROUGH COUNCIL,http://opendatacommunities.org/id/unitary-authority/warrington,FWB,Special Schools Transport,33208,Statemented - Special Unit Pupil Transpo,300750,12/08/2020,5100436833,1620,Direct Taxis,101873
WARRINGTON BOROUGH COUNCIL,http://opendatacommunities.org/id/unitary-authority/warrington,FWB,Transport - Adult Social Care,54950,Transport-Snad Cot,300600,12/08/2020,5100436834,1472,Direct Taxis,101873
WARRINGTON BOROUGH COUNCIL,http://opendatacommunities.org/id/unitary-authority/warrington,FWB,Special Schools Transport,33208,Statemented - Special Unit Pupil Transpo,300750,12/08/2020,5100436836,1248,Direct Taxis,101873
WARRINGTON BOROUGH COUNCIL,http://opendatacommunities.org/id/unitary-authority/warrington,FWB,Special Schools Transport,33208,Statemented - Special Unit Pupil Transpo,300750,12/08/2020,5100436837,1568,Direct Taxis,101873
WARRINGTON BOROUGH COUNCIL,http://opendatacommunities.org/id/unitary-authority/warrington,FWB,Special Schools Transport,33208,Statemented - Special Unit Pupil Transpo,300750,12/08/2020,5100436838,1050,Direct Taxis,101873
WARRINGTON BOROUGH COUNCIL,http://opendatacommunities.org/id/unitary-authority/warrington,FWB,Special Schools Transport,33208,Statemented - Special Unit Pupil Transpo,300750,12/08/2020,5100436839,1944,Direct Taxis,101873
WARRINGTON BOROUGH COUNCIL,http://opendatacommunities.org/id/unitary-authority/warrington,FWB,Special Schools Transport,33208,Statemented - Special Unit Pupil Transpo,300750,12/08/2020,5100436861,1520,Direct Taxis,101873
WARRINGTON BOROUGH COUNCIL,http://opendatacommunities.org/id/unitary-authority/warrington,FWB,Transport - Adult Social Care,54950,Transport-Snad Cot,300600,12/08/2020,5100436862,585,Direct Taxis,101873
WARRINGTON BOROUGH COUNCIL,http://opendatacommunities.org/id/unitary-authority/warrington,FWB,Transport - Adult Social Care,54950,Transport-Snad Cot,300600,12/08/2020,5100436863,510,Direct Taxis,101873
WARRINGTON BOROUGH COUNCIL,http://opendatacommunities.org/id/unitary-authority/warrington,FWB,Special Schools Transport,33208,Statemented - Special Unit Pupil Transpo,300750,12/08/2020,5100436864,960,Direct Taxis,101873
WARRINGTON BOROUGH COUNCIL,http://opendatacommunities.org/id/unitary-authority/warrington,FWB,Transport - Adult Social Care,54950,Transport-Snad Cot,300600,12/08/2020,5100436865,1853,Direct Taxis,101873
WARRINGTON BOROUGH COUNCIL,http://opendatacommunities.org/id/unitary-authority/warrington,FWB,Special Schools Transport,33208,Statemented - Special Unit Pupil Transpo,300750,12/08/2020,5100436866,2240,Direct Taxis,101873
WARRINGTON BOROUGH COUNCIL,http://opendatacommunities.org/id/unitary-authority/warrington,FWB,Special Schools Transport,33208,Statemented - Special Unit Pupil Transpo,300750,12/08/2020,5100436867,1235,Direct Taxis,101873
WARRINGTON BOROUGH COUNCIL,http://opendatacommunities.org/id/unitary-authority/warrington,FWB,Special Schools Transport,33208,Statemented - Special Unit Pupil Transpo,300750,12/08/2020,5100436868,1326,Direct Taxis,101873
WARRINGTON BOROUGH COUNCIL,http://opendatacommunities.org/id/unitary-authority/warrington,FWB,Transport - Adult Social Care,54950,Transport-Snad Cot,300600,12/08/2020,5100436869,670,Direct Taxis,101873
WARRINGTON BOROUGH COUNCIL,http://opendatacommunities.org/id/unitary-authority/warrington,FWB,Special Schools Transport,33208,Statemented - Special Unit Pupil Transpo,300750,12/08/2020,5100436880,1680,Direct Taxis,101873
WARRINGTON BOROUGH COUNCIL,http://opendatacommunities.org/id/unitary-authority/warrington,FWB,Transport - Adult Social Care,54950,Transport-Snad Cot,300600,12/08/2020,5100436881,510,Direct Taxis,101873
WARRINGTON BOROUGH COUNCIL,http://opendatacommunities.org/id/unitary-authority/warrington,FWB,Special Schools Transport,33208,Statemented - Special Unit Pupil Transpo,300750,12/08/2020,5100436882,960,Direct Taxis,101873
WARRINGTON BOROUGH COUNCIL,http://opendatacommunities.org/id/unitary-authority/warrington,RSC,Chief Exec's Support,14100,"Campaigns,  Projects and Events",491950,17/08/2020,5100437277,1950,Donald Insall Associates,109811
WARRINGTON BOROUGH COUNCIL,http://opendatacommunities.org/id/unitary-authority/warrington,FWB,Care Call,54550,Equipment Purchase & Contract,400000,28/07/2020,5100435474,3440,Doro AB,115633
WARRINGTON BOROUGH COUNCIL,http://opendatacommunities.org/id/unitary-authority/warrington,ACP,Assistant Chief Executive,84000,Environmental Works,531050,24/08/2020,5100426180,23769.09,Dowhigh Ltd,105350
WARRINGTON BOROUGH COUNCIL,http://opendatacommunities.org/id/unitary-authority/warrington,ENO,Highways Other,82005,Clean Repair Drains,531000,12/08/2020,5100436884,38025,Dowhigh Ltd,105350
WARRINGTON BOROUGH COUNCIL,http://opendatacommunities.org/id/unitary-authority/warrington,ENO,Highways Other,82005,Named Drainage Schm,532100,13/08/2020,5100436977,66500,Dowhigh Ltd,105350
WARRINGTON BOROUGH COUNCIL,http://opendatacommunities.org/id/unitary-authority/warrington,ET0,Golf Course Client,41432,Consult.& Prof. Serv,440000,06/08/2020,5100436246,2736,Dr David Robertson,100073
WARRINGTON BOROUGH COUNCIL,http://opendatacommunities.org/id/unitary-authority/warrington,FWB,BCF - Equipment Store,54930,Equipment Purchase & Contract,400000,19/08/2020,5100437401,782.8,Drive DeVilbiss Healthcare Ltd,101899
WARRINGTON BOROUGH COUNCIL,http://opendatacommunities.org/id/unitary-authority/warrington,FWB,BCF - Equipment Store,54930,Equipment Purchase & Contract,400000,19/08/2020,5100437404,1530.9,Drive DeVilbiss Healthcare Ltd,101899
WARRINGTON BOROUGH COUNCIL,http://opendatacommunities.org/id/unitary-authority/warrington,FWB,BCF - Padgate House,54760,Supplies & Services - Covid 19,499919,10/08/2020,5100435850,1440,Easy Clean Limited,117665
WARRINGTON BOROUGH COUNCIL,http://opendatacommunities.org/id/unitary-authority/warrington,RSC,IT - Contracts,23600,Computer Software - Purchase,450800,18/08/2020,5100433277,18696,Edenhouse Solutions Ltd,114416
WARRINGTON BOROUGH COUNCIL,http://opendatacommunities.org/id/unitary-authority/warrington,FWB,Special Schools Transport,33208,Statemented - Special Unit Pupil Transpo,300750,05/08/2020,5100436065,2752,Elite Services NW Ltd,109753
WARRINGTON BOROUGH COUNCIL,http://opendatacommunities.org/id/unitary-authority/warrington,ET0,Transport Holding Account,41311,Vehicle Hire Charges,320000,17/08/2020,5100436248,658.75,Enterprise Flex E Rent,100597
WARRINGTON BOROUGH COUNCIL,http://opendatacommunities.org/id/unitary-authority/warrington,ET0,Transport Holding Account,41311,Vehicle Hire Charges,320000,24/08/2020,5100436471,12569.18,Enterprise Flex E Rent,100597
WARRINGTON BOROUGH COUNCIL,http://opendatacommunities.org/id/unitary-authority/warrington,ET0,Schools (Street Scene),41733,Materials,400500,25/08/2020,5100426172,560,Envirolawn,108926
WARRINGTON BOROUGH COUNCIL,http://opendatacommunities.org/id/unitary-authority/warrington,ENO,Priority Infrastructure,82009,Technical Surveys,532050,13/08/2020,5100428128,950,Environment Agency,440120
WARRINGTON BOROUGH COUNCIL,http://opendatacommunities.org/id/unitary-authority/warrington,ET0,Waste Recycling,41820,CRC Contract,530450,13/07/2020,5100434154,4360.2,Environmental Waste Controls Ltd,102474
WARRINGTON BOROUGH COUNCIL,http://opendatacommunities.org/id/unitary-authority/warrington,ET0,Waste Recycling,41820,CRC Contract,530450,13/07/2020,5100434155,10900.51,Environmental Waste Controls Ltd,102474
WARRINGTON BOROUGH COUNCIL,http://opendatacommunities.org/id/unitary-authority/warrington,ET0,Waste Recycling,41820,CRC Contract,530450,13/07/2020,5100434156,15260.71,Environmental Waste Controls Ltd,102474
WARRINGTON BOROUGH COUNCIL,http://opendatacommunities.org/id/unitary-authority/warrington,ET0,Waste Recycling,41820,CRC Contract,530450,13/07/2020,5100434163,4055.05,Environmental Waste Controls Ltd,102474
WARRINGTON BOROUGH COUNCIL,http://opendatacommunities.org/id/unitary-authority/warrington,ET0,Waste Recycling,41820,CRC Contract,530450,16/07/2020,5100434518,15260.71,Environmental Waste Controls Ltd,102474
WARRINGTON BOROUGH COUNCIL,http://opendatacommunities.org/id/unitary-authority/warrington,ET0,Waste Recycling,41820,CRC Contract,530450,28/07/2020,5100435453,15260.71,Environmental Waste Controls Ltd,102474
WARRINGTON BOROUGH COUNCIL,http://opendatacommunities.org/id/unitary-authority/warrington,ET0,Waste Recycling,41820,CRC Contract,530450,28/07/2020,5100435454,15260.71,Environmental Waste Controls Ltd,102474
WARRINGTON BOROUGH COUNCIL,http://opendatacommunities.org/id/unitary-authority/warrington,ET0,Waste Recycling,41820,CRC Contract,530450,03/08/2020,5100435851,3909.81,Environmental Waste Controls Ltd,102474
WARRINGTON BOROUGH COUNCIL,http://opendatacommunities.org/id/unitary-authority/warrington,ET0,Waste Recycling,41820,CRC Contract,530450,03/08/2020,5100435852,1055.91,Environmental Waste Controls Ltd,102474
WARRINGTON BOROUGH COUNCIL,http://opendatacommunities.org/id/unitary-authority/warrington,ET0,Waste Recycling,41820,CRC Contract,530450,03/08/2020,5100435853,9407,Environmental Waste Controls Ltd,102474
WARRINGTON BOROUGH COUNCIL,http://opendatacommunities.org/id/unitary-authority/warrington,ET0,Waste Recycling,41820,CRC Contract,530450,03/08/2020,5100435856,7467.72,Environmental Waste Controls Ltd,102474
WARRINGTON BOROUGH COUNCIL,http://opendatacommunities.org/id/unitary-authority/warrington,ET0,Waste Recycling,41820,CRC Contract,530450,03/08/2020,5100435857,803.52,Environmental Waste Controls Ltd,102474
WARRINGTON BOROUGH COUNCIL,http://opendatacommunities.org/id/unitary-authority/warrington,ET0,Waste Recycling,41820,CRC Contract,530450,03/08/2020,5100435859,2165.8,Environmental Waste Controls Ltd,102474
WARRINGTON BOROUGH COUNCIL,http://opendatacommunities.org/id/unitary-authority/warrington,ET0,Waste Recycling,41820,CRC Contract,530450,03/08/2020,5100435860,4702.16,Environmental Waste Controls Ltd,102474
WARRINGTON BOROUGH COUNCIL,http://opendatacommunities.org/id/unitary-authority/warrington,ET0,Waste Recycling,41820,CRC Contract,530450,03/08/2020,5100435861,1027.2,Environmental Waste Controls Ltd,102474
WARRINGTON BOROUGH COUNCIL,http://opendatacommunities.org/id/unitary-authority/warrington,ET0,Waste Recycling,41820,CRC Contract,530450,03/08/2020,5100435862,4255,Environmental Waste Controls Ltd,102474
WARRINGTON BOROUGH COUNCIL,http://opendatacommunities.org/id/unitary-authority/warrington,ET0,Waste Recycling,41820,CRC Contract,530450,10/08/2020,5100436480,10900.51,Environmental Waste Controls Ltd,102474
WARRINGTON BOROUGH COUNCIL,http://opendatacommunities.org/id/unitary-authority/warrington,ET0,Waste Recycling,41820,CRC Contract,530450,10/08/2020,5100436482,4055.05,Environmental Waste Controls Ltd,102474
WARRINGTON BOROUGH COUNCIL,http://opendatacommunities.org/id/unitary-authority/warrington,FWB,Contracts - SM Commissioning Team 1,55910,Public Health Contract Payments,540000,20/07/2020,5100434824,1664,Eric Moore Partnership,113398
WARRINGTON BOROUGH COUNCIL,http://opendatacommunities.org/id/unitary-authority/warrington,ET0,Waste Recycling,41820,Waste Initiatives,443200,21/07/2020,5100434975,744,Euro Label Printers,115243
WARRINGTON BOROUGH COUNCIL,http://opendatacommunities.org/id/unitary-authority/warrington,FWB,Proceeds of Crime,41563,Consult.& Prof. Serv,440000,19/08/2020,5100437417,2000,Experian Ltd,100479
WARRINGTON BOROUGH COUNCIL,http://opendatacommunities.org/id/unitary-authority/warrington,ET0,Transport Holding Account,41311,Vehicle Hire Charges,320000,10/08/2020,5100436250,1534,F G Rowland Ltd,102555
WARRINGTON BOROUGH COUNCIL,http://opendatacommunities.org/id/unitary-authority/warrington,ET0,Transport Holding Account,41311,Vehicle Hire Charges,320000,10/08/2020,5100436251,1534,F G Rowland Ltd,102555
WARRINGTON BOROUGH COUNCIL,http://opendatacommunities.org/id/unitary-authority/warrington,ET0,Transport Holding Account,41311,Vehicle Hire Charges,320000,10/08/2020,5100436252,2800,F G Rowland Ltd,102555
WARRINGTON BOROUGH COUNCIL,http://opendatacommunities.org/id/unitary-authority/warrington,ET0,Transport Holding Account,41311,Veh Maint. Materials,300000,03/08/2020,5100435808,707.3,F R Sharrock Ltd,105122
WARRINGTON BOROUGH COUNCIL,http://opendatacommunities.org/id/unitary-authority/warrington,ET0,Transport Holding Account,41311,Vehicle Hire Charges,320000,17/08/2020,5100436670,609,F R Sharrock Ltd,105122
WARRINGTON BOROUGH COUNCIL,http://opendatacommunities.org/id/unitary-authority/warrington,ET0,Transport Holding Account,41311,Veh Maint. Materials,300000,25/08/2020,5100437774,636.9,F R Sharrock Ltd,105122
WARRINGTON BOROUGH COUNCIL,http://opendatacommunities.org/id/unitary-authority/warrington,ET0,Transport Holding Account,41311,Veh Maint. Materials,300000,25/08/2020,5100437777,522.82,F R Sharrock Ltd,105122
WARRINGTON BOROUGH COUNCIL,http://opendatacommunities.org/id/unitary-authority/warrington,ET0,CCTV Operations exp,44380,Equipment Purchase & Contract,400000,16/07/2020,5100434507,1889,Facit Data Systems Ltd,117812
WARRINGTON BOROUGH COUNCIL,http://opendatacommunities.org/id/unitary-authority/warrington,FWB,Special Schools Transport,33208,Statemented - Special Unit Pupil Transpo,300750,06/08/2020,5100436220,1133.4,Farrington Taxi Service,100067
WARRINGTON BOROUGH COUNCIL,http://opendatacommunities.org/id/unitary-authority/warrington,FWB,Homelessness,43650,Payment of Grants,470050,27/07/2020,5100435330,58750,Forum Housing Association Limited,117605
WARRINGTON BOROUGH COUNCIL,http://opendatacommunities.org/id/unitary-authority/warrington,FWB,Contracts - SM Commissioning Team 1,55910,Public Health Contract Payments,540000,03/08/2020,5100435794,896,Four Season Medical Centre,115415
WARRINGTON BOROUGH COUNCIL,http://opendatacommunities.org/id/unitary-authority/warrington,FWB,Contracts - SM Commissioning Team 1,55910,Drug Action,443600,13/07/2020,5100430983,544.36,Frontier NX,106478
WARRINGTON BOROUGH COUNCIL,http://opendatacommunities.org/id/unitary-authority/warrington,FWB,Contracts - SM Commissioning Team 1,55910,Drug Action,443600,17/08/2020,5100436253,686.94,Frontier NX,106478
WARRINGTON BOROUGH COUNCIL,http://opendatacommunities.org/id/unitary-authority/warrington,FWB,Temporary Accomodation,43652,Maintenance Work - Sub Contractors,301150,27/07/2020,5100435370,568,Furniture Resource Centre LTD,117178
WARRINGTON BOROUGH COUNCIL,http://opendatacommunities.org/id/unitary-authority/warrington,ET0,Land Drainage,44120,Clean Repair Drains,531000,24/08/2020,5100437558,3560,General Utilities Services Ltd,101975
WARRINGTON BOROUGH COUNCIL,http://opendatacommunities.org/id/unitary-authority/warrington,ET0,Land Drainage,44120,Clean Repair Drains,531000,24/08/2020,5100437559,3630,General Utilities Services Ltd,101975
WARRINGTON BOROUGH COUNCIL,http://opendatacommunities.org/id/unitary-authority/warrington,DG0,West Annexe,45161,Maintenance of Plant & Machinery,250050,04/08/2020,5100431662,507.18,Generator Power Ltd,117550
WARRINGTON BOROUGH COUNCIL,http://opendatacommunities.org/id/unitary-authority/warrington,DG0,West Annexe,45161,Maintenance of Plant & Machinery,250050,14/07/2020,5100434376,506.39,Generator Power Ltd,117550
WARRINGTON BOROUGH COUNCIL,http://opendatacommunities.org/id/unitary-authority/warrington,DG0,West Annexe,45161,Maintenance of Plant & Machinery,250050,29/07/2020,5100435498,541.15,Generator Power Ltd,117550
WARRINGTON BOROUGH COUNCIL,http://opendatacommunities.org/id/unitary-authority/warrington,DG0,West Annexe,45161,Maintenance of Plant & Machinery,250050,29/07/2020,5100435610,513.5,Generator Power Ltd,117550
WARRINGTON BOROUGH COUNCIL,http://opendatacommunities.org/id/unitary-authority/warrington,DG0,West Annexe,45161,Maintenance of Plant & Machinery,250050,07/08/2020,5100436350,511.92,Generator Power Ltd,117550
WARRINGTON BOROUGH COUNCIL,http://opendatacommunities.org/id/unitary-authority/warrington,ENO,Highways LTP,82004,Materials,400500,04/08/2020,5100435941,32172.09,George Cox & Sons,105471
WARRINGTON BOROUGH COUNCIL,http://opendatacommunities.org/id/unitary-authority/warrington,ENO,Highways S106,82003,Materials,400500,20/08/2020,5100437474,48191.83,George Cox & Sons,105471
WARRINGTON BOROUGH COUNCIL,http://opendatacommunities.org/id/unitary-authority/warrington,ENO,Highways S106,82003,Materials,400500,20/08/2020,5100437476,48191.83,George Cox & Sons,105471
WARRINGTON BOROUGH COUNCIL,http://opendatacommunities.org/id/unitary-authority/warrington,COR,Markets,43711,Equipment Purchase & Contract,400000,29/07/2020,5100435572,583.84,Glasdon Uk Ltd,105365
WARRINGTON BOROUGH COUNCIL,http://opendatacommunities.org/id/unitary-authority/warrington,FWB,Foster Carers Committee Funding,31119,Other Advertising & Publicity,450050,24/08/2020,5100433703,1379.31,Global Radio Services Ltd,116292
WARRINGTON BOROUGH COUNCIL,http://opendatacommunities.org/id/unitary-authority/warrington,FWB,Foster Carers Committee Funding,31119,Other Advertising & Publicity,450050,29/07/2020,5100435611,1195.4,Global Radio Services Ltd,116292
WARRINGTON BOROUGH COUNCIL,http://opendatacommunities.org/id/unitary-authority/warrington,FWB,Foster Carers Committee Funding,31119,Other Advertising & Publicity,450050,07/08/2020,5100436334,1425.29,Global Radio Services Ltd,116292
WARRINGTON BOROUGH COUNCIL,http://opendatacommunities.org/id/unitary-authority/warrington,ENP,Environment & Regeneration,82000,Materials,400500,12/08/2020,5100436835,360384.7,Gravity Fitness Limited,117910
WARRINGTON BOROUGH COUNCIL,http://opendatacommunities.org/id/unitary-authority/warrington,COR,Other Commercial Prop.,43560,Maintenance Work - Sub Contractors,301150,10/08/2020,5100436488,5100,Groundlevel Services Ltd,106160
WARRINGTON BOROUGH COUNCIL,http://opendatacommunities.org/id/unitary-authority/warrington,ET0,Crematorium,41411,Resaleables,400600,17/08/2020,5100437312,947.5,Halliday Funeral Supplies Ltd,110936
WARRINGTON BOROUGH COUNCIL,http://opendatacommunities.org/id/unitary-authority/warrington,COR,Markets,43711,Equipment Purchase & Contract,400000,21/07/2020,5100434983,1283.55,Halton Container Services Limited,101003
WARRINGTON BOROUGH COUNCIL,http://opendatacommunities.org/id/unitary-authority/warrington,ET0,Paper Recycling (Drivers & Collectors),41842,Waste Initiatives,443200,03/08/2020,5100435866,1560,Halton Container Services Limited,101003
WARRINGTON BOROUGH COUNCIL,http://opendatacommunities.org/id/unitary-authority/warrington,ET0,Paper Recycling (Drivers & Collectors),41842,Waste Initiatives,443200,03/08/2020,5100435866,636,Halton Container Services Limited,101003
WARRINGTON BOROUGH COUNCIL,http://opendatacommunities.org/id/unitary-authority/warrington,FWB,Special Schools Transport,33208,Statemented - Special Unit Pupil Transpo,300750,06/08/2020,5100436226,1760,Hampton Coaches,104768
WARRINGTON BOROUGH COUNCIL,http://opendatacommunities.org/id/unitary-authority/warrington,FWB,Special Schools Transport,33208,Statemented - Special Unit Pupil Transpo,300750,06/08/2020,5100436227,1440,Hampton Coaches,104768
WARRINGTON BOROUGH COUNCIL,http://opendatacommunities.org/id/unitary-authority/warrington,FWB,Special Schools Transport,33208,Statemented - Special Unit Pupil Transpo,300750,06/08/2020,5100436228,1920,Hampton Coaches,104768
WARRINGTON BOROUGH COUNCIL,http://opendatacommunities.org/id/unitary-authority/warrington,COR,Markets,43711,Supplies & Services - Covid 19,499919,13/07/2020,5100430551,1200,Harrow Green Limited,110974
WARRINGTON BOROUGH COUNCIL,http://opendatacommunities.org/id/unitary-authority/warrington,COR,Markets,43711,Supplies & Services - Covid 19,499919,11/08/2020,5100432027,1800,Harrow Green Limited,110974
WARRINGTON BOROUGH COUNCIL,http://opendatacommunities.org/id/unitary-authority/warrington,FWB,BCF - Equipment Store,54930,Equipment Purchase & Contract,400000,18/06/2020,5100431550,1426,Harvest Healthcare Ltd,108555
WARRINGTON BOROUGH COUNCIL,http://opendatacommunities.org/id/unitary-authority/warrington,FWB,BCF - Equipment Store,54930,Equipment Purchase & Contract,400000,10/08/2020,5100436484,1452,Harvest Healthcare Ltd,108555
WARRINGTON BOROUGH COUNCIL,http://opendatacommunities.org/id/unitary-authority/warrington,FWB,BCF - Equipment Store,54930,Equipment Purchase & Contract,400000,20/08/2020,5100437496,960,Harvest Healthcare Ltd,108555
WARRINGTON BOROUGH COUNCIL,http://opendatacommunities.org/id/unitary-authority/warrington,FWB,BCF - Equipment Store,54930,Equipment Purchase & Contract,400000,20/08/2020,5100437497,960,Harvest Healthcare Ltd,108555
WARRINGTON BOROUGH COUNCIL,http://opendatacommunities.org/id/unitary-authority/warrington,FWB,Temporary Accomodation,43652,Supplies & Services - Covid 19,499919,14/08/2020,5100431884,9150,Hawkeye Support Services,117664
WARRINGTON BOROUGH COUNCIL,http://opendatacommunities.org/id/unitary-authority/warrington,FWB,Temporary Accomodation,43652,Supplies & Services - Covid 19,499919,14/08/2020,5100434252,9600,Hawkeye Support Services,117664
WARRINGTON BOROUGH COUNCIL,http://opendatacommunities.org/id/unitary-authority/warrington,FWB,Temporary Accomodation,43652,Supplies & Services - Covid 19,499919,18/08/2020,5100437364,6030,Hawkeye Support Services,117664
WARRINGTON BOROUGH COUNCIL,http://opendatacommunities.org/id/unitary-authority/warrington,FWB,Temporary Accomodation,43652,Supplies & Services - Covid 19,499919,18/08/2020,5100437364,3120,Hawkeye Support Services,117664
WARRINGTON BOROUGH COUNCIL,http://opendatacommunities.org/id/unitary-authority/warrington,RSC,Printing & Graphics,23040,External Printing,430100,04/08/2020,5100435944,713,Hcc Promotions Ltd,103915
WARRINGTON BOROUGH COUNCIL,http://opendatacommunities.org/id/unitary-authority/warrington,RSC,Printing & Graphics,23040,External Printing,430100,17/08/2020,5100437263,1140,Hcc Promotions Ltd,103915
WARRINGTON BOROUGH COUNCIL,http://opendatacommunities.org/id/unitary-authority/warrington,RSC,Printing & Graphics,23040,External Printing,430100,17/08/2020,5100437264,1105,Hcc Promotions Ltd,103915
WARRINGTON BOROUGH COUNCIL,http://opendatacommunities.org/id/unitary-authority/warrington,FWB,BCF - Equipment Store,54930,Supplies & Services - Covid 19,499919,14/07/2020,5100434243,723.2,Healthcare Matters,110751
WARRINGTON BOROUGH COUNCIL,http://opendatacommunities.org/id/unitary-authority/warrington,FWB,BCF - Equipment Store,54930,Equipment Purchase & Contract,400000,05/08/2020,5100436152,529.44,Healthcare Matters,110751
WARRINGTON BOROUGH COUNCIL,http://opendatacommunities.org/id/unitary-authority/warrington,FWB,BCF - Equipment Store,54930,Equipment Purchase & Contract,400000,05/08/2020,5100436152,861.72,Healthcare Matters,110751
WARRINGTON BOROUGH COUNCIL,http://opendatacommunities.org/id/unitary-authority/warrington,FWB,BCF - Equipment Store,54930,Equipment Purchase & Contract,400000,05/08/2020,5100436152,1267.2,Healthcare Matters,110751
WARRINGTON BOROUGH COUNCIL,http://opendatacommunities.org/id/unitary-authority/warrington,FWB,Transport - Adult Social Care,54950,Transport-Snad Cot,300600,04/08/2020,5100436044,872,Horn'S Private Hire,101991
WARRINGTON BOROUGH COUNCIL,http://opendatacommunities.org/id/unitary-authority/warrington,FWB,Mockingbird,31103,Fees (Including Agents Fees),441450,14/07/2020,5100434274,888,ILX Group Plc,107097
WARRINGTON BOROUGH COUNCIL,http://opendatacommunities.org/id/unitary-authority/warrington,FWB,Supporting People Contracts,53260,People with Mental Health Problems,535200,31/07/2020,5100435701,7010.64,Independent Living Alliance Ltd,111037
WARRINGTON BOROUGH COUNCIL,http://opendatacommunities.org/id/unitary-authority/warrington,COR,Markets,43711,Equipment Purchase & Contract,400000,15/07/2020,5100434463,2490,Independent Shelving Co Ltd,117586
WARRINGTON BOROUGH COUNCIL,http://opendatacommunities.org/id/unitary-authority/warrington,ET0,Construction Stores Overhead Account,41320,Materials,400500,04/08/2020,5100435948,1222,Instarmac Ltd,104820
WARRINGTON BOROUGH COUNCIL,http://opendatacommunities.org/id/unitary-authority/warrington,FWB,DSG - Medical Needs,32002,Eotas Pupil Funding,490350,27/07/2020,5100435374,3276,Integra People,116891
WARRINGTON BOROUGH COUNCIL,http://opendatacommunities.org/id/unitary-authority/warrington,FWB,DSG - Medical Needs,32002,Eotas Pupil Funding,490350,28/07/2020,5100435456,2688,Integra People,116891
WARRINGTON BOROUGH COUNCIL,http://opendatacommunities.org/id/unitary-authority/warrington,FWB,DSG - Medical Needs,32002,Eotas Pupil Funding,490350,04/08/2020,5100435949,2065,Integra People,116891
WARRINGTON BOROUGH COUNCIL,http://opendatacommunities.org/id/unitary-authority/warrington,FWB,DSG - Medical Needs,32002,Eotas Pupil Funding,490350,11/08/2020,5100436736,1295,Integra People,116891
WARRINGTON BOROUGH COUNCIL,http://opendatacommunities.org/id/unitary-authority/warrington,COR,Markets,43711,Equipment Purchase & Contract,400000,19/08/2020,5100437411,1067.37,Investec Asset Finance PLC,106246
WARRINGTON BOROUGH COUNCIL,http://opendatacommunities.org/id/unitary-authority/warrington,FWB,Special Schools Transport,33208,Statemented - Special Unit Pupil Transpo,300750,06/08/2020,5100436221,2208,J J Travel & Transport Ltd,104838
WARRINGTON BOROUGH COUNCIL,http://opendatacommunities.org/id/unitary-authority/warrington,ET0,Local Bus Contracts,44430,Payments To Operator,530150,06/08/2020,5100436223,2524.07,J J Travel & Transport Ltd,104838
WARRINGTON BOROUGH COUNCIL,http://opendatacommunities.org/id/unitary-authority/warrington,ENO,Highways LTP,82004,Signal Equipment,531650,14/07/2020,5100434378,6500,Jacobs Uk Ltd,101283
WARRINGTON BOROUGH COUNCIL,http://opendatacommunities.org/id/unitary-authority/warrington,ET0,Highways Drainage,44270,Training,190150,11/08/2020,5100425959,1689,Jetchem Systems Ltd,104834
WARRINGTON BOROUGH COUNCIL,http://opendatacommunities.org/id/unitary-authority/warrington,ET0,Construction Stores Overhead Account,41320,Materials,400500,04/08/2020,5100435954,1764,Jewson Ltd,104836
WARRINGTON BOROUGH COUNCIL,http://opendatacommunities.org/id/unitary-authority/warrington,ET0,Construction Stores Overhead Account,41320,Materials,400500,24/08/2020,5100437506,1470,Jewson Ltd,104836
WARRINGTON BOROUGH COUNCIL,http://opendatacommunities.org/id/unitary-authority/warrington,ET0,Transport Holding Account,41311,Maintenance Work - Sub Contractors,301150,13/08/2020,5100437008,1312.52,Johnston Sweepers Ltd,101251
WARRINGTON BOROUGH COUNCIL,http://opendatacommunities.org/id/unitary-authority/warrington,FWB,Inclusion,32207,Fees (Including Agents Fees),441450,15/07/2020,5100434343,937.5,Juliet Prescott Psychological Serv.,462310
WARRINGTON BOROUGH COUNCIL,http://opendatacommunities.org/id/unitary-authority/warrington,FWB,Special Schools Transport,33208,Statemented - Special Unit Pupil Transpo,300750,14/08/2020,5100437126,1950,K & J Travel,115925
WARRINGTON BOROUGH COUNCIL,http://opendatacommunities.org/id/unitary-authority/warrington,FWB,Special Schools Transport,33208,Statemented - Special Unit Pupil Transpo,300750,27/08/2020,5100437854,1950,K & J Travel,115925
WARRINGTON BOROUGH COUNCIL,http://opendatacommunities.org/id/unitary-authority/warrington,FWB,Contracts - SM Commissioning Team 1,55910,Drug Action,443600,17/08/2020,5100436733,1980,Kaleidoscope Project,112092
WARRINGTON BOROUGH COUNCIL,http://opendatacommunities.org/id/unitary-authority/warrington,FWB,Contracts - SM Commissioning Team 1,55910,Drug Action,443600,17/08/2020,5100436734,2200,Kaleidoscope Project,112092
WARRINGTON BOROUGH COUNCIL,http://opendatacommunities.org/id/unitary-authority/warrington,FWB,Special Schools Transport,33208,Statemented - Special Unit Pupil Transpo,300750,06/08/2020,5100436208,1600,Kings Travel,116965
WARRINGTON BOROUGH COUNCIL,http://opendatacommunities.org/id/unitary-authority/warrington,ENO,Environment & Regeneration Other,82002,Consult.& Prof. Serv,440000,11/08/2020,5100436730,2500,Knight Frank Llp,104426
WARRINGTON BOROUGH COUNCIL,http://opendatacommunities.org/id/unitary-authority/warrington,FWB,Public Health Licensing,41550,Consult.& Prof. Serv,440000,05/08/2020,5100436135,810,Knox & Son Ltd,104857
WARRINGTON BOROUGH COUNCIL,http://opendatacommunities.org/id/unitary-authority/warrington,FWB,Public Health Licensing,41550,Consult.& Prof. Serv,440000,05/08/2020,5100436135,750,Knox & Son Ltd,104857
WARRINGTON BOROUGH COUNCIL,http://opendatacommunities.org/id/unitary-authority/warrington,FWB,Public Health Licensing,41550,Consult.& Prof. Serv,440000,24/08/2020,5100437716,810,Knox & Son Ltd,104857
WARRINGTON BOROUGH COUNCIL,http://opendatacommunities.org/id/unitary-authority/warrington,FWB,Public Health Licensing,41550,Consult.& Prof. Serv,440000,24/08/2020,5100437716,750,Knox & Son Ltd,104857
WARRINGTON BOROUGH COUNCIL,http://opendatacommunities.org/id/unitary-authority/warrington,COR,Markets,43711,Lifts from Stock,400850,04/08/2020,5100435957,3172.5,Kone Escalators,105477
WARRINGTON BOROUGH COUNCIL,http://opendatacommunities.org/id/unitary-authority/warrington,COR,Birchwood Park,62098,Consult.& Prof. Serv,440000,30/06/2020,5100432811,5250,KPMG LLP,115650
WARRINGTON BOROUGH COUNCIL,http://opendatacommunities.org/id/unitary-authority/warrington,FWB,DSG Independent School Fees,32011,Fees (Including Agents Fees),441450,17/08/2020,5100437296,5273.25,Lakeside School Limited,103188
WARRINGTON BOROUGH COUNCIL,http://opendatacommunities.org/id/unitary-authority/warrington,FWB,DSG Independent School Fees,32011,Fees (Including Agents Fees),441450,17/08/2020,5100437297,4649.5,Lakeside School Limited,103188
WARRINGTON BOROUGH COUNCIL,http://opendatacommunities.org/id/unitary-authority/warrington,RSC,Legal Services,11200,Advertisings-Jobs,190000,12/08/2020,5100436925,1500,Law Society Gazette Advertising,111240
WARRINGTON BOROUGH COUNCIL,http://opendatacommunities.org/id/unitary-authority/warrington,FWB,DSG - Medical Needs,32002,Learning Resources,400100,21/07/2020,5100434922,500,Learning Labs Ltd,117867
WARRINGTON BOROUGH COUNCIL,http://opendatacommunities.org/id/unitary-authority/warrington,RSC,Professional Development Centre,21000,Learning Resources,400100,29/07/2020,5100435597,23965,Learning Pool Limited,102937
WARRINGTON BOROUGH COUNCIL,http://opendatacommunities.org/id/unitary-authority/warrington,FWB,BCF - Equipment Store,54930,Consult.& Prof. Serv,440000,11/08/2020,5100436716,900,Legat Owen Limited,117432
WARRINGTON BOROUGH COUNCIL,http://opendatacommunities.org/id/unitary-authority/warrington,COR,Debt Management Expenses,62080,Consult.& Prof. Serv,440000,14/07/2020,5100434279,32075,Link Treasury Services Ltd,116513
WARRINGTON BOROUGH COUNCIL,http://opendatacommunities.org/id/unitary-authority/warrington,FWB,DSG Inter Authority Recoupment,32009,Fees (Including Agents Fees),441450,14/07/2020,5100434322,7168.86,Little Bollington CofE Primary Sch,400591
WARRINGTON BOROUGH COUNCIL,http://opendatacommunities.org/id/unitary-authority/warrington,NEO,Neighbourhood & Community Other,83002,Equipment Purchase & Contract,400000,11/08/2020,5100436735,40528.49,Livewire,110692
WARRINGTON BOROUGH COUNCIL,http://opendatacommunities.org/id/unitary-authority/warrington,FWB,Special Schools Transport,33208,Statemented - Special Unit Pupil Transpo,300750,06/08/2020,5100436209,2000,LM Travel,113868
WARRINGTON BOROUGH COUNCIL,http://opendatacommunities.org/id/unitary-authority/warrington,FWB,Special Schools Transport,33208,Statemented - Special Unit Pupil Transpo,300750,06/08/2020,5100436210,1950,Mackies Travel,116390
WARRINGTON BOROUGH COUNCIL,http://opendatacommunities.org/id/unitary-authority/warrington,FWB,Special Schools Transport,33208,Statemented - Special Unit Pupil Transpo,300750,06/08/2020,5100436211,1852.5,Mackies Travel,116390
WARRINGTON BOROUGH COUNCIL,http://opendatacommunities.org/id/unitary-authority/warrington,FWB,Special Schools Transport,33208,Statemented - Special Unit Pupil Transpo,300750,12/08/2020,5100436894,1882.4,Mackies Travel,116390
WARRINGTON BOROUGH COUNCIL,http://opendatacommunities.org/id/unitary-authority/warrington,FWB,Special Schools Transport,33208,Statemented - Special Unit Pupil Transpo,300750,06/08/2020,5100436212,1100,Maguires Executive Transport,111135
WARRINGTON BOROUGH COUNCIL,http://opendatacommunities.org/id/unitary-authority/warrington,FWB,Special Schools Transport,33208,Statemented - Special Unit Pupil Transpo,300750,12/08/2020,5100436860,1649,Manhatton Transfers,101264
WARRINGTON BOROUGH COUNCIL,http://opendatacommunities.org/id/unitary-authority/warrington,ENO,Priority Infrastructure,82009,Fct Repairs,532600,10/08/2020,5100435381,701.5,Marine Management Organisation,116608
WARRINGTON BOROUGH COUNCIL,http://opendatacommunities.org/id/unitary-authority/warrington,DG0,Rylands Street,43118,Security Systems,250000,12/08/2020,5100436877,511.81,Mcgoff & Vickers Ltd,105387
WARRINGTON BOROUGH COUNCIL,http://opendatacommunities.org/id/unitary-authority/warrington,DG0,Rylands Street,43118,Security Systems,250000,17/08/2020,5100437287,511.81,Mcgoff & Vickers Ltd,105387
WARRINGTON BOROUGH COUNCIL,http://opendatacommunities.org/id/unitary-authority/warrington,DG0,Contingency,45227,Maintenance of Plant & Machinery,250050,10/08/2020,5100436562,2700.74,Mears Limited,114197
WARRINGTON BOROUGH COUNCIL,http://opendatacommunities.org/id/unitary-authority/warrington,DG0,Contingency,45227,Maintenance of Plant & Machinery,250050,10/08/2020,5100436563,20277.83,Mears Limited,114197
WARRINGTON BOROUGH COUNCIL,http://opendatacommunities.org/id/unitary-authority/warrington,DG0,Contingency,45227,Maintenance of Plant & Machinery,250050,10/08/2020,5100436563,920.02,Mears Limited,114197
WARRINGTON BOROUGH COUNCIL,http://opendatacommunities.org/id/unitary-authority/warrington,DG0,Contingency,45227,Maintenance of Plant & Machinery,250050,12/08/2020,5100436886,21651.04,Mears Limited,114197
WARRINGTON BOROUGH COUNCIL,http://opendatacommunities.org/id/unitary-authority/warrington,FWB,Prison Substance Misuse Services,53840,Drug Action,443600,17/08/2020,5100436129,1046.61,MOJ Shared Service Centre,102024
WARRINGTON BOROUGH COUNCIL,http://opendatacommunities.org/id/unitary-authority/warrington,ENO,Priority Infrastructure,82009,Environmental Works,531050,14/07/2020,5100434282,3530.7,Mott Macdonald Ltd,104950
WARRINGTON BOROUGH COUNCIL,http://opendatacommunities.org/id/unitary-authority/warrington,ENO,Highways LTP,82004,Consult.& Prof. Serv,440000,18/08/2020,5100434511,17440,Mott Macdonald Ltd,104950
WARRINGTON BOROUGH COUNCIL,http://opendatacommunities.org/id/unitary-authority/warrington,ENO,Highways LTP,82004,Consult.& Prof. Serv,440000,04/08/2020,5100435960,33331,Mott Macdonald Ltd,104950
WARRINGTON BOROUGH COUNCIL,http://opendatacommunities.org/id/unitary-authority/warrington,ENO,Priority Infrastructure,82009,Environmental Works,531050,19/08/2020,5100437418,2661.83,Mott Macdonald Ltd,104950
WARRINGTON BOROUGH COUNCIL,http://opendatacommunities.org/id/unitary-authority/warrington,ENO,Highways LTP,82004,Traffic Section,531150,12/08/2020,5100436888,48127.26,Network Surfacing Ltd,113235
WARRINGTON BOROUGH COUNCIL,http://opendatacommunities.org/id/unitary-authority/warrington,ENO,Priority Infrastructure,82009,Environmental Works,531050,21/08/2020,5100437551,139852.59,Network Surfacing Ltd,113235
WARRINGTON BOROUGH COUNCIL,http://opendatacommunities.org/id/unitary-authority/warrington,FWB,CIN Team 4,31014,Fees (Including Agents Fees),441450,11/08/2020,5100431347,682.2,Network Ventures Ltd,110554
WARRINGTON BOROUGH COUNCIL,http://opendatacommunities.org/id/unitary-authority/warrington,FWB,CIN Team 4,31014,Fees (Including Agents Fees),441450,14/07/2020,5100434286,1405.7,Network Ventures Ltd,110554
WARRINGTON BOROUGH COUNCIL,http://opendatacommunities.org/id/unitary-authority/warrington,FWB,CIN Team 4,31014,Fees (Including Agents Fees),441450,18/08/2020,5100434846,1405.7,Network Ventures Ltd,110554
WARRINGTON BOROUGH COUNCIL,http://opendatacommunities.org/id/unitary-authority/warrington,FWB,CIN Team 4,31014,Fees (Including Agents Fees),441450,17/08/2020,5100435493,1440.35,Network Ventures Ltd,110554
WARRINGTON BOROUGH COUNCIL,http://opendatacommunities.org/id/unitary-authority/warrington,FWB,BCF - Equipment Store,54930,Equipment Purchase & Contract,400000,22/07/2020,5100435024,2499,Newlyn Healthcare Ltd,101429
WARRINGTON BOROUGH COUNCIL,http://opendatacommunities.org/id/unitary-authority/warrington,FWB,BCF - Equipment Store,54930,Materials,400500,03/08/2020,5100435821,3486,Newlyn Healthcare Ltd,101429
WARRINGTON BOROUGH COUNCIL,http://opendatacommunities.org/id/unitary-authority/warrington,FWB,BCF - Equipment Store,54930,Equipment Purchase & Contract,400000,11/08/2020,5100436676,2477,Newlyn Healthcare Ltd,101429
WARRINGTON BOROUGH COUNCIL,http://opendatacommunities.org/id/unitary-authority/warrington,FWB,Fostering Collaboration,31115,Other Advertising & Publicity,450050,03/08/2020,5100435871,1573.36,Newsquest Media Group,100070
WARRINGTON BOROUGH COUNCIL,http://opendatacommunities.org/id/unitary-authority/warrington,FWB,Contracts - SM Commissioning Team 1,55910,Public Health Contract Payments,540000,10/08/2020,5100436512,3228,NHS Midlands & Lancashire CSU,115102
WARRINGTON BOROUGH COUNCIL,http://opendatacommunities.org/id/unitary-authority/warrington,FWB,BCF - Equipment Store,54930,Equipment Purchase & Contract,400000,04/08/2020,5100435964,500,Nottingham Rehab Limited,101513
WARRINGTON BOROUGH COUNCIL,http://opendatacommunities.org/id/unitary-authority/warrington,ET0,Street Lighting Client,44241,Lighting Energy Char,531550,13/08/2020,5100436975,46349.67,Npower Electricity,101884
WARRINGTON BOROUGH COUNCIL,http://opendatacommunities.org/id/unitary-authority/warrington,ET0,Street Lighting Client,44241,Lighting Energy Char,531550,21/08/2020,5100437549,82083.07,Npower Electricity,101884
WARRINGTON BOROUGH COUNCIL,http://opendatacommunities.org/id/unitary-authority/warrington,ET0,Street Lighting Client,44241,Lighting Energy Char,531550,24/08/2020,5100437669,701.61,Npower Electricity,101884
WARRINGTON BOROUGH COUNCIL,http://opendatacommunities.org/id/unitary-authority/warrington,FWB,BCF - Equipment Store,54930,Equipment Purchase & Contract,400000,06/07/2020,5100433273,920,Orthodocs Limited,117835
WARRINGTON BOROUGH COUNCIL,http://opendatacommunities.org/id/unitary-authority/warrington,ET0,Transport Holding Account,41311,Vehicle Hire Charges,320000,04/08/2020,5100435966,540,P S D Vehicle Rental,100551
WARRINGTON BOROUGH COUNCIL,http://opendatacommunities.org/id/unitary-authority/warrington,ET0,Transport Holding Account,41311,Vehicle Hire Charges,320000,04/08/2020,5100435967,540,P S D Vehicle Rental,100551
WARRINGTON BOROUGH COUNCIL,http://opendatacommunities.org/id/unitary-authority/warrington,FWB,BCF - Equipment Store,54930,Equipment Purchase & Contract,400000,29/06/2020,5100432660,737.6,Performance Health,105137
WARRINGTON BOROUGH COUNCIL,http://opendatacommunities.org/id/unitary-authority/warrington,ET0,Transport Holding Account,41311,Vehicle Hire Charges,320000,11/08/2020,5100436712,1242,Peter Douglass Platforms,104676
WARRINGTON BOROUGH COUNCIL,http://opendatacommunities.org/id/unitary-authority/warrington,ET0,Transport Holding Account,41311,Vehicle Hire Charges,320000,11/08/2020,5100436713,1242,Peter Douglass Platforms,104676
WARRINGTON BOROUGH COUNCIL,http://opendatacommunities.org/id/unitary-authority/warrington,ET0,Transport Holding Account,41311,Vehicle Hire Charges,320000,11/08/2020,5100436714,1610,Peter Douglass Platforms,104676
WARRINGTON BOROUGH COUNCIL,http://opendatacommunities.org/id/unitary-authority/warrington,FWB,Special Schools Transport,33208,Statemented - Special Unit Pupil Transpo,300750,06/08/2020,5100436257,1560,Pete's Minibus,113937
WARRINGTON BOROUGH COUNCIL,http://opendatacommunities.org/id/unitary-authority/warrington,DG0,New Town House,43119,Materials,400500,17/08/2020,5100437246,613.73,Phs Group Ltd,105024
WARRINGTON BOROUGH COUNCIL,http://opendatacommunities.org/id/unitary-authority/warrington,DG0,New Town House,43119,Materials,400500,17/08/2020,5100437247,560.11,Phs Group Ltd,105024
WARRINGTON BOROUGH COUNCIL,http://opendatacommunities.org/id/unitary-authority/warrington,ENP,Environment & Regeneration,82000,Consult.& Prof. Serv,440000,11/08/2020,5100427892,535.18,Pickfords Move Management Ltd,117568
WARRINGTON BOROUGH COUNCIL,http://opendatacommunities.org/id/unitary-authority/warrington,ENP,Environment & Regeneration,82000,Consult.& Prof. Serv,440000,11/08/2020,5100430503,516.46,Pickfords Move Management Ltd,117568
WARRINGTON BOROUGH COUNCIL,http://opendatacommunities.org/id/unitary-authority/warrington,ENP,Environment & Regeneration,82000,Consult.& Prof. Serv,440000,10/08/2020,5100432813,1613.8,Pickfords Move Management Ltd,117568
WARRINGTON BOROUGH COUNCIL,http://opendatacommunities.org/id/unitary-authority/warrington,ENP,Environment & Regeneration,82000,Consult.& Prof. Serv,440000,10/08/2020,5100435973,2018.97,Pickfords Move Management Ltd,117568
WARRINGTON BOROUGH COUNCIL,http://opendatacommunities.org/id/unitary-authority/warrington,ET0,Recreation & Games,41431,Materials,400500,16/07/2020,5100434600,2229,Pitchworks Ltd,100388
WARRINGTON BOROUGH COUNCIL,http://opendatacommunities.org/id/unitary-authority/warrington,ENO,Highways Other,82005,Environmental Works,531050,25/08/2020,5100429397,1495,Pm Surveys Ltd,100711
WARRINGTON BOROUGH COUNCIL,http://opendatacommunities.org/id/unitary-authority/warrington,FWB,DSG Independent School Fees,32011,Fees (Including Agents Fees),441450,12/08/2020,5100436902,4798.58,Pontville School,109772
WARRINGTON BOROUGH COUNCIL,http://opendatacommunities.org/id/unitary-authority/warrington,FWB,DSG Independent School Fees,32011,Fees (Including Agents Fees),441450,12/08/2020,5100436903,6007.17,Pontville School,109772
WARRINGTON BOROUGH COUNCIL,http://opendatacommunities.org/id/unitary-authority/warrington,FWB,DSG Independent School Fees,32011,Fees (Including Agents Fees),441450,12/08/2020,5100436904,6007.17,Pontville School,109772
WARRINGTON BOROUGH COUNCIL,http://opendatacommunities.org/id/unitary-authority/warrington,FWB,DSG Post-16 Special Educational Needs,32309,Fees (Including Agents Fees),441450,17/08/2020,5100437281,4561.92,Pontville School,109772
WARRINGTON BOROUGH COUNCIL,http://opendatacommunities.org/id/unitary-authority/warrington,FWB,BCF - Equipment Store,54930,Annual Maintenance,442100,06/08/2020,5100430805,1113.1,Prism Medical UK,108616
WARRINGTON BOROUGH COUNCIL,http://opendatacommunities.org/id/unitary-authority/warrington,FWB,BCF - Equipment Store,54930,Equipment Purchase & Contract,400000,04/08/2020,5100435978,843.33,Prism Medical UK,108616
WARRINGTON BOROUGH COUNCIL,http://opendatacommunities.org/id/unitary-authority/warrington,FWB,BCF - Equipment Store,54930,Equipment Purchase & Contract,400000,04/08/2020,5100436013,1177.95,Prism Medical UK,108616
WARRINGTON BOROUGH COUNCIL,http://opendatacommunities.org/id/unitary-authority/warrington,PIO,People & Improvement Other,85002,Lifts from Stock,400850,18/08/2020,5100437078,2391.21,Prism Medical UK,108616
WARRINGTON BOROUGH COUNCIL,http://opendatacommunities.org/id/unitary-authority/warrington,FWB,BCF - Equipment Store,54930,Equipment Purchase & Contract,400000,24/08/2020,5100437721,1152.47,Prism Medical UK,108616
WARRINGTON BOROUGH COUNCIL,http://opendatacommunities.org/id/unitary-authority/warrington,ENO,Highways LTP,82004,Materials,400500,10/08/2020,5100435609,1336.8,Pudsey Diamond Engineering Ltd,105049
WARRINGTON BOROUGH COUNCIL,http://opendatacommunities.org/id/unitary-authority/warrington,RSC,Professional Development Centre,21000,Materials,400500,25/08/2020,5100437684,568.5,Qualsafe,104058
WARRINGTON BOROUGH COUNCIL,http://opendatacommunities.org/id/unitary-authority/warrington,FWB,Taxi and Private Hire Licensing,44450,Consult.& Prof. Serv,440000,25/08/2020,5100437781,3056,Radius Security Ltd,116645
WARRINGTON BOROUGH COUNCIL,http://opendatacommunities.org/id/unitary-authority/warrington,FWB,Special Schools Transport,33208,Statemented - Special Unit Pupil Transpo,300750,06/08/2020,5100436207,1600,Rainbow Travel,101270
WARRINGTON BOROUGH COUNCIL,http://opendatacommunities.org/id/unitary-authority/warrington,FWB,Special Schools Transport,33208,Statemented - Special Unit Pupil Transpo,300750,06/08/2020,5100436193,977.5,Raza Taxis,105056
WARRINGTON BOROUGH COUNCIL,http://opendatacommunities.org/id/unitary-authority/warrington,FWB,Transport - Adult Social Care,54950,Transport-Snad Cot,300600,06/08/2020,5100436194,640.5,Raza Taxis,105056
WARRINGTON BOROUGH COUNCIL,http://opendatacommunities.org/id/unitary-authority/warrington,FWB,Special Schools Transport,33208,Statemented - Special Unit Pupil Transpo,300750,06/08/2020,5100436197,780,Raza Taxis,105056
WARRINGTON BOROUGH COUNCIL,http://opendatacommunities.org/id/unitary-authority/warrington,FWB,Special Schools Transport,33208,Statemented - Special Unit Pupil Transpo,300750,06/08/2020,5100436198,1360,Raza Taxis,105056
WARRINGTON BOROUGH COUNCIL,http://opendatacommunities.org/id/unitary-authority/warrington,FWB,Special Schools Transport,33208,Statemented - Special Unit Pupil Transpo,300750,06/08/2020,5100436199,1011.5,Raza Taxis,105056
WARRINGTON BOROUGH COUNCIL,http://opendatacommunities.org/id/unitary-authority/warrington,FWB,Special Schools Transport,33208,Statemented - Special Unit Pupil Transpo,300750,06/08/2020,5100436200,594,Raza Taxis,105056
WARRINGTON BOROUGH COUNCIL,http://opendatacommunities.org/id/unitary-authority/warrington,FWB,BCF - Telecare/Sensory,54560,Equipment Purchase & Contract,400000,15/07/2020,5100434464,1560,Redacted for personal data,114604
WARRINGTON BOROUGH COUNCIL,http://opendatacommunities.org/id/unitary-authority/warrington,FWB,BCF - Telecare/Sensory,54560,Equipment Purchase & Contract,400000,03/08/2020,5100435837,1805,Redacted for personal data,114604
WARRINGTON BOROUGH COUNCIL,http://opendatacommunities.org/id/unitary-authority/warrington,FWB,Transport - Adult Social Care,54950,Transport-Snad Cot,300600,04/08/2020,5100435936,1235,Redacted for personal data,103064
WARRINGTON BOROUGH COUNCIL,http://opendatacommunities.org/id/unitary-authority/warrington,ET0,Walton Estate,41430,Resaleables,400600,04/08/2020,5100435953,679,Redacted for personal data,104874
WARRINGTON BOROUGH COUNCIL,http://opendatacommunities.org/id/unitary-authority/warrington,ET0,Facilities Management,41422,Materials,400500,04/08/2020,5100436006,1170,Redacted for personal data,105495
WARRINGTON BOROUGH COUNCIL,http://opendatacommunities.org/id/unitary-authority/warrington,FWB,Special Schools Transport,33208,Statemented - Special Unit Pupil Transpo,300750,05/08/2020,5100436064,988,Redacted for personal data,101021
WARRINGTON BOROUGH COUNCIL,http://opendatacommunities.org/id/unitary-authority/warrington,FWB,Special Schools Transport,33208,Statemented - Special Unit Pupil Transpo,300750,06/08/2020,5100436213,1360,Redacted for personal data,101977
WARRINGTON BOROUGH COUNCIL,http://opendatacommunities.org/id/unitary-authority/warrington,FWB,Transport - Adult Social Care,54950,Transport-Snad Cot,300600,06/08/2020,5100436214,1240,Redacted for personal data,112712
WARRINGTON BOROUGH COUNCIL,http://opendatacommunities.org/id/unitary-authority/warrington,FWB,Special Schools Transport,33208,Statemented - Special Unit Pupil Transpo,300750,06/08/2020,5100436222,1476,Redacted for personal data,102978
WARRINGTON BOROUGH COUNCIL,http://opendatacommunities.org/id/unitary-authority/warrington,FWB,Special Schools Transport,33208,Statemented - Special Unit Pupil Transpo,300750,06/08/2020,5100436233,1250,Redacted for personal data,117345
WARRINGTON BOROUGH COUNCIL,http://opendatacommunities.org/id/unitary-authority/warrington,FWB,Transport - Adult Social Care,54950,Transport-Snad Cot,300600,06/08/2020,5100436235,1110,Redacted for personal data,103064
WARRINGTON BOROUGH COUNCIL,http://opendatacommunities.org/id/unitary-authority/warrington,ET0,Woolston Depot,41331,Annual Maintenance,442100,07/08/2020,5100436332,842,Redacted for personal data,105951
WARRINGTON BOROUGH COUNCIL,http://opendatacommunities.org/id/unitary-authority/warrington,FWB,Transport - Adult Social Care,54950,Transport-Snad Cot,300600,10/08/2020,5100436536,644,Redacted for personal data,104639
WARRINGTON BOROUGH COUNCIL,http://opendatacommunities.org/id/unitary-authority/warrington,FWB,Special Schools Transport,33208,Statemented - Special Unit Pupil Transpo,300750,10/08/2020,5100436549,1980,Redacted for personal data,116267
WARRINGTON BOROUGH COUNCIL,http://opendatacommunities.org/id/unitary-authority/warrington,FWB,Special Schools Transport,33208,Statemented - Special Unit Pupil Transpo,300750,10/08/2020,5100436551,1890,Redacted for personal data,116267
WARRINGTON BOROUGH COUNCIL,http://opendatacommunities.org/id/unitary-authority/warrington,FWB,Transport - Adult Social Care,54950,Transport-Snad Cot,300600,11/08/2020,5100436662,2050,Redacted for personal data,104639
WARRINGTON BOROUGH COUNCIL,http://opendatacommunities.org/id/unitary-authority/warrington,FWB,Transport - Adult Social Care,54950,Transport-Snad Cot,300600,11/08/2020,5100436663,4788,Redacted for personal data,104639
WARRINGTON BOROUGH COUNCIL,http://opendatacommunities.org/id/unitary-authority/warrington,FWB,Special Schools Transport,33208,Statemented - Special Unit Pupil Transpo,300750,27/08/2020,5100437855,1430,Redacted for personal data,116267
WARRINGTON BOROUGH COUNCIL,http://opendatacommunities.org/id/unitary-authority/warrington,FWB,Permanence staff teams,31021,Transport SLA,300400,27/08/2020,5100437856,1170,Redacted for personal data,116267
WARRINGTON BOROUGH COUNCIL,http://opendatacommunities.org/id/unitary-authority/warrington,FWB,Special Schools Transport,33208,Statemented - Special Unit Pupil Transpo,300750,06/08/2020,5100436192,1840,Regal Travel,102002
WARRINGTON BOROUGH COUNCIL,http://opendatacommunities.org/id/unitary-authority/warrington,FWB,Special Schools Transport,33208,Statemented - Special Unit Pupil Transpo,300750,06/08/2020,5100436191,1231.65,Rixton Travel Services,116154
WARRINGTON BOROUGH COUNCIL,http://opendatacommunities.org/id/unitary-authority/warrington,NEO,Neighbourhood & Community Other,83002,Consult.& Prof. Serv,440000,03/08/2020,5100435875,1297.74,RLF Building Futures,114974
WARRINGTON BOROUGH COUNCIL,http://opendatacommunities.org/id/unitary-authority/warrington,NEO,Neighbourhood & Community Other,83002,Consult.& Prof. Serv,440000,03/08/2020,5100435876,2482.45,RLF Building Futures,114974
WARRINGTON BOROUGH COUNCIL,http://opendatacommunities.org/id/unitary-authority/warrington,NEO,Neighbourhood & Community Other,83002,Consult.& Prof. Serv,440000,17/08/2020,5100435877,2411.89,RLF Building Futures,114974
WARRINGTON BOROUGH COUNCIL,http://opendatacommunities.org/id/unitary-authority/warrington,IGO,Property & Estates,86001,Consult.& Prof. Serv,440000,11/08/2020,5100430552,4480,Rodgers Leask Limited,117564
WARRINGTON BOROUGH COUNCIL,http://opendatacommunities.org/id/unitary-authority/warrington,FWB,Supporting People Contracts,53260,Risk of Homelessness and Floating Suppor,535100,31/07/2020,5100435704,16083.33,Room at the Inn and The Y Project,440065
WARRINGTON BOROUGH COUNCIL,http://opendatacommunities.org/id/unitary-authority/warrington,ET0,Recreation & Games,41431,Equipment Purchase & Contract,400000,05/08/2020,5100436116,1069.96,Safeguard Nw Ltd,105412
WARRINGTON BOROUGH COUNCIL,http://opendatacommunities.org/id/unitary-authority/warrington,RSC,IT - Contracts,23600,Computer Software - Maintenance,450850,03/08/2020,5100435880,2348.85,SAP UK Ltd,111556
WARRINGTON BOROUGH COUNCIL,http://opendatacommunities.org/id/unitary-authority/warrington,ET0,Street Lighting Contractor,44240,Materials,400500,14/08/2020,5100437033,1013.07,Scottish Power,101711
WARRINGTON BOROUGH COUNCIL,http://opendatacommunities.org/id/unitary-authority/warrington,FWB,DSG Independent School Fees,32011,Fees (Including Agents Fees),441450,16/07/2020,5100434587,4742.98,Seashell Trust,103082
WARRINGTON BOROUGH COUNCIL,http://opendatacommunities.org/id/unitary-authority/warrington,DG0,Site Management,43530,Security Systems,250000,04/08/2020,5100435990,672,Sentry Security Ltd,103829
WARRINGTON BOROUGH COUNCIL,http://opendatacommunities.org/id/unitary-authority/warrington,COR,Redevelopment Sites,43580,Security Systems,250000,10/08/2020,5100436568,4200,Sentry Security Ltd,103829
WARRINGTON BOROUGH COUNCIL,http://opendatacommunities.org/id/unitary-authority/warrington,FWB,DSG Inter Authority Recoupment,32009,Fees (Including Agents Fees),441450,15/07/2020,5100434140,1000,Shevington High School,400622
WARRINGTON BOROUGH COUNCIL,http://opendatacommunities.org/id/unitary-authority/warrington,ET0,Cemeteries,41410,Equipment Purchase & Contract,400000,16/07/2020,5100434616,962,Siemens Financial Services Ltd,101880
WARRINGTON BOROUGH COUNCIL,http://opendatacommunities.org/id/unitary-authority/warrington,ET0,Urban Traffic Management Control,44370,Signal Equipment,531650,24/08/2020,5100434355,15917.32,Siemens PLC,101162
WARRINGTON BOROUGH COUNCIL,http://opendatacommunities.org/id/unitary-authority/warrington,ET0,Urban Traffic Management Control,44370,Signal Equipment,531650,28/07/2020,5100435461,837.87,Siemens PLC,101162
WARRINGTON BOROUGH COUNCIL,http://opendatacommunities.org/id/unitary-authority/warrington,ET0,Urban Traffic Management Control,44370,Signal Equipment,531650,28/07/2020,5100435462,516.46,Siemens PLC,101162
WARRINGTON BOROUGH COUNCIL,http://opendatacommunities.org/id/unitary-authority/warrington,ET0,Urban Traffic Management Control,44370,Signal Equipment,531650,28/07/2020,5100435492,14128.76,Siemens PLC,101162
WARRINGTON BOROUGH COUNCIL,http://opendatacommunities.org/id/unitary-authority/warrington,ENO,Highways Other,82005,Environmental Works,531050,19/08/2020,5100437427,558.58,Siemens PLC,101162
WARRINGTON BOROUGH COUNCIL,http://opendatacommunities.org/id/unitary-authority/warrington,FWB,Special Schools Transport,33208,Statemented - Special Unit Pupil Transpo,300750,06/08/2020,5100436206,1326,Silver Executive Travel,102638
WARRINGTON BOROUGH COUNCIL,http://opendatacommunities.org/id/unitary-authority/warrington,RSC,ICT Centralised Budget,23100,Computer Software - Maintenance,450850,20/08/2020,5100437482,6164.04,Siteimprove Ltd,102011
WARRINGTON BOROUGH COUNCIL,http://opendatacommunities.org/id/unitary-authority/warrington,RSC,ICT Centralised Budget,23100,Computer Software - Maintenance,450850,20/08/2020,5100437484,6164.04,Siteimprove Ltd,102011
WARRINGTON BOROUGH COUNCIL,http://opendatacommunities.org/id/unitary-authority/warrington,ET0,Construction Stores Overhead Account,41320,Equipment Purchase & Contract,400000,17/08/2020,5100436913,6580,Smith Bros (Caer Conan) Wh'Sale Ltd,105136
WARRINGTON BOROUGH COUNCIL,http://opendatacommunities.org/id/unitary-authority/warrington,RSC,IT - Contracts,23600,Computer Software - Maintenance,450850,06/07/2020,5100433251,40676.58,Softcat,109539
WARRINGTON BOROUGH COUNCIL,http://opendatacommunities.org/id/unitary-authority/warrington,RSC,IT - Contracts,23600,Computer Software - Maintenance,450850,06/07/2020,5100433251,7072.36,Softcat,109539
WARRINGTON BOROUGH COUNCIL,http://opendatacommunities.org/id/unitary-authority/warrington,RSC,Transformation Team,52210,Computer Software - Maintenance,450850,06/07/2020,5100433251,3536.18,Softcat,109539
WARRINGTON BOROUGH COUNCIL,http://opendatacommunities.org/id/unitary-authority/warrington,RSC,IT - Contracts,23600,Computer Software - Maintenance,450850,10/07/2020,5100433963,1039.5,Softcat,109539
WARRINGTON BOROUGH COUNCIL,http://opendatacommunities.org/id/unitary-authority/warrington,RSC,IT - Contracts,23600,Computer Software - Maintenance,450850,20/07/2020,5100434841,62840.66,Softcat,109539
WARRINGTON BOROUGH COUNCIL,http://opendatacommunities.org/id/unitary-authority/warrington,ET0,Transport Holding Account,41311,Vehicle Hire Charges,320000,10/08/2020,5100436569,630,Spectrum Plant Ltd,112947
WARRINGTON BOROUGH COUNCIL,http://opendatacommunities.org/id/unitary-authority/warrington,ET0,Transport Holding Account,41311,Vehicle Hire Charges,320000,10/08/2020,5100436572,856.47,Spectrum Plant Ltd,112947
WARRINGTON BOROUGH COUNCIL,http://opendatacommunities.org/id/unitary-authority/warrington,ET0,Transport Holding Account,41311,Vehicle Hire Charges,320000,10/08/2020,5100436573,1439.88,Spectrum Plant Ltd,112947
WARRINGTON BOROUGH COUNCIL,http://opendatacommunities.org/id/unitary-authority/warrington,FWB,Contracts - SM Commissioning Team 1,55910,Public Health Contract Payments,540000,28/07/2020,5100435495,744,Springfields Medical Centre,111972
WARRINGTON BOROUGH COUNCIL,http://opendatacommunities.org/id/unitary-authority/warrington,FWB,Contracts - SM Commissioning Team 1,55910,Public Health Contract Payments,540000,28/07/2020,5100435495,882.75,Springfields Medical Centre,111972
WARRINGTON BOROUGH COUNCIL,http://opendatacommunities.org/id/unitary-authority/warrington,PIO,People & Improvement Other,85002,Lifts from Stock,400850,04/08/2020,5100435993,3784.76,St Helens Mobility Shop Ltd,117629
WARRINGTON BOROUGH COUNCIL,http://opendatacommunities.org/id/unitary-authority/warrington,RSC,Civic,11440,"Campaigns,  Projects and Events",491950,04/09/2019,5100403252,675,St John Ambulance,105098
WARRINGTON BOROUGH COUNCIL,http://opendatacommunities.org/id/unitary-authority/warrington,COR,Other Commercial Prop.,43560,Consult.& Prof. Serv,440000,04/08/2020,5100435994,550,Staincliffe Jones Ltd,116865
WARRINGTON BOROUGH COUNCIL,http://opendatacommunities.org/id/unitary-authority/warrington,ET0,Transport Holding Account,41311,Petrol,300050,20/07/2020,5100434862,1816.4,Standard Fuel Oils Ltd,117478
WARRINGTON BOROUGH COUNCIL,http://opendatacommunities.org/id/unitary-authority/warrington,ET0,Transport Holding Account,41311,Diesel,300100,20/07/2020,5100434863,18049.43,Standard Fuel Oils Ltd,117478
WARRINGTON BOROUGH COUNCIL,http://opendatacommunities.org/id/unitary-authority/warrington,ET0,Transport Holding Account,41311,Oil - Gas,301250,10/08/2020,5100435412,1104.19,Standard Fuel Oils Ltd,117478
WARRINGTON BOROUGH COUNCIL,http://opendatacommunities.org/id/unitary-authority/warrington,ET0,Transport Holding Account,41311,Diesel,300100,04/08/2020,5100435996,18123.25,Standard Fuel Oils Ltd,117478
WARRINGTON BOROUGH COUNCIL,http://opendatacommunities.org/id/unitary-authority/warrington,ET0,Bus Interchange,44460,Security Systems,250000,11/08/2020,5100436741,6297.48,Step up Security Ltd,116851
WARRINGTON BOROUGH COUNCIL,http://opendatacommunities.org/id/unitary-authority/warrington,FWB,Permanence Team,31100,Transport SLA,300400,06/08/2020,5100436205,1530,Stephen Clarke Private Hire,117512
WARRINGTON BOROUGH COUNCIL,http://opendatacommunities.org/id/unitary-authority/warrington,DG0,Building Maintenance,43220,Consult.& Prof. Serv,440000,10/08/2020,5100436617,1710,Steve Hunt Partnership,104802
WARRINGTON BOROUGH COUNCIL,http://opendatacommunities.org/id/unitary-authority/warrington,FWB,Transport - Adult Social Care,54950,Stationery,430150,10/08/2020,5100436566,950,Stirton's Wheels,103536
WARRINGTON BOROUGH COUNCIL,http://opendatacommunities.org/id/unitary-authority/warrington,FWB,Contracts - SM Commissioning Team 1,55910,Public Health Contract Payments,540000,04/08/2020,5100435997,1524.75,Stockton Heath Medical Centre,101362
WARRINGTON BOROUGH COUNCIL,http://opendatacommunities.org/id/unitary-authority/warrington,DG0,Pyramid Art Centre,45125,Maintenance of Plant & Machinery,250050,28/07/2020,5100435497,4290,Structura UK Ltd,117456
WARRINGTON BOROUGH COUNCIL,http://opendatacommunities.org/id/unitary-authority/warrington,RSC,One - Off ICT Costs,23200,Consult.& Prof. Serv,440000,05/08/2020,5100436106,1750,Sunrise Software Limited,103717
WARRINGTON BOROUGH COUNCIL,http://opendatacommunities.org/id/unitary-authority/warrington,FWB,Special Schools Transport,33208,Statemented - Special Unit Pupil Transpo,300750,06/08/2020,5100436204,1488,Superior Travel,113595
WARRINGTON BOROUGH COUNCIL,http://opendatacommunities.org/id/unitary-authority/warrington,NEO,Neighbourhood & Community Other,83002,Consult.& Prof. Serv,440000,20/07/2020,5100434844,167069.6,Support in Sport Ltd,117010
WARRINGTON BOROUGH COUNCIL,http://opendatacommunities.org/id/unitary-authority/warrington,FWB,Transport - Adult Social Care,54950,Transport-Snad Cot,300600,06/08/2020,5100436201,2000,Sure & Safe Minibus Service Ltd,100137
WARRINGTON BOROUGH COUNCIL,http://opendatacommunities.org/id/unitary-authority/warrington,FWB,Special Schools Transport,33208,Statemented - Special Unit Pupil Transpo,300750,06/08/2020,5100436202,4325,Sure & Safe Minibus Service Ltd,100137
WARRINGTON BOROUGH COUNCIL,http://opendatacommunities.org/id/unitary-authority/warrington,FWB,Special Schools Transport,33208,Statemented - Special Unit Pupil Transpo,300750,06/08/2020,5100436203,2742.4,Sure & Safe Minibus Service Ltd,100137
WARRINGTON BOROUGH COUNCIL,http://opendatacommunities.org/id/unitary-authority/warrington,COR,Markets,43711,Equipment Purchase & Contract,400000,19/08/2020,5100437419,600,Surf & Turf Instant Shelters,111914
WARRINGTON BOROUGH COUNCIL,http://opendatacommunities.org/id/unitary-authority/warrington,ET0,Special Projects,44520,Licences,492000,17/08/2020,5100436489,1885,SystemsLink 2000 ltd,105904
WARRINGTON BOROUGH COUNCIL,http://opendatacommunities.org/id/unitary-authority/warrington,ENO,Highways LTP,82004,Transport - Covid 19,399919,04/08/2020,5100435999,4950,Tarmac,100489
WARRINGTON BOROUGH COUNCIL,http://opendatacommunities.org/id/unitary-authority/warrington,ENO,Highways Other,82005,Carriageway-Resurfacing,532250,07/08/2020,5100436326,198552.88,Tarmac,100489
WARRINGTON BOROUGH COUNCIL,http://opendatacommunities.org/id/unitary-authority/warrington,ENO,Highways Other,82005,Carriageway-Resurfacing,532250,07/08/2020,5100436327,101875.03,Tarmac,100489
WARRINGTON BOROUGH COUNCIL,http://opendatacommunities.org/id/unitary-authority/warrington,ENO,Highways Other,82005,Carriageway-Resurfacing,532250,07/08/2020,5100436328,61482.26,Tarmac,100489
WARRINGTON BOROUGH COUNCIL,http://opendatacommunities.org/id/unitary-authority/warrington,ENO,Highways S106,82003,Traffic Section,531150,24/08/2020,5100437676,1500.11,Tarmac,100489
WARRINGTON BOROUGH COUNCIL,http://opendatacommunities.org/id/unitary-authority/warrington,ENO,Highways S106,82003,Traffic Section,531150,24/08/2020,5100437676,811.94,Tarmac,100489
WARRINGTON BOROUGH COUNCIL,http://opendatacommunities.org/id/unitary-authority/warrington,ET0,Traffic and Safety,44350,Traffic Counting,442300,24/08/2020,5100437677,518.24,Tarmac,100489
WARRINGTON BOROUGH COUNCIL,http://opendatacommunities.org/id/unitary-authority/warrington,ET0,Traffic and Safety,44350,Permanent Traffic Regulation Orders,442350,24/08/2020,5100437677,3316.58,Tarmac,100489
WARRINGTON BOROUGH COUNCIL,http://opendatacommunities.org/id/unitary-authority/warrington,ENO,Highways LTP,82004,Traffic Section,531150,24/08/2020,5100437677,3265.13,Tarmac,100489
WARRINGTON BOROUGH COUNCIL,http://opendatacommunities.org/id/unitary-authority/warrington,ET0,Traffic and Safety,44350,Unlit Signs,531200,24/08/2020,5100437677,812.06,Tarmac,100489
WARRINGTON BOROUGH COUNCIL,http://opendatacommunities.org/id/unitary-authority/warrington,ENO,Highways LTP,82004,Traffic Section,531150,24/08/2020,5100437679,8994.65,Tarmac,100489
WARRINGTON BOROUGH COUNCIL,http://opendatacommunities.org/id/unitary-authority/warrington,ET0,Or Rm C'way & F'way,44260,Fct Cat1,530950,24/08/2020,5100437726,2178.6,Tarmac,100489
WARRINGTON BOROUGH COUNCIL,http://opendatacommunities.org/id/unitary-authority/warrington,ET0,Or Rm C'way & F'way,44260,Clean Repair Drains,531000,24/08/2020,5100437726,1022.81,Tarmac,100489
WARRINGTON BOROUGH COUNCIL,http://opendatacommunities.org/id/unitary-authority/warrington,ET0,Dropped Crossings,44211,Equipment Purchase & Contract,400000,24/08/2020,5100437727,5070.41,Tarmac,100489
WARRINGTON BOROUGH COUNCIL,http://opendatacommunities.org/id/unitary-authority/warrington,ET0,Engineering,44210,Equipment Purchase & Contract,400000,24/08/2020,5100437727,1743.37,Tarmac,100489
WARRINGTON BOROUGH COUNCIL,http://opendatacommunities.org/id/unitary-authority/warrington,ET0,Or Rm C'way & F'way,44260,M.C.R.Flexible Cat1,530850,24/08/2020,5100437727,9714.82,Tarmac,100489
WARRINGTON BOROUGH COUNCIL,http://opendatacommunities.org/id/unitary-authority/warrington,ET0,Or Rm C'way & F'way,44260,Fct Cat1,530950,24/08/2020,5100437727,12775.42,Tarmac,100489
WARRINGTON BOROUGH COUNCIL,http://opendatacommunities.org/id/unitary-authority/warrington,ENO,Highways Other,82005,Patching Cat2,532300,24/08/2020,5100437727,4401.7,Tarmac,100489
WARRINGTON BOROUGH COUNCIL,http://opendatacommunities.org/id/unitary-authority/warrington,ET0,Engineering,44210,Equipment Purchase & Contract,400000,24/08/2020,5100437728,872.35,Tarmac,100489
WARRINGTON BOROUGH COUNCIL,http://opendatacommunities.org/id/unitary-authority/warrington,ET0,Or Rm C'way & F'way,44260,M.C.R.Flexible Cat1,530850,24/08/2020,5100437728,1757.53,Tarmac,100489
WARRINGTON BOROUGH COUNCIL,http://opendatacommunities.org/id/unitary-authority/warrington,ET0,Or Rm C'way & F'way,44260,Fct Cat1,530950,24/08/2020,5100437728,1398.04,Tarmac,100489
WARRINGTON BOROUGH COUNCIL,http://opendatacommunities.org/id/unitary-authority/warrington,ET0,Or Rm C'way & F'way,44260,Clean Repair Drains,531000,24/08/2020,5100437728,2314.95,Tarmac,100489
WARRINGTON BOROUGH COUNCIL,http://opendatacommunities.org/id/unitary-authority/warrington,ET0,Pr Rm C'way & F'way,44261,M.C.R.Flexible Cat1,530850,24/08/2020,5100437729,14045.6,Tarmac,100489
WARRINGTON BOROUGH COUNCIL,http://opendatacommunities.org/id/unitary-authority/warrington,ET0,Engineering,44210,Equipment Purchase & Contract,400000,24/08/2020,5100437730,1821.57,Tarmac,100489
WARRINGTON BOROUGH COUNCIL,http://opendatacommunities.org/id/unitary-authority/warrington,ENO,Highways Other,82005,Patching Cat2,532300,24/08/2020,5100437730,694.66,Tarmac,100489
WARRINGTON BOROUGH COUNCIL,http://opendatacommunities.org/id/unitary-authority/warrington,ET0,Or Rm C'way & F'way,44260,Fees (Including Agents Fees),441450,25/08/2020,5100437801,250000,Tarmac,100489
WARRINGTON BOROUGH COUNCIL,http://opendatacommunities.org/id/unitary-authority/warrington,ET0,Engineering,44210,Equipment Purchase & Contract,400000,25/08/2020,5100437802,1015.73,Tarmac,100489
WARRINGTON BOROUGH COUNCIL,http://opendatacommunities.org/id/unitary-authority/warrington,ET0,Pr Rm C'way & F'way,44261,M.C.R.Flexible Cat1,530850,25/08/2020,5100437802,104057,Tarmac,100489
WARRINGTON BOROUGH COUNCIL,http://opendatacommunities.org/id/unitary-authority/warrington,ET0,Or Rm C'way & F'way,44260,Sign Maint Cat1,531300,25/08/2020,5100437802,1164.95,Tarmac,100489
WARRINGTON BOROUGH COUNCIL,http://opendatacommunities.org/id/unitary-authority/warrington,ET0,Pr Sm Roads,44251,Events on the Highway,531350,25/08/2020,5100437802,22623.6,Tarmac,100489
WARRINGTON BOROUGH COUNCIL,http://opendatacommunities.org/id/unitary-authority/warrington,ET0,Transport Holding Account,41311,Veh Maint. Materials,300000,14/08/2020,5100437035,787.06,Terberg Matec Uk Ltd,105173
WARRINGTON BOROUGH COUNCIL,http://opendatacommunities.org/id/unitary-authority/warrington,FWB,DSG Independent School Fees,32011,Fees (Including Agents Fees),441450,17/08/2020,5100437293,14675.67,The Cambian Group,113122
WARRINGTON BOROUGH COUNCIL,http://opendatacommunities.org/id/unitary-authority/warrington,FWB,DSG Independent School Fees,32011,Fees (Including Agents Fees),441450,17/08/2020,5100437294,6633.33,The Cambian Group,113122
WARRINGTON BOROUGH COUNCIL,http://opendatacommunities.org/id/unitary-authority/warrington,RSC,Business Intelligence,12300,Subscriptions,470000,16/07/2020,5100434517,795,The Consultation Institute,116071
WARRINGTON BOROUGH COUNCIL,http://opendatacommunities.org/id/unitary-authority/warrington,ET0,Waste Disposal,41830,Diverted Waste,530550,14/08/2020,5100437072,1170.78,The Greener Gardening Company,104283
WARRINGTON BOROUGH COUNCIL,http://opendatacommunities.org/id/unitary-authority/warrington,ET0,Waste Recycling,41820,Green Waste Treatment,530800,14/08/2020,5100437073,28419.06,The Greener Gardening Company,104283
WARRINGTON BOROUGH COUNCIL,http://opendatacommunities.org/id/unitary-authority/warrington,ET0,Waste Recycling,41820,Green Waste Treatment,530800,14/08/2020,5100437074,4151.12,The Greener Gardening Company,104283
WARRINGTON BOROUGH COUNCIL,http://opendatacommunities.org/id/unitary-authority/warrington,ET0,Waste Disposal,41830,Diverted Waste,530550,14/08/2020,5100437075,1250,The Greener Gardening Company,104283
WARRINGTON BOROUGH COUNCIL,http://opendatacommunities.org/id/unitary-authority/warrington,FWB,DSG Post-16 Special Educational Needs,32309,Fees (Including Agents Fees),441450,10/08/2020,5100435623,8151.54,The Manchester College,400147
WARRINGTON BOROUGH COUNCIL,http://opendatacommunities.org/id/unitary-authority/warrington,COR,Markets,43711,"Campaigns,  Projects and Events",491950,16/07/2020,5100434578,660,The Modern World,117583
WARRINGTON BOROUGH COUNCIL,http://opendatacommunities.org/id/unitary-authority/warrington,COR,Markets,43711,"Campaigns,  Projects and Events",491950,16/07/2020,5100434580,720,The Modern World,117583
WARRINGTON BOROUGH COUNCIL,http://opendatacommunities.org/id/unitary-authority/warrington,FWB,Homelessness,43650,Emergency Accommodation Allowance,550500,04/08/2020,5100435969,868.57,The Patten Arms Hotel,115465
WARRINGTON BOROUGH COUNCIL,http://opendatacommunities.org/id/unitary-authority/warrington,FWB,Homelessness,43650,Emergency Accommodation Allowance,550500,04/08/2020,5100435971,1152.38,The Patten Arms Hotel,115465
WARRINGTON BOROUGH COUNCIL,http://opendatacommunities.org/id/unitary-authority/warrington,FWB,Homelessness,43650,Emergency Accommodation Allowance,550500,10/08/2020,5100436574,1599.05,The Patten Arms Hotel,115465
WARRINGTON BOROUGH COUNCIL,http://opendatacommunities.org/id/unitary-authority/warrington,FWB,Homelessness,43650,Emergency Accommodation Allowance,550500,10/08/2020,5100436575,2931.43,The Patten Arms Hotel,115465
WARRINGTON BOROUGH COUNCIL,http://opendatacommunities.org/id/unitary-authority/warrington,FWB,Homelessness,43650,Emergency Accommodation Allowance,550500,14/08/2020,5100437100,601.67,The Patten Arms Hotel,115465
WARRINGTON BOROUGH COUNCIL,http://opendatacommunities.org/id/unitary-authority/warrington,FWB,Homelessness,43650,Supplies & Services - Covid 19,499919,14/08/2020,5100437106,570,The Patten Arms Hotel,115465
WARRINGTON BOROUGH COUNCIL,http://opendatacommunities.org/id/unitary-authority/warrington,FWB,Homelessness,43650,Emergency Accommodation Allowance,550500,14/08/2020,5100437116,832.38,The Patten Arms Hotel,115465
WARRINGTON BOROUGH COUNCIL,http://opendatacommunities.org/id/unitary-authority/warrington,FWB,DSG Independent School Fees,32011,Fees (Including Agents Fees),441450,12/08/2020,5100434589,18822.26,The Priory,101736
WARRINGTON BOROUGH COUNCIL,http://opendatacommunities.org/id/unitary-authority/warrington,FWB,DSG Independent School Fees,32011,Fees (Including Agents Fees),441450,12/08/2020,5100436907,3141.44,The Royal School For The Blind,400046
WARRINGTON BOROUGH COUNCIL,http://opendatacommunities.org/id/unitary-authority/warrington,FWB,DSG Post-16 Special Educational Needs,32309,Fees (Including Agents Fees),441450,17/08/2020,5100437282,3228.34,The Royal School For The Blind,400046
WARRINGTON BOROUGH COUNCIL,http://opendatacommunities.org/id/unitary-authority/warrington,FWB,DSG Post-16 Special Educational Needs,32309,Materials,400500,17/08/2020,5100437283,2074.05,The Royal School For The Blind,400046
WARRINGTON BOROUGH COUNCIL,http://opendatacommunities.org/id/unitary-authority/warrington,FWB,DSG Independent School Fees,32011,Fees (Including Agents Fees),441450,17/08/2020,5100437298,3214.32,The Royal School For The Blind,400046
WARRINGTON BOROUGH COUNCIL,http://opendatacommunities.org/id/unitary-authority/warrington,FWB,Supporting People Contracts,53260,Risk of Homelessness and Floating Suppor,535100,31/07/2020,5100435699,24791.17,The Salvation Army,105105
WARRINGTON BOROUGH COUNCIL,http://opendatacommunities.org/id/unitary-authority/warrington,ET0,Construction Stores Overhead Account,41320,Materials,400500,25/08/2020,5100437785,1128,Thorne & Derrick (Northern),100201
WARRINGTON BOROUGH COUNCIL,http://opendatacommunities.org/id/unitary-authority/warrington,PIO,People & Improvement Other,85002,Lifts from Stock,400850,03/08/2020,5100435885,1125,ThyssenKrupp Encasa Ltd,105382
WARRINGTON BOROUGH COUNCIL,http://opendatacommunities.org/id/unitary-authority/warrington,FWB,BCF - Equipment Store,54930,Annual Maintenance,442100,04/08/2020,5100436008,996,ThyssenKrupp Encasa Ltd,105382
WARRINGTON BOROUGH COUNCIL,http://opendatacommunities.org/id/unitary-authority/warrington,PIO,People & Improvement Other,85002,Lifts from Stock,400850,05/08/2020,5100436101,3265,ThyssenKrupp Encasa Ltd,105382
WARRINGTON BOROUGH COUNCIL,http://opendatacommunities.org/id/unitary-authority/warrington,PIO,People & Improvement Other,85002,Lifts from Stock,400850,12/08/2020,5100436825,3265,ThyssenKrupp Encasa Ltd,105382
WARRINGTON BOROUGH COUNCIL,http://opendatacommunities.org/id/unitary-authority/warrington,PIO,People & Improvement Other,85002,Lifts from Stock,400850,12/08/2020,5100436926,2310,ThyssenKrupp Encasa Ltd,105382
WARRINGTON BOROUGH COUNCIL,http://opendatacommunities.org/id/unitary-authority/warrington,PIO,People & Improvement Other,85002,Lifts from Stock,400850,12/08/2020,5100436927,2480,ThyssenKrupp Encasa Ltd,105382
WARRINGTON BOROUGH COUNCIL,http://opendatacommunities.org/id/unitary-authority/warrington,PIO,People & Improvement Other,85002,Lifts from Stock,400850,17/08/2020,5100437310,2480,ThyssenKrupp Encasa Ltd,105382
WARRINGTON BOROUGH COUNCIL,http://opendatacommunities.org/id/unitary-authority/warrington,FWB,Children with Disabilities,31005,Transport SLA,300400,06/08/2020,5100436215,780,Tip Top Travel,113174
WARRINGTON BOROUGH COUNCIL,http://opendatacommunities.org/id/unitary-authority/warrington,ENO,Priority Infrastructure,82009,Consult.& Prof. Serv,440000,24/08/2020,5100436619,667,TLT Solicitors,115669
WARRINGTON BOROUGH COUNCIL,http://opendatacommunities.org/id/unitary-authority/warrington,ET0,Traffic and Safety,44350,Traffic Section,531150,18/08/2020,5100433264,2474.55,TMP UK Ltd,108498
WARRINGTON BOROUGH COUNCIL,http://opendatacommunities.org/id/unitary-authority/warrington,DG0,Development Control,43430,Periodicals & Publ.,430250,14/07/2020,5100434361,675.1,TMP UK Ltd,108498
WARRINGTON BOROUGH COUNCIL,http://opendatacommunities.org/id/unitary-authority/warrington,ENO,Priority Infrastructure,82009,Environmental Works,531050,04/08/2020,5100435485,543.98,TMP UK Ltd,108498
WARRINGTON BOROUGH COUNCIL,http://opendatacommunities.org/id/unitary-authority/warrington,DG0,Development Control,43430,Periodicals & Publ.,430250,04/08/2020,5100436031,505.74,TMP UK Ltd,108498
WARRINGTON BOROUGH COUNCIL,http://opendatacommunities.org/id/unitary-authority/warrington,FWB,DSG Post-16 Special Educational Needs,32309,Fees (Including Agents Fees),441450,20/08/2020,5100437438,4120.8,Trafford Mbc,440157
WARRINGTON BOROUGH COUNCIL,http://opendatacommunities.org/id/unitary-authority/warrington,FWB,DSG Independent School Fees,32011,Fees (Including Agents Fees),441450,25/08/2020,5100437810,3245,TSOM Mentoring,117565
WARRINGTON BOROUGH COUNCIL,http://opendatacommunities.org/id/unitary-authority/warrington,FWB,BCF - Telecare/Sensory,54560,Equipment Purchase & Contract,400000,03/08/2020,5100435823,2180,Tunstall Healthcare UK Ltd,105427
WARRINGTON BOROUGH COUNCIL,http://opendatacommunities.org/id/unitary-authority/warrington,FWB,BCF - Telecare/Sensory,54560,Equipment Purchase & Contract,400000,11/08/2020,5100436745,1400,Tunstall Healthcare UK Ltd,105427
WARRINGTON BOROUGH COUNCIL,http://opendatacommunities.org/id/unitary-authority/warrington,FWB,Care Call,54550,Equipment Purchase & Contract,400000,11/08/2020,5100436746,1990,Tunstall Healthcare UK Ltd,105427
WARRINGTON BOROUGH COUNCIL,http://opendatacommunities.org/id/unitary-authority/warrington,FWB,Care Call,54550,ICT Comms - Device Maintenance,450450,13/08/2020,5100436998,5952.73,Tunstall Healthcare UK Ltd,105427
WARRINGTON BOROUGH COUNCIL,http://opendatacommunities.org/id/unitary-authority/warrington,FWB,Care Call,54550,ICT Comms - Device Maintenance,450450,13/08/2020,5100436999,1204.08,Tunstall Healthcare UK Ltd,105427
WARRINGTON BOROUGH COUNCIL,http://opendatacommunities.org/id/unitary-authority/warrington,ET0,Transport Holding Account,41311,Veh Maint. Materials,300000,04/08/2020,5100435476,953.35,Turner Groundscare,105201
WARRINGTON BOROUGH COUNCIL,http://opendatacommunities.org/id/unitary-authority/warrington,ET0,Transport Holding Account,41311,Veh Maint. Materials,300000,04/08/2020,5100435477,538.36,Turner Groundscare,105201
WARRINGTON BOROUGH COUNCIL,http://opendatacommunities.org/id/unitary-authority/warrington,COR,Hatters Row,43710,Security Systems,250000,14/08/2020,5100437095,3250.29,Uniqwin UK,105210
WARRINGTON BOROUGH COUNCIL,http://opendatacommunities.org/id/unitary-authority/warrington,ENO,Priority Infrastructure,82009,Environmental Works,531050,10/08/2020,5100435889,34254.27,United Utilities,101629
WARRINGTON BOROUGH COUNCIL,http://opendatacommunities.org/id/unitary-authority/warrington,ET0,Transport Holding Account,41311,Annual Maintenance,442100,04/08/2020,5100432481,789.72,V L Test Systems Limited,107119
WARRINGTON BOROUGH COUNCIL,http://opendatacommunities.org/id/unitary-authority/warrington,ENP,Environment & Regeneration,82000,Building Work,200850,20/08/2020,5100437437,406176,Vinci Construction UK Ltd,108760
WARRINGTON BOROUGH COUNCIL,http://opendatacommunities.org/id/unitary-authority/warrington,ENP,Environment & Regeneration,82000,Building Work,200850,26/08/2020,5100437846,196315,Vinci Construction UK Ltd,108760
WARRINGTON BOROUGH COUNCIL,http://opendatacommunities.org/id/unitary-authority/warrington,ET0,Waste Disposal,41830,Residual Waste Disposal,530500,20/07/2020,5100433822,15760.7,VIRIDOR WASTE MANAGEMENT,117566
WARRINGTON BOROUGH COUNCIL,http://opendatacommunities.org/id/unitary-authority/warrington,ET0,Waste Disposal,41830,Residual Waste Disposal,530500,14/07/2020,5100434383,103351.1,VIRIDOR WASTE MANAGEMENT,117566
WARRINGTON BOROUGH COUNCIL,http://opendatacommunities.org/id/unitary-authority/warrington,ET0,Waste Disposal,41830,Residual Waste Disposal,530500,20/07/2020,5100434797,10389.72,VIRIDOR WASTE MANAGEMENT,117566
WARRINGTON BOROUGH COUNCIL,http://opendatacommunities.org/id/unitary-authority/warrington,ET0,Waste Disposal,41830,Residual Waste Disposal,530500,28/07/2020,5100435455,116826.93,VIRIDOR WASTE MANAGEMENT,117566
WARRINGTON BOROUGH COUNCIL,http://opendatacommunities.org/id/unitary-authority/warrington,ET0,Waste Disposal,41830,Residual Waste Disposal,530500,10/08/2020,5100436016,22577.98,VIRIDOR WASTE MANAGEMENT,117566
WARRINGTON BOROUGH COUNCIL,http://opendatacommunities.org/id/unitary-authority/warrington,ET0,Waste Disposal,41830,Residual Waste Disposal,530500,07/08/2020,5100436320,84361.73,VIRIDOR WASTE MANAGEMENT,117566
WARRINGTON BOROUGH COUNCIL,http://opendatacommunities.org/id/unitary-authority/warrington,ET0,Crematorium,41411,Grounds Maintenance - External,280000,13/08/2020,5100437017,580.56,Vivedia Ltd,116354
WARRINGTON BOROUGH COUNCIL,http://opendatacommunities.org/id/unitary-authority/warrington,ET0,Crematorium,41411,Grounds Maintenance - External,280000,13/08/2020,5100437018,5736,Vivedia Ltd,116354
WARRINGTON BOROUGH COUNCIL,http://opendatacommunities.org/id/unitary-authority/warrington,ET0,Crematorium,41411,Grounds Maintenance - External,280000,13/08/2020,5100437018,780,Vivedia Ltd,116354
WARRINGTON BOROUGH COUNCIL,http://opendatacommunities.org/id/unitary-authority/warrington,ET0,Crematorium,41411,Grounds Maintenance - External,280000,13/08/2020,5100437019,540,Vivedia Ltd,116354
WARRINGTON BOROUGH COUNCIL,http://opendatacommunities.org/id/unitary-authority/warrington,FWB,Catalyst Choices,54495,CP ExternalOther Exp,440800,01/08/2020,5100435710,30000,Walton Lea Project,102953
WARRINGTON BOROUGH COUNCIL,http://opendatacommunities.org/id/unitary-authority/warrington,ET0,Transport Holding Account,41311,Veh Maint. Materials,300000,27/08/2020,5100437909,542.83,Walton Summit Truck Centre Ltd,112806
WARRINGTON BOROUGH COUNCIL,http://opendatacommunities.org/id/unitary-authority/warrington,FWB,Home to School Transport,33210,Mainstream Pupil Transport,300800,11/08/2020,5100436660,960,Warrington Borough Transport Ltd,105226
WARRINGTON BOROUGH COUNCIL,http://opendatacommunities.org/id/unitary-authority/warrington,ET0,Local Bus Contracts,44430,Payments To Operator,530150,12/08/2020,5100436885,4810,Warrington Borough Transport Ltd,105226
WARRINGTON BOROUGH COUNCIL,http://opendatacommunities.org/id/unitary-authority/warrington,ET0,Local Bus Contracts,44430,Payments To Operator,530150,12/08/2020,5100436887,1697.41,Warrington Borough Transport Ltd,105226
WARRINGTON BOROUGH COUNCIL,http://opendatacommunities.org/id/unitary-authority/warrington,ET0,Local Bus Contracts,44430,Payments To Operator,530150,12/08/2020,5100436889,1512.5,Warrington Borough Transport Ltd,105226
WARRINGTON BOROUGH COUNCIL,http://opendatacommunities.org/id/unitary-authority/warrington,ET0,Local Bus Contracts,44430,Payments To Operator,530150,12/08/2020,5100436891,4083.33,Warrington Borough Transport Ltd,105226
WARRINGTON BOROUGH COUNCIL,http://opendatacommunities.org/id/unitary-authority/warrington,ET0,Local Bus Contracts,44430,Payments To Operator,530150,12/08/2020,5100436892,2500,Warrington Borough Transport Ltd,105226
WARRINGTON BOROUGH COUNCIL,http://opendatacommunities.org/id/unitary-authority/warrington,ET0,Local Bus Contracts,44430,Payments To Operator,530150,12/08/2020,5100436893,1887.67,Warrington Borough Transport Ltd,105226
WARRINGTON BOROUGH COUNCIL,http://opendatacommunities.org/id/unitary-authority/warrington,ET0,Local Bus Contracts,44430,Payments To Operator,530150,12/08/2020,5100436895,728.58,Warrington Borough Transport Ltd,105226
WARRINGTON BOROUGH COUNCIL,http://opendatacommunities.org/id/unitary-authority/warrington,ET0,Local Bus Contracts,44430,Payments To Operator,530150,19/08/2020,5100437357,2150.42,Warrington Borough Transport Ltd,105226
WARRINGTON BOROUGH COUNCIL,http://opendatacommunities.org/id/unitary-authority/warrington,ET0,Local Bus Contracts,44430,Payments To Operator,530150,19/08/2020,5100437358,883.33,Warrington Borough Transport Ltd,105226
WARRINGTON BOROUGH COUNCIL,http://opendatacommunities.org/id/unitary-authority/warrington,ET0,Local Bus Contracts,44430,Payments To Operator,530150,19/08/2020,5100437359,732.48,Warrington Borough Transport Ltd,105226
WARRINGTON BOROUGH COUNCIL,http://opendatacommunities.org/id/unitary-authority/warrington,FWB,Home to School Transport,33210,Mainstream Pupil Transport,300800,19/08/2020,5100437431,1260,Warrington Borough Transport Ltd,105226
WARRINGTON BOROUGH COUNCIL,http://opendatacommunities.org/id/unitary-authority/warrington,FWB,Special Schools Transport,33208,Statemented - Special Unit Pupil Transpo,300750,04/08/2020,5100435932,1248,Warrington Cars,113774
WARRINGTON BOROUGH COUNCIL,http://opendatacommunities.org/id/unitary-authority/warrington,FWB,Children with Disabilities,31005,Transport SLA,300400,04/08/2020,5100435933,2560,Warrington Cars,113774
WARRINGTON BOROUGH COUNCIL,http://opendatacommunities.org/id/unitary-authority/warrington,FWB,Special Schools Transport,33208,Statemented - Special Unit Pupil Transpo,300750,04/08/2020,5100435935,1033.5,Warrington Cars,113774
WARRINGTON BOROUGH COUNCIL,http://opendatacommunities.org/id/unitary-authority/warrington,FWB,Special Schools Transport,33208,Statemented - Special Unit Pupil Transpo,300750,04/08/2020,5100436050,1820,Warrington Cars,113774
WARRINGTON BOROUGH COUNCIL,http://opendatacommunities.org/id/unitary-authority/warrington,FWB,Special Schools Transport,33208,Statemented - Special Unit Pupil Transpo,300750,04/08/2020,5100436052,1584,Warrington Cars,113774
WARRINGTON BOROUGH COUNCIL,http://opendatacommunities.org/id/unitary-authority/warrington,FWB,Transport - Adult Social Care,54950,Transport-Snad Cot,300600,04/08/2020,5100436053,840,Warrington Cars,113774
WARRINGTON BOROUGH COUNCIL,http://opendatacommunities.org/id/unitary-authority/warrington,FWB,Transport - Adult Social Care,54950,Transport-Snad Cot,300600,06/08/2020,5100436147,960,Warrington Cars,113774
WARRINGTON BOROUGH COUNCIL,http://opendatacommunities.org/id/unitary-authority/warrington,FWB,Special Schools Transport,33208,Statemented - Special Unit Pupil Transpo,300750,06/08/2020,5100436148,2720,Warrington Cars,113774
WARRINGTON BOROUGH COUNCIL,http://opendatacommunities.org/id/unitary-authority/warrington,FWB,Special Schools Transport,33208,Statemented - Special Unit Pupil Transpo,300750,06/08/2020,5100436149,1840,Warrington Cars,113774
WARRINGTON BOROUGH COUNCIL,http://opendatacommunities.org/id/unitary-authority/warrington,FWB,Special Schools Transport,33208,Statemented - Special Unit Pupil Transpo,300750,06/08/2020,5100436190,1422,Warrington Cars,113774
WARRINGTON BOROUGH COUNCIL,http://opendatacommunities.org/id/unitary-authority/warrington,FWB,Transport - Adult Social Care,54950,Transport-Snad Cot,300600,06/08/2020,5100436262,720,Warrington Cars,113774
WARRINGTON BOROUGH COUNCIL,http://opendatacommunities.org/id/unitary-authority/warrington,FWB,Special Schools Transport,33208,Statemented - Special Unit Pupil Transpo,300750,11/08/2020,5100436658,1300,Warrington Cars,113774
WARRINGTON BOROUGH COUNCIL,http://opendatacommunities.org/id/unitary-authority/warrington,FWB,Special Schools Transport,33208,Statemented - Special Unit Pupil Transpo,300750,11/08/2020,5100436659,1710,Warrington Cars,113774
WARRINGTON BOROUGH COUNCIL,http://opendatacommunities.org/id/unitary-authority/warrington,FWB,Supporting People Contracts,53260,People with Mental Health Problems,535200,02/08/2020,5100435751,4461.53,Warrington Community Living,105229
WARRINGTON BOROUGH COUNCIL,http://opendatacommunities.org/id/unitary-authority/warrington,FWB,Supporting People Contracts,53260,Sheltd/Xtra Care Hsing and Comm Alarms,535050,02/08/2020,5100435752,10624.32,Warrington Community Living,105229
WARRINGTON BOROUGH COUNCIL,http://opendatacommunities.org/id/unitary-authority/warrington,FWB,Supporting People Contracts,53260,Sheltd/Xtra Care Hsing and Comm Alarms,535050,31/07/2020,5100435696,5725.08,Warrington Housing Current Acc,101208
WARRINGTON BOROUGH COUNCIL,http://opendatacommunities.org/id/unitary-authority/warrington,FWB,Homelessness,43650,Rent Of Premises,220000,03/08/2020,5100435804,3000,Warrington Housing Current Acc,101208
WARRINGTON BOROUGH COUNCIL,http://opendatacommunities.org/id/unitary-authority/warrington,FWB,Supporting People Contracts,53260,Sheltd/Xtra Care Hsing and Comm Alarms,535050,02/08/2020,5100435749,1058.44,Warrington Housing Rent,103168
WARRINGTON BOROUGH COUNCIL,http://opendatacommunities.org/id/unitary-authority/warrington,FWB,Supporting People Contracts,53260,Sheltd/Xtra Care Hsing and Comm Alarms,535050,02/08/2020,5100435750,626.96,Warrington Housing Rent,103168
WARRINGTON BOROUGH COUNCIL,http://opendatacommunities.org/id/unitary-authority/warrington,FWB,Special Schools Transport,33208,Statemented - Special Unit Pupil Transpo,300750,04/08/2020,5100436051,960,Warrington Travel,112256
WARRINGTON BOROUGH COUNCIL,http://opendatacommunities.org/id/unitary-authority/warrington,FWB,Supporting People Contracts,53260,Risk of Homelessness and Floating Suppor,535100,31/07/2020,5100435703,10242,Warrington Womens Aid Ltd,440000
WARRINGTON BOROUGH COUNCIL,http://opendatacommunities.org/id/unitary-authority/warrington,FWB,Domestic Abuse,31206,Supplies & Services - Covid 19,499919,11/08/2020,5100436718,614.29,Weavers Close Limited,116929
WARRINGTON BOROUGH COUNCIL,http://opendatacommunities.org/id/unitary-authority/warrington,FWB,Special Schools Transport,33208,Statemented - Special Unit Pupil Transpo,300750,06/08/2020,5100436219,1840,Wezs Travel,100842
WARRINGTON BOROUGH COUNCIL,http://opendatacommunities.org/id/unitary-authority/warrington,ET0,Transport Holding Account,41311,Veh Maint. Materials,300000,11/08/2020,5100436744,542.7,Whale Tankers Ltd,105247
WARRINGTON BOROUGH COUNCIL,http://opendatacommunities.org/id/unitary-authority/warrington,NEO,Neighbourhood & Community Other,83002,Consult.& Prof. Serv,440000,20/07/2020,5100434843,265183.02,Whitfield & Brown Developments Ltd,105435
WARRINGTON BOROUGH COUNCIL,http://opendatacommunities.org/id/unitary-authority/warrington,FWB,Special Schools Transport,33208,Statemented - Special Unit Pupil Transpo,300750,06/08/2020,5100436216,1530,Williams Travel,116664
WARRINGTON BOROUGH COUNCIL,http://opendatacommunities.org/id/unitary-authority/warrington,FWB,Special Schools Transport,33208,Statemented - Special Unit Pupil Transpo,300750,06/08/2020,5100436218,832,Will's Cabs,116729
WARRINGTON BOROUGH COUNCIL,http://opendatacommunities.org/id/unitary-authority/warrington,FWB,3rd Sector Contracts,53920,Payment of Grants,470050,31/07/2020,5100435700,17797.5,WIRED,109547
WARRINGTON BOROUGH COUNCIL,http://opendatacommunities.org/id/unitary-authority/warrington,FWB,ASC Stationery,54100,Stationery,430150,04/08/2020,5100436019,523.72,Worcestershire Telecare Ltd (Amica),117873
WARRINGTON BOROUGH COUNCIL,http://opendatacommunities.org/id/unitary-authority/warrington,COR,Debt Management Expenses,62080,Consult.& Prof. Serv,440000,20/12/2019,5100414897,3250,Worth Technical Accounting Ltd,117113
WARRINGTON BOROUGH COUNCIL,http://opendatacommunities.org/id/unitary-authority/warrington,COR,Debt Management Expenses,62080,Consult.& Prof. Serv,440000,12/08/2020,5100436917,3250,Worth Technical Accounting Ltd,117113
WARRINGTON BOROUGH COUNCIL,http://opendatacommunities.org/id/unitary-authority/warrington,ET0,Waste Recycling,41820,MRF Recycling,530750,07/08/2020,5100436323,178557.28,Wsr Recycling Ltd,101196
WARRINGTON BOROUGH COUNCIL,http://opendatacommunities.org/id/unitary-authority/warrington,ET0,Crematorium,41411,Maintenance of Plant & Machinery,250050,12/08/2020,5100436932,657,Zagota Creations Ltd,105545
WARRINGTON BOROUGH COUNCIL,http://opendatacommunities.org/id/unitary-authority/warrington,HOL,Insurance Fund,91100,Insurance Premium,443350,28/07/2020,5100435512,10594.75,Zurich Insurance Company,105263
WARRINGTON BOROUGH COUNCIL,http://opendatacommunities.org/id/unitary-authority/warrington,HOL,Insurance Fund,91100,Insurance Premium,443350,04/08/2020,5100436018,151823.16,Zurich Insurance Company,105263
WARRINGTON BOROUGH COUNCIL,http://opendatacommunities.org/id/unitary-authority/warrington,COR,Debt Management Expenses,62080,Consult.& Prof. Serv,440000,17/08/2020,1900574082,1925,11KBW Limited,115105
WARRINGTON BOROUGH COUNCIL,http://opendatacommunities.org/id/unitary-authority/warrington,ENO,Housing Projects,82008,Disabled Persons Grant 1996,554000,10/08/2020,1900572370,13576,Acorn Building Projects Ltd,105557
WARRINGTON BOROUGH COUNCIL,http://opendatacommunities.org/id/unitary-authority/warrington,FWB,Fostering Placements,30003,Fostering Accommodation,441050,14/08/2020,1900573413,3720,Acorn House (Fostering Services) Li,116009
WARRINGTON BOROUGH COUNCIL,http://opendatacommunities.org/id/unitary-authority/warrington,FWB,Care Purchase Budget,54490,Equipment Purchase & Contract,400000,14/07/2020,1900563192,948,Acorn Kennels,116941
WARRINGTON BOROUGH COUNCIL,http://opendatacommunities.org/id/unitary-authority/warrington,COR,Debt Management Expenses,62080,Consult.& Prof. Serv,440000,10/08/2020,1900572368,2515.5,Addleshaw Goddard LLP,110285
WARRINGTON BOROUGH COUNCIL,http://opendatacommunities.org/id/unitary-authority/warrington,FWB,CIN Team 5,31015,Fees (Including Agents Fees),441450,17/08/2020,1900574108,10003,Adoption Matters,101132
WARRINGTON BOROUGH COUNCIL,http://opendatacommunities.org/id/unitary-authority/warrington,COR,Covid-19,61030,Covid-19 Small Business Grants (not NNDR),552599,27/07/2020,1900567386,10000,AF MOBILE ACCESSORIES LTD,117906
WARRINGTON BOROUGH COUNCIL,http://opendatacommunities.org/id/unitary-authority/warrington,FWB,Residential Placements,30102,CP-LongStayExternal,441150,14/08/2020,1900573425,13358.8,After Care (NW) Limited,117323
WARRINGTON BOROUGH COUNCIL,http://opendatacommunities.org/id/unitary-authority/warrington,ET0,Recreation & Games,41431,Materials,400500,11/08/2020,1900572936,2795,Agrovista Uk Ltd,101700
WARRINGTON BOROUGH COUNCIL,http://opendatacommunities.org/id/unitary-authority/warrington,FWB,Fostering Placements,30003,Fostering Accommodation,441050,14/08/2020,1900573455,2871.68,Alpha Plus Fostering Ltd,109098
WARRINGTON BOROUGH COUNCIL,http://opendatacommunities.org/id/unitary-authority/warrington,FWB,Fostering Placements,30003,Fostering Accommodation,441050,14/08/2020,1900573456,2960.32,Alpha Plus Fostering Ltd,109098
WARRINGTON BOROUGH COUNCIL,http://opendatacommunities.org/id/unitary-authority/warrington,FWB,CIN Team 4,31014,Fees (Including Agents Fees),441450,04/08/2020,1900570289,519,AlphaBiolabs,109403
WARRINGTON BOROUGH COUNCIL,http://opendatacommunities.org/id/unitary-authority/warrington,FWB,CIN Team 4,31014,Fees (Including Agents Fees),441450,04/08/2020,1900570288,584,AlphaBiolabs,109403
WARRINGTON BOROUGH COUNCIL,http://opendatacommunities.org/id/unitary-authority/warrington,FWB,CIN Team 5,31015,Fees (Including Agents Fees),441450,14/08/2020,1900573396,1899,AlphaBiolabs,109403
WARRINGTON BOROUGH COUNCIL,http://opendatacommunities.org/id/unitary-authority/warrington,FWB,CIN Team 5,31015,Fees (Including Agents Fees),441450,14/08/2020,1900573399,595,AlphaBiolabs,109403
WARRINGTON BOROUGH COUNCIL,http://opendatacommunities.org/id/unitary-authority/warrington,FWB,CIN Team 5,31015,Fees (Including Agents Fees),441450,14/08/2020,1900573397,645,AlphaBiolabs,109403
WARRINGTON BOROUGH COUNCIL,http://opendatacommunities.org/id/unitary-authority/warrington,FWB,Legal Fees - Safeguarding,30100,After Adoption Support,442000,24/08/2020,1900575692,569,AlphaBiolabs,109403
WARRINGTON BOROUGH COUNCIL,http://opendatacommunities.org/id/unitary-authority/warrington,FWB,Care Purchase - West,54080,Supported Accommodation,440975,12/08/2020,1900573199,620,Alternative Futures Group,104468
WARRINGTON BOROUGH COUNCIL,http://opendatacommunities.org/id/unitary-authority/warrington,FWB,Care Purchase - South,54070,Supported Accommodation,440975,12/08/2020,1900573200,659.2,Alternative Futures Group,104468
WARRINGTON BOROUGH COUNCIL,http://opendatacommunities.org/id/unitary-authority/warrington,FWB,Care Purchase - South,54070,Supported Accommodation,440975,07/08/2020,1900572040,659.2,Alternative Futures Group,104468
WARRINGTON BOROUGH COUNCIL,http://opendatacommunities.org/id/unitary-authority/warrington,FWB,Care Purchase - East,54060,Supported Accommodation,440975,13/08/2020,1900573238,4515,Alternative Futures Group,104468
WARRINGTON BOROUGH COUNCIL,http://opendatacommunities.org/id/unitary-authority/warrington,FWB,Care Purchase - South,54070,Supported Accommodation,440975,07/08/2020,1900572043,658.4,Alternative Futures Group,104468
WARRINGTON BOROUGH COUNCIL,http://opendatacommunities.org/id/unitary-authority/warrington,FWB,Care Purchase - Central,54050,Supported Accommodation,440975,13/08/2020,1900573237,921.76,Alternative Futures Group,104468
WARRINGTON BOROUGH COUNCIL,http://opendatacommunities.org/id/unitary-authority/warrington,FWB,Care Purchase - East,54060,Supported Accommodation,440975,12/08/2020,1900573195,1316.8,Alternative Futures Group,104468
WARRINGTON BOROUGH COUNCIL,http://opendatacommunities.org/id/unitary-authority/warrington,FWB,Care Purchase - West,54080,Supported Accommodation,440975,12/08/2020,1900573192,4535.28,Alternative Futures Group,104468
WARRINGTON BOROUGH COUNCIL,http://opendatacommunities.org/id/unitary-authority/warrington,COR,Debt Management Expenses,62080,Consult.& Prof. Serv,440000,19/08/2020,1900574878,2255,APSE,110706
WARRINGTON BOROUGH COUNCIL,http://opendatacommunities.org/id/unitary-authority/warrington,FWB,Director Adult Social Care,54000,Supplies & Services - Covid 19,499919,07/08/2020,1900571146,25249.06,Ashberry Healthcare,101061
WARRINGTON BOROUGH COUNCIL,http://opendatacommunities.org/id/unitary-authority/warrington,FWB,Care Purchase Budget,54490,CP Free Nursing Care External,443500,17/08/2020,1900574104,11969.2,Ashberry Healthcare Ltd,104776
WARRINGTON BOROUGH COUNCIL,http://opendatacommunities.org/id/unitary-authority/warrington,FWB,Care Purchase Budget,54490,CP Free Nursing Care External,443500,11/08/2020,1900572946,2207.04,Ashberry Healthcare Ltd,104776
WARRINGTON BOROUGH COUNCIL,http://opendatacommunities.org/id/unitary-authority/warrington,FWB,Director Adult Social Care,54000,Supplies & Services - Covid 19,499919,07/08/2020,1900571132,54185.78,Ashberry Healthcare Ltd,104776
WARRINGTON BOROUGH COUNCIL,http://opendatacommunities.org/id/unitary-authority/warrington,FWB,Care Purchase - West,54080,CP-Domicil.External,440950,04/08/2020,1900570762,8773.52,Aspirations Care Limited,113707
WARRINGTON BOROUGH COUNCIL,http://opendatacommunities.org/id/unitary-authority/warrington,FWB,Care Purchase - West,54080,CP-Domicil.External,440950,24/08/2020,1900575705,8977.1,Aspirations Care Limited,113707
WARRINGTON BOROUGH COUNCIL,http://opendatacommunities.org/id/unitary-authority/warrington,FWB,Residential Placements,30102,CP-LongStayExternal,441150,07/08/2020,1900572329,15500,Aspireone Care Ltd,117035
WARRINGTON BOROUGH COUNCIL,http://opendatacommunities.org/id/unitary-authority/warrington,FWB,Leaving Care Placements,31109,CP-LongStayExternal,441150,07/08/2020,1900572345,1483.65,Atlantic Lodge (Housing) Ltd,117371
WARRINGTON BOROUGH COUNCIL,http://opendatacommunities.org/id/unitary-authority/warrington,FWB,Care Purchase - Central,54050,CP-Domicil.External,440950,25/08/2020,1900575783,2382.24,Autism Initiatives,104503
WARRINGTON BOROUGH COUNCIL,http://opendatacommunities.org/id/unitary-authority/warrington,FWB,Care Purchase - East,54060,CP-Day Care-External,441100,25/08/2020,1900575783,1170.72,Autism Initiatives,104503
WARRINGTON BOROUGH COUNCIL,http://opendatacommunities.org/id/unitary-authority/warrington,FWB,Care Purchase - West,54080,CP-Day Care-External,441100,25/08/2020,1900575782,2819,Autism Initiatives,104503
WARRINGTON BOROUGH COUNCIL,http://opendatacommunities.org/id/unitary-authority/warrington,FWB,Care Purchase - West,54080,CP-Domicil.External,440950,14/08/2020,1900573485,1531.44,Autism Initiatives,104503
WARRINGTON BOROUGH COUNCIL,http://opendatacommunities.org/id/unitary-authority/warrington,FWB,Care Purchase - Central,54050,Supported Accommodation,440975,24/08/2020,1900575701,7027.84,Autism Initiatives,104503
WARRINGTON BOROUGH COUNCIL,http://opendatacommunities.org/id/unitary-authority/warrington,FWB,Care Purchase - West,54080,Supported Accommodation,440975,24/08/2020,1900575697,7628.84,Autism Initiatives,104503
WARRINGTON BOROUGH COUNCIL,http://opendatacommunities.org/id/unitary-authority/warrington,FWB,Care Purchase - West,54080,Supported Accommodation,440975,24/08/2020,1900575699,5700.36,Autism Initiatives,104503
WARRINGTON BOROUGH COUNCIL,http://opendatacommunities.org/id/unitary-authority/warrington,FWB,Care Purchase - Central,54050,Supported Accommodation,440975,24/08/2020,1900575700,6499,Autism Initiatives,104503
WARRINGTON BOROUGH COUNCIL,http://opendatacommunities.org/id/unitary-authority/warrington,FWB,Care Purchase - Central,54050,Supported Accommodation,440975,24/08/2020,1900575702,5955.6,Autism Initiatives,104503
WARRINGTON BOROUGH COUNCIL,http://opendatacommunities.org/id/unitary-authority/warrington,FWB,Care Purchase - East,54060,Supported Accommodation,440975,24/08/2020,1900575704,10085.32,Autism Initiatives,104503
WARRINGTON BOROUGH COUNCIL,http://opendatacommunities.org/id/unitary-authority/warrington,FWB,Care Purchase - Central,54050,CP-Domicil.External,440950,24/08/2020,1900575703,3552.96,Autism Initiatives,104503
WARRINGTON BOROUGH COUNCIL,http://opendatacommunities.org/id/unitary-authority/warrington,FWB,Care Purchase - West,54080,Supported Accommodation,440975,24/08/2020,1900575698,2819,Autism Initiatives,104503
WARRINGTON BOROUGH COUNCIL,http://opendatacommunities.org/id/unitary-authority/warrington,FWB,Director Adult Social Care,54000,Supplies & Services - Covid 19,499919,07/08/2020,1900571142,4116.89,Autism Initiatives,104503
WARRINGTON BOROUGH COUNCIL,http://opendatacommunities.org/id/unitary-authority/warrington,FWB,Director Adult Social Care,54000,Supplies & Services - Covid 19,499919,07/08/2020,1900571148,1029.22,Autism Initiatives,104503
WARRINGTON BOROUGH COUNCIL,http://opendatacommunities.org/id/unitary-authority/warrington,FWB,Director Adult Social Care,54000,Supplies & Services - Covid 19,499919,07/08/2020,1900571119,17259.11,Barchester Healthcare Brookfield,104548
WARRINGTON BOROUGH COUNCIL,http://opendatacommunities.org/id/unitary-authority/warrington,FWB,Care Purchase Budget,54490,Supplies & Services - Covid 19,499919,12/08/2020,1900573186,16464,Barchester Homes Westvale House,105246
WARRINGTON BOROUGH COUNCIL,http://opendatacommunities.org/id/unitary-authority/warrington,FWB,Director Adult Social Care,54000,Supplies & Services - Covid 19,499919,07/08/2020,1900571177,36951.67,Barchester Homes Westvale House,105246
WARRINGTON BOROUGH COUNCIL,http://opendatacommunities.org/id/unitary-authority/warrington,FWB,Director Adult Social Care,54000,Supplies & Services - Covid 19,499919,07/08/2020,1900571189,5222.4,Barchester Homes Westvale House,105246
WARRINGTON BOROUGH COUNCIL,http://opendatacommunities.org/id/unitary-authority/warrington,FWB,Care Purchase Budget,54490,CP Free Nursing Care External,443500,11/08/2020,1900572947,4414.08,Barchester Homes Westvale House,105246
WARRINGTON BOROUGH COUNCIL,http://opendatacommunities.org/id/unitary-authority/warrington,FWB,Fostering Placements,30003,Fostering Accommodation,441050,14/08/2020,1900573429,7200,Barnardos,108136
WARRINGTON BOROUGH COUNCIL,http://opendatacommunities.org/id/unitary-authority/warrington,RSC,Coroners Service,11100,Analysts Fees,440300,05/08/2020,1900570780,3900,Bate & Holland Funeral Services Ltd,116884
WARRINGTON BOROUGH COUNCIL,http://opendatacommunities.org/id/unitary-authority/warrington,COR,Debt Management Expenses,62080,Consult.& Prof. Serv,440000,12/08/2020,1900573044,14507.72,Beachcroft LLP,108402
WARRINGTON BOROUGH COUNCIL,http://opendatacommunities.org/id/unitary-authority/warrington,COR,Debt Management Expenses,62080,Treasury Proj Costs,491925,12/08/2020,1900573045,2950,Beachcroft LLP,108402
WARRINGTON BOROUGH COUNCIL,http://opendatacommunities.org/id/unitary-authority/warrington,FWB,Leaving Care Placements,31109,CP-LongStayExternal,441150,07/08/2020,1900572347,2400,BedSpace,103530
WARRINGTON BOROUGH COUNCIL,http://opendatacommunities.org/id/unitary-authority/warrington,FWB,Leaving Care Placements,31109,CP-LongStayExternal,441150,07/08/2020,1900572346,3400,BedSpace,103530
WARRINGTON BOROUGH COUNCIL,http://opendatacommunities.org/id/unitary-authority/warrington,FWB,Leaving Care Placements,31109,CP-LongStayExternal,441150,07/08/2020,1900572348,2400,BedSpace,103530
WARRINGTON BOROUGH COUNCIL,http://opendatacommunities.org/id/unitary-authority/warrington,FWB,Leaving Care Placements,31109,CP-LongStayExternal,441150,07/08/2020,1900572351,2400,BedSpace,103530
WARRINGTON BOROUGH COUNCIL,http://opendatacommunities.org/id/unitary-authority/warrington,COR,Covid-19,61030,Covid-19 Small Business Grants (not NNDR),552599,20/08/2020,1900575298,10000,Belle Celebrations,117932
WARRINGTON BOROUGH COUNCIL,http://opendatacommunities.org/id/unitary-authority/warrington,FWB,Care Purchase Budget,54490,CP Free Nursing Care External,443500,17/08/2020,1900574105,16355.98,Belong Limited,117083
WARRINGTON BOROUGH COUNCIL,http://opendatacommunities.org/id/unitary-authority/warrington,FWB,Care Purchase Budget,54490,Supplies & Services - Covid 19,499919,12/08/2020,1900573182,27792,Birch Care Ltd (for Cromwell Court),117615
WARRINGTON BOROUGH COUNCIL,http://opendatacommunities.org/id/unitary-authority/warrington,COR,Other Commercial Prop.,43560,Service Charges,220050,19/08/2020,1900574861,1200,Birch Grove Day Nursery Ltd,101367
WARRINGTON BOROUGH COUNCIL,http://opendatacommunities.org/id/unitary-authority/warrington,COR,Covid-19,61030,Covid-19 Small Business Grants (not NNDR),552599,18/08/2020,1900574571,10000,Brainwave,116211
WARRINGTON BOROUGH COUNCIL,http://opendatacommunities.org/id/unitary-authority/warrington,FWB,Care Purchase - East,54060,CP-Domicil.External,440950,05/08/2020,1900570858,582.4,Brew and Clapp Services Ltd,116993
WARRINGTON BOROUGH COUNCIL,http://opendatacommunities.org/id/unitary-authority/warrington,FWB,Care Purchase - Central,54050,CP-Domicil.External,440950,05/08/2020,1900570868,582.4,Brew and Clapp Services Ltd,116993
WARRINGTON BOROUGH COUNCIL,http://opendatacommunities.org/id/unitary-authority/warrington,FWB,Care Purchase - Central,54050,CP-Domicil.External,440950,05/08/2020,1900570880,582.4,Brew and Clapp Services Ltd,116993
WARRINGTON BOROUGH COUNCIL,http://opendatacommunities.org/id/unitary-authority/warrington,FWB,Care Purchase - East,54060,CP-Domicil.External,440950,05/08/2020,1900570877,666.23,Brew and Clapp Services Ltd,116993
WARRINGTON BOROUGH COUNCIL,http://opendatacommunities.org/id/unitary-authority/warrington,FWB,Care Purchase - Central,54050,CP-Domicil.External,440950,05/08/2020,1900570870,582.4,Brew and Clapp Services Ltd,116993
WARRINGTON BOROUGH COUNCIL,http://opendatacommunities.org/id/unitary-authority/warrington,FWB,Care Purchase - East,54060,CP-Domicil.External,440950,05/08/2020,1900570894,667.1,Brew and Clapp Services Ltd,116993
WARRINGTON BOROUGH COUNCIL,http://opendatacommunities.org/id/unitary-authority/warrington,FWB,Care Purchase - Central,54050,CP-Domicil.External,440950,05/08/2020,1900570893,597.1,Brew and Clapp Services Ltd,116993
WARRINGTON BOROUGH COUNCIL,http://opendatacommunities.org/id/unitary-authority/warrington,FWB,Care Purchase - East,54060,CP-Domicil.External,440950,05/08/2020,1900570859,529.2,Brew and Clapp Services Ltd,116993
WARRINGTON BOROUGH COUNCIL,http://opendatacommunities.org/id/unitary-authority/warrington,FWB,Care Purchase - East,54060,CP-Domicil.External,440950,05/08/2020,1900570891,582.4,Brew and Clapp Services Ltd,116993
WARRINGTON BOROUGH COUNCIL,http://opendatacommunities.org/id/unitary-authority/warrington,FWB,Care Purchase - East,54060,CP-Domicil.External,440950,05/08/2020,1900570871,721.42,Brew and Clapp Services Ltd,116993
WARRINGTON BOROUGH COUNCIL,http://opendatacommunities.org/id/unitary-authority/warrington,FWB,Care Purchase - East,54060,CP-Domicil.External,440950,05/08/2020,1900570897,582.4,Brew and Clapp Services Ltd,116993
WARRINGTON BOROUGH COUNCIL,http://opendatacommunities.org/id/unitary-authority/warrington,FWB,Care Purchase - East,54060,CP-Domicil.External,440950,07/08/2020,1900572111,582.4,Brew and Clapp Services Ltd,116993
WARRINGTON BOROUGH COUNCIL,http://opendatacommunities.org/id/unitary-authority/warrington,FWB,Care Purchase - Central,54050,CP-Domicil.External,440950,07/08/2020,1900572164,582.4,Brew and Clapp Services Ltd,116993
WARRINGTON BOROUGH COUNCIL,http://opendatacommunities.org/id/unitary-authority/warrington,FWB,Care Purchase - Central,54050,CP-Domicil.External,440950,07/08/2020,1900572226,582.4,Brew and Clapp Services Ltd,116993
WARRINGTON BOROUGH COUNCIL,http://opendatacommunities.org/id/unitary-authority/warrington,FWB,Care Purchase - East,54060,CP-Domicil.External,440950,07/08/2020,1900572214,764.93,Brew and Clapp Services Ltd,116993
WARRINGTON BOROUGH COUNCIL,http://opendatacommunities.org/id/unitary-authority/warrington,FWB,Care Purchase - Central,54050,CP-Domicil.External,440950,07/08/2020,1900572172,582.4,Brew and Clapp Services Ltd,116993
WARRINGTON BOROUGH COUNCIL,http://opendatacommunities.org/id/unitary-authority/warrington,FWB,Care Purchase - East,54060,CP-Domicil.External,440950,07/08/2020,1900572292,667.1,Brew and Clapp Services Ltd,116993
WARRINGTON BOROUGH COUNCIL,http://opendatacommunities.org/id/unitary-authority/warrington,FWB,Care Purchase - Central,54050,CP-Domicil.External,440950,07/08/2020,1900572290,607.5,Brew and Clapp Services Ltd,116993
WARRINGTON BOROUGH COUNCIL,http://opendatacommunities.org/id/unitary-authority/warrington,FWB,Care Purchase - East,54060,CP-Domicil.External,440950,07/08/2020,1900572275,582.4,Brew and Clapp Services Ltd,116993
WARRINGTON BOROUGH COUNCIL,http://opendatacommunities.org/id/unitary-authority/warrington,FWB,Care Purchase - East,54060,CP-Domicil.External,440950,07/08/2020,1900572173,712.92,Brew and Clapp Services Ltd,116993
WARRINGTON BOROUGH COUNCIL,http://opendatacommunities.org/id/unitary-authority/warrington,FWB,Care Purchase - East,54060,CP-Domicil.External,440950,07/08/2020,1900572309,582.4,Brew and Clapp Services Ltd,116993
WARRINGTON BOROUGH COUNCIL,http://opendatacommunities.org/id/unitary-authority/warrington,FWB,Care Purchase - Central,54050,CP-Domicil.External,440950,12/08/2020,1900573104,582.4,Brew and Clapp Services Ltd,116993
WARRINGTON BOROUGH COUNCIL,http://opendatacommunities.org/id/unitary-authority/warrington,FWB,Care Purchase - Central,54050,CP-Domicil.External,440950,12/08/2020,1900573129,582.4,Brew and Clapp Services Ltd,116993
WARRINGTON BOROUGH COUNCIL,http://opendatacommunities.org/id/unitary-authority/warrington,FWB,Care Purchase - East,54060,CP-Domicil.External,440950,12/08/2020,1900573123,666.23,Brew and Clapp Services Ltd,116993
WARRINGTON BOROUGH COUNCIL,http://opendatacommunities.org/id/unitary-authority/warrington,FWB,Care Purchase - Central,54050,CP-Domicil.External,440950,12/08/2020,1900573109,582.4,Brew and Clapp Services Ltd,116993
WARRINGTON BOROUGH COUNCIL,http://opendatacommunities.org/id/unitary-authority/warrington,FWB,Care Purchase - East,54060,CP-Domicil.External,440950,12/08/2020,1900573167,667.1,Brew and Clapp Services Ltd,116993
WARRINGTON BOROUGH COUNCIL,http://opendatacommunities.org/id/unitary-authority/warrington,FWB,Care Purchase - Central,54050,CP-Domicil.External,440950,12/08/2020,1900573165,597.1,Brew and Clapp Services Ltd,116993
WARRINGTON BOROUGH COUNCIL,http://opendatacommunities.org/id/unitary-authority/warrington,FWB,Care Purchase - East,54060,CP-Domicil.External,440950,12/08/2020,1900573158,582.4,Brew and Clapp Services Ltd,116993
WARRINGTON BOROUGH COUNCIL,http://opendatacommunities.org/id/unitary-authority/warrington,FWB,Care Purchase - East,54060,CP-Domicil.External,440950,12/08/2020,1900573110,655.34,Brew and Clapp Services Ltd,116993
WARRINGTON BOROUGH COUNCIL,http://opendatacommunities.org/id/unitary-authority/warrington,FWB,Care Purchase - East,54060,CP-Domicil.External,440950,12/08/2020,1900573174,582.4,Brew and Clapp Services Ltd,116993
WARRINGTON BOROUGH COUNCIL,http://opendatacommunities.org/id/unitary-authority/warrington,FWB,Care Purchase - Central,54050,CP-Domicil.External,440950,26/08/2020,1900575904,582.4,Brew and Clapp Services Ltd,116993
WARRINGTON BOROUGH COUNCIL,http://opendatacommunities.org/id/unitary-authority/warrington,FWB,Care Purchase - Central,54050,CP-Domicil.External,440950,26/08/2020,1900575951,582.4,Brew and Clapp Services Ltd,116993
WARRINGTON BOROUGH COUNCIL,http://opendatacommunities.org/id/unitary-authority/warrington,FWB,Care Purchase - East,54060,CP-Domicil.External,440950,26/08/2020,1900575943,666.23,Brew and Clapp Services Ltd,116993
WARRINGTON BOROUGH COUNCIL,http://opendatacommunities.org/id/unitary-authority/warrington,FWB,Care Purchase - Central,54050,CP-Domicil.External,440950,26/08/2020,1900575910,582.4,Brew and Clapp Services Ltd,116993
WARRINGTON BOROUGH COUNCIL,http://opendatacommunities.org/id/unitary-authority/warrington,FWB,Care Purchase - East,54060,CP-Domicil.External,440950,26/08/2020,1900576004,667.1,Brew and Clapp Services Ltd,116993
WARRINGTON BOROUGH COUNCIL,http://opendatacommunities.org/id/unitary-authority/warrington,FWB,Care Purchase - Central,54050,CP-Domicil.External,440950,26/08/2020,1900576003,597.1,Brew and Clapp Services Ltd,116993
WARRINGTON BOROUGH COUNCIL,http://opendatacommunities.org/id/unitary-authority/warrington,FWB,Care Purchase - East,54060,CP-Domicil.External,440950,26/08/2020,1900575994,582.4,Brew and Clapp Services Ltd,116993
WARRINGTON BOROUGH COUNCIL,http://opendatacommunities.org/id/unitary-authority/warrington,FWB,Care Purchase - East,54060,CP-Domicil.External,440950,26/08/2020,1900576018,582.4,Brew and Clapp Services Ltd,116993
WARRINGTON BOROUGH COUNCIL,http://opendatacommunities.org/id/unitary-authority/warrington,FWB,Care Purchase - South,54070,CP-Domicil.External,440950,06/08/2020,1900571079,672,Bridgewater Home Care,113753
WARRINGTON BOROUGH COUNCIL,http://opendatacommunities.org/id/unitary-authority/warrington,FWB,Care Purchase - East,54060,CP-Domicil.External,440950,06/08/2020,1900571054,808.5,Bridgewater Home Care,113753
WARRINGTON BOROUGH COUNCIL,http://opendatacommunities.org/id/unitary-authority/warrington,FWB,Care Purchase - South,54070,CP-Domicil.External,440950,06/08/2020,1900571025,612.75,Bridgewater Home Care,113753
WARRINGTON BOROUGH COUNCIL,http://opendatacommunities.org/id/unitary-authority/warrington,FWB,Care Purchase - South,54070,CP-Domicil.External,440950,20/08/2020,1900575496,672,Bridgewater Home Care,113753
WARRINGTON BOROUGH COUNCIL,http://opendatacommunities.org/id/unitary-authority/warrington,FWB,Care Purchase - East,54060,CP-Domicil.External,440950,20/08/2020,1900575441,808.5,Bridgewater Home Care,113753
WARRINGTON BOROUGH COUNCIL,http://opendatacommunities.org/id/unitary-authority/warrington,FWB,Care Purchase - South,54070,CP-Domicil.External,440950,20/08/2020,1900575340,623,Bridgewater Home Care,113753
WARRINGTON BOROUGH COUNCIL,http://opendatacommunities.org/id/unitary-authority/warrington,FWB,Care Purchase - South,54070,CP-Domicil.External,440950,26/08/2020,1900576013,672,Bridgewater Home Care,113753
WARRINGTON BOROUGH COUNCIL,http://opendatacommunities.org/id/unitary-authority/warrington,FWB,Care Purchase - East,54060,CP-Domicil.External,440950,26/08/2020,1900575927,808.5,Bridgewater Home Care,113753
WARRINGTON BOROUGH COUNCIL,http://opendatacommunities.org/id/unitary-authority/warrington,FWB,Care Purchase - South,54070,CP-Domicil.External,440950,26/08/2020,1900575806,623,Bridgewater Home Care,113753
WARRINGTON BOROUGH COUNCIL,http://opendatacommunities.org/id/unitary-authority/warrington,FWB,Director Adult Social Care,54000,Supplies & Services - Covid 19,499919,07/08/2020,1900571141,2058.44,Bright Futures Care Ltd,114579
WARRINGTON BOROUGH COUNCIL,http://opendatacommunities.org/id/unitary-authority/warrington,FWB,Director Adult Social Care,54000,Supplies & Services - Covid 19,499919,07/08/2020,1900571149,6175.33,Bright Futures Care Ltd,114579
WARRINGTON BOROUGH COUNCIL,http://opendatacommunities.org/id/unitary-authority/warrington,FWB,Director Adult Social Care,54000,Supplies & Services - Covid 19,499919,07/08/2020,1900571118,4116.89,Bright Futures Care Ltd,114579
WARRINGTON BOROUGH COUNCIL,http://opendatacommunities.org/id/unitary-authority/warrington,FWB,Director Adult Social Care,54000,Supplies & Services - Covid 19,499919,07/08/2020,1900571180,1029.22,Bright Futures Care Ltd,114579
WARRINGTON BOROUGH COUNCIL,http://opendatacommunities.org/id/unitary-authority/warrington,FWB,Director Adult Social Care,54000,Supplies & Services - Covid 19,499919,07/08/2020,1900571182,2058.44,Bright Futures Care Ltd,114579
WARRINGTON BOROUGH COUNCIL,http://opendatacommunities.org/id/unitary-authority/warrington,FWB,Penketh Court,43631,Gas,210050,20/08/2020,1900575289,767.7,British Gas Business,104540
WARRINGTON BOROUGH COUNCIL,http://opendatacommunities.org/id/unitary-authority/warrington,FWB,Children with Disabilities,31005,Fees (Including Agents Fees),441450,05/08/2020,1900570797,4032,Brooks & Brooks Recruitment,116689
WARRINGTON BOROUGH COUNCIL,http://opendatacommunities.org/id/unitary-authority/warrington,FWB,Children with Disabilities,31005,Fees (Including Agents Fees),441450,05/08/2020,1900570795,4032,Brooks & Brooks Recruitment,116689
WARRINGTON BOROUGH COUNCIL,http://opendatacommunities.org/id/unitary-authority/warrington,FWB,Children with Disabilities,31005,Fees (Including Agents Fees),441450,19/08/2020,1900574850,4032,Brooks & Brooks Recruitment,116689
WARRINGTON BOROUGH COUNCIL,http://opendatacommunities.org/id/unitary-authority/warrington,FWB,Children with Disabilities,31005,Fees (Including Agents Fees),441450,18/08/2020,1900574581,4032,Brooks & Brooks Recruitment,116689
WARRINGTON BOROUGH COUNCIL,http://opendatacommunities.org/id/unitary-authority/warrington,FWB,Children with Disabilities,31005,Fees (Including Agents Fees),441450,18/08/2020,1900574570,4032,Brooks & Brooks Recruitment,116689
WARRINGTON BOROUGH COUNCIL,http://opendatacommunities.org/id/unitary-authority/warrington,FWB,Children with Disabilities,31005,Fees (Including Agents Fees),441450,20/07/2020,1900565967,4032,Brooks & Brooks Recruitment,116683
WARRINGTON BOROUGH COUNCIL,http://opendatacommunities.org/id/unitary-authority/warrington,FWB,CIN Team 4,31014,Looked after children in Warrington,301000,25/08/2020,1900575710,4176,Brooks & Brooks Recruitment,116689
WARRINGTON BOROUGH COUNCIL,http://opendatacommunities.org/id/unitary-authority/warrington,FWB,Children with Disabilities,31005,Fees (Including Agents Fees),441450,05/08/2020,1900570792,1128,Brooks & Brooks Recruitment,116689
WARRINGTON BOROUGH COUNCIL,http://opendatacommunities.org/id/unitary-authority/warrington,FWB,Children with Disabilities,31005,Fees (Including Agents Fees),441450,19/08/2020,1900574598,1440,Brooks & Brooks Recruitment,116689
WARRINGTON BOROUGH COUNCIL,http://opendatacommunities.org/id/unitary-authority/warrington,FWB,Children with Disabilities,31005,Fees (Including Agents Fees),441450,18/08/2020,1900574569,1440,Brooks & Brooks Recruitment,116689
WARRINGTON BOROUGH COUNCIL,http://opendatacommunities.org/id/unitary-authority/warrington,FWB,Children with Disabilities,31005,Fees (Including Agents Fees),441450,20/07/2020,1900565972,1344,Brooks & Brooks Recruitment,116683
WARRINGTON BOROUGH COUNCIL,http://opendatacommunities.org/id/unitary-authority/warrington,FWB,Children with Disabilities,31005,Fees (Including Agents Fees),441450,05/08/2020,1900570782,4032,Brooks & Brooks Recruitment,116689
WARRINGTON BOROUGH COUNCIL,http://opendatacommunities.org/id/unitary-authority/warrington,FWB,Children with Disabilities,31005,Fees (Including Agents Fees),441450,05/08/2020,1900570790,864,Brooks & Brooks Recruitment,116689
WARRINGTON BOROUGH COUNCIL,http://opendatacommunities.org/id/unitary-authority/warrington,FWB,Children with Disabilities,31005,Fees (Including Agents Fees),441450,05/08/2020,1900570785,2016,Brooks & Brooks Recruitment,116689
WARRINGTON BOROUGH COUNCIL,http://opendatacommunities.org/id/unitary-authority/warrington,FWB,Children with Disabilities,31005,Fees (Including Agents Fees),441450,05/08/2020,1900570784,2016,Brooks & Brooks Recruitment,116689
WARRINGTON BOROUGH COUNCIL,http://opendatacommunities.org/id/unitary-authority/warrington,FWB,Children with Disabilities,31005,Fees (Including Agents Fees),441450,05/08/2020,1900570796,2016,Brooks & Brooks Recruitment,116689
WARRINGTON BOROUGH COUNCIL,http://opendatacommunities.org/id/unitary-authority/warrington,FWB,Children with Disabilities,31005,Fees (Including Agents Fees),441450,05/08/2020,1900570786,2016,Brooks & Brooks Recruitment,116689
WARRINGTON BOROUGH COUNCIL,http://opendatacommunities.org/id/unitary-authority/warrington,FWB,Children with Disabilities,31005,Fees (Including Agents Fees),441450,20/07/2020,1900565975,2016,Brooks & Brooks Recruitment,116683
WARRINGTON BOROUGH COUNCIL,http://opendatacommunities.org/id/unitary-authority/warrington,ET0,Finance Office Services,42110,Consult.& Prof. Serv,440000,05/08/2020,1900570788,1786,BSI - British Standards,106453
WARRINGTON BOROUGH COUNCIL,http://opendatacommunities.org/id/unitary-authority/warrington,ET0,Urban Traffic Management Control,44370,Signal Management,531600,07/08/2020,1900571113,996.84,BT,104542
WARRINGTON BOROUGH COUNCIL,http://opendatacommunities.org/id/unitary-authority/warrington,FWB,Fostering Placements,30003,Fostering Accommodation,441050,14/08/2020,1900573476,6328,By The Bridge UK,103173
WARRINGTON BOROUGH COUNCIL,http://opendatacommunities.org/id/unitary-authority/warrington,FWB,Fostering Placements,30003,Fostering Accommodation,441050,14/08/2020,1900573414,4304,By The Bridge UK,103173
WARRINGTON BOROUGH COUNCIL,http://opendatacommunities.org/id/unitary-authority/warrington,FWB,Fostering Placements,30003,Fostering Accommodation,441050,14/08/2020,1900573432,3577,By The Bridge UK,103173
WARRINGTON BOROUGH COUNCIL,http://opendatacommunities.org/id/unitary-authority/warrington,FWB,Fostering Placements,30003,Fostering Accommodation,441050,14/08/2020,1900573480,3650,By The Bridge UK,103173
WARRINGTON BOROUGH COUNCIL,http://opendatacommunities.org/id/unitary-authority/warrington,FWB,Care Purchase - East,54060,CP-Domicil.External,440950,06/08/2020,1900571048,513.8,C & D Family Care,117387
WARRINGTON BOROUGH COUNCIL,http://opendatacommunities.org/id/unitary-authority/warrington,FWB,Care Purchase - East,54060,CP-Domicil.External,440950,13/08/2020,1900573253,513.8,C & D Family Care,117387
WARRINGTON BOROUGH COUNCIL,http://opendatacommunities.org/id/unitary-authority/warrington,FWB,Care Purchase - East,54060,CP-Domicil.External,440950,26/08/2020,1900576100,513.8,C & D Family Care,117387
WARRINGTON BOROUGH COUNCIL,http://opendatacommunities.org/id/unitary-authority/warrington,FWB,Care Purchase - East,54060,CP-Domicil.External,440950,26/08/2020,1900576491,513.8,C & D Family Care,117387
WARRINGTON BOROUGH COUNCIL,http://opendatacommunities.org/id/unitary-authority/warrington,ET0,Finance Office Services,42110,ICT Comms - Device Rental,450400,17/02/2020,1900516619,693.12,Canon (Uk) Ltd,100465
WARRINGTON BOROUGH COUNCIL,http://opendatacommunities.org/id/unitary-authority/warrington,ET0,Finance Office Services,42110,ICT Comms - Device Rental,450400,17/02/2020,1900516618,693.12,Canon (Uk) Ltd,100465
WARRINGTON BOROUGH COUNCIL,http://opendatacommunities.org/id/unitary-authority/warrington,RSC,Housing Benefit,10340,Computer Software - Purchase,450800,24/07/2020,1900567362,1800,Capita Business Services Ltd,105516
WARRINGTON BOROUGH COUNCIL,http://opendatacommunities.org/id/unitary-authority/warrington,FWB,Complex Families,31800,Training,190150,04/08/2020,1900570283,2867.88,Capita Business Services Ltd,105516
WARRINGTON BOROUGH COUNCIL,http://opendatacommunities.org/id/unitary-authority/warrington,FWB,Fostering Placements,30003,Fostering Accommodation,441050,14/08/2020,1900573439,5200,Care 4 Children,114784
WARRINGTON BOROUGH COUNCIL,http://opendatacommunities.org/id/unitary-authority/warrington,FWB,Care Purchase - East,54060,Supported Accommodation,440975,04/08/2020,1900570763,2784.06,Care Wish Ltd,116529
WARRINGTON BOROUGH COUNCIL,http://opendatacommunities.org/id/unitary-authority/warrington,FWB,Care Purchase Budget,54490,CP Free Nursing Care External,443500,17/08/2020,1900574107,4414.08,CareConcepts (Appleton) Ltd,105804
WARRINGTON BOROUGH COUNCIL,http://opendatacommunities.org/id/unitary-authority/warrington,FWB,Care Purchase Budget,54490,CP ExternalOther Exp,440800,12/08/2020,1900573183,12600,CareConcepts (Appleton) Ltd,105804
WARRINGTON BOROUGH COUNCIL,http://opendatacommunities.org/id/unitary-authority/warrington,FWB,BCF - CP - Brampton,54290,CP - Intermediate Care - External,441300,12/08/2020,1900573184,51063,CareConcepts (Appleton) Ltd,105804
WARRINGTON BOROUGH COUNCIL,http://opendatacommunities.org/id/unitary-authority/warrington,FWB,Director Adult Social Care,54000,Supplies & Services - Covid 19,499919,07/08/2020,1900571116,36362.06,CareConcepts (Appleton) Ltd,105804
WARRINGTON BOROUGH COUNCIL,http://opendatacommunities.org/id/unitary-authority/warrington,FWB,Care Purchase - South,54070,CP-Domicil.External,440950,04/08/2020,1900570684,542.64,Caremark,114583
WARRINGTON BOROUGH COUNCIL,http://opendatacommunities.org/id/unitary-authority/warrington,FWB,Care Purchase - South,54070,CP-Domicil.External,440950,04/08/2020,1900570654,518.07,Caremark,114583
WARRINGTON BOROUGH COUNCIL,http://opendatacommunities.org/id/unitary-authority/warrington,FWB,Care Purchase - South,54070,CP-Domicil.External,440950,04/08/2020,1900570685,542.64,Caremark,114583
WARRINGTON BOROUGH COUNCIL,http://opendatacommunities.org/id/unitary-authority/warrington,FWB,Care Purchase - South,54070,CP-Domicil.External,440950,04/08/2020,1900570655,518.07,Caremark,114583
WARRINGTON BOROUGH COUNCIL,http://opendatacommunities.org/id/unitary-authority/warrington,FWB,Care Purchase - South,54070,CP-Domicil.External,440950,17/08/2020,1900574131,542.64,Caremark,114583
WARRINGTON BOROUGH COUNCIL,http://opendatacommunities.org/id/unitary-authority/warrington,FWB,Care Purchase - South,54070,CP-Domicil.External,440950,17/08/2020,1900574124,518.07,Caremark,114583
WARRINGTON BOROUGH COUNCIL,http://opendatacommunities.org/id/unitary-authority/warrington,FWB,Care Purchase - South,54070,CP-Domicil.External,440950,17/08/2020,1900574132,542.64,Caremark,114583
WARRINGTON BOROUGH COUNCIL,http://opendatacommunities.org/id/unitary-authority/warrington,FWB,Care Purchase - South,54070,CP-Domicil.External,440950,17/08/2020,1900574125,518.07,Caremark,114583
WARRINGTON BOROUGH COUNCIL,http://opendatacommunities.org/id/unitary-authority/warrington,FWB,Residential Placements,30102,CP-LongStayExternal,441150,14/08/2020,1900573449,17342,Caretech Community Services Limited,117458
WARRINGTON BOROUGH COUNCIL,http://opendatacommunities.org/id/unitary-authority/warrington,FWB,CIN Team 5,31015,Fees (Including Agents Fees),441450,19/08/2020,1900574859,2214.33,Caritas Care Ltd,101593
WARRINGTON BOROUGH COUNCIL,http://opendatacommunities.org/id/unitary-authority/warrington,FWB,Fostering Placements,30003,Fostering Accommodation,441050,14/08/2020,1900573465,5940,Caritas Diocese of Salford,111717
WARRINGTON BOROUGH COUNCIL,http://opendatacommunities.org/id/unitary-authority/warrington,FWB,Frontline Social Work Pods,31020,Fees (Including Agents Fees),441450,08/07/2020,1900562336,2251.4,Carter Brown The Expert Service,115269
WARRINGTON BOROUGH COUNCIL,http://opendatacommunities.org/id/unitary-authority/warrington,FWB,Catalyst Choices,54495,Management Fee,525550,31/07/2020,1900569336,110114.22,Catalyst Choice Management Services,115078
WARRINGTON BOROUGH COUNCIL,http://opendatacommunities.org/id/unitary-authority/warrington,FWB,Care Purchase Budget,54490,CP - Intermediate Care - External,441300,12/08/2020,1900573181,22400,Catalyst Choices Community Interest,114235
WARRINGTON BOROUGH COUNCIL,http://opendatacommunities.org/id/unitary-authority/warrington,FWB,Director Adult Social Care,54000,Supplies & Services - Covid 19,499919,07/08/2020,1900571181,28936.72,Catalyst Choices Community Interest,114235
WARRINGTON BOROUGH COUNCIL,http://opendatacommunities.org/id/unitary-authority/warrington,FWB,Care Purchase - West,54080,Supported Accommodation,440975,19/08/2020,1900575096,2152.65,Catalyst Choices Community Interest,114235
WARRINGTON BOROUGH COUNCIL,http://opendatacommunities.org/id/unitary-authority/warrington,FWB,Care Purchase - West,54080,Supported Accommodation,440975,19/08/2020,1900575092,590.25,Catalyst Choices Community Interest,114235
WARRINGTON BOROUGH COUNCIL,http://opendatacommunities.org/id/unitary-authority/warrington,FWB,Care Purchase - West,54080,Supported Accommodation,440975,19/08/2020,1900575094,503.45,Catalyst Choices Community Interest,114235
WARRINGTON BOROUGH COUNCIL,http://opendatacommunities.org/id/unitary-authority/warrington,FWB,Care Purchase - West,54080,Supported Accommodation,440975,19/08/2020,1900575093,1840.15,Catalyst Choices Community Interest,114235
WARRINGTON BOROUGH COUNCIL,http://opendatacommunities.org/id/unitary-authority/warrington,FWB,Catalyst Choices,54495,Supported Accommodation,440975,18/08/2020,1900574582,2222.08,Catalyst Choices Community Interest,114235
WARRINGTON BOROUGH COUNCIL,http://opendatacommunities.org/id/unitary-authority/warrington,FWB,Care Purchase - West,54080,Supported Accommodation,440975,04/08/2020,1900570521,3545.65,Catalyst Choices Community Interest,114235
WARRINGTON BOROUGH COUNCIL,http://opendatacommunities.org/id/unitary-authority/warrington,FWB,Care Purchase - West,54080,Supported Accommodation,440975,04/08/2020,1900570522,3881.65,Catalyst Choices Community Interest,114235
WARRINGTON BOROUGH COUNCIL,http://opendatacommunities.org/id/unitary-authority/warrington,FWB,Care Purchase - West,54080,Supported Accommodation,440975,04/08/2020,1900570519,3410.05,Catalyst Choices Community Interest,114235
WARRINGTON BOROUGH COUNCIL,http://opendatacommunities.org/id/unitary-authority/warrington,FWB,Care Purchase - West,54080,Supported Accommodation,440975,04/08/2020,1900570513,3209.65,Catalyst Choices Community Interest,114235
WARRINGTON BOROUGH COUNCIL,http://opendatacommunities.org/id/unitary-authority/warrington,FWB,Care Purchase - West,54080,Supported Accommodation,440975,04/08/2020,1900570517,2864.05,Catalyst Choices Community Interest,114235
WARRINGTON BOROUGH COUNCIL,http://opendatacommunities.org/id/unitary-authority/warrington,FWB,Care Purchase - West,54080,Supported Accommodation,440975,04/08/2020,1900570531,2131.25,Catalyst Choices Community Interest,114235
WARRINGTON BOROUGH COUNCIL,http://opendatacommunities.org/id/unitary-authority/warrington,FWB,Care Purchase - West,54080,Supporting People - External,441250,04/08/2020,1900570531,532.4,Catalyst Choices Community Interest,114235
WARRINGTON BOROUGH COUNCIL,http://opendatacommunities.org/id/unitary-authority/warrington,FWB,Care Purchase - West,54080,Supported Accommodation,440975,04/08/2020,1900570516,3503.65,Catalyst Choices Community Interest,114235
WARRINGTON BOROUGH COUNCIL,http://opendatacommunities.org/id/unitary-authority/warrington,FWB,Care Purchase - West,54080,Supported Accommodation,440975,04/08/2020,1900570520,3587.65,Catalyst Choices Community Interest,114235
WARRINGTON BOROUGH COUNCIL,http://opendatacommunities.org/id/unitary-authority/warrington,FWB,Care Purchase - West,54080,Supported Accommodation,440975,04/08/2020,1900570535,2854.8,Catalyst Choices Community Interest,114235
WARRINGTON BOROUGH COUNCIL,http://opendatacommunities.org/id/unitary-authority/warrington,FWB,Care Purchase - West,54080,Supported Accommodation,440975,04/08/2020,1900570534,3209.65,Catalyst Choices Community Interest,114235
WARRINGTON BOROUGH COUNCIL,http://opendatacommunities.org/id/unitary-authority/warrington,FWB,Care Purchase - West,54080,Supported Accommodation,440975,04/08/2020,1900570525,3181.15,Catalyst Choices Community Interest,114235
WARRINGTON BOROUGH COUNCIL,http://opendatacommunities.org/id/unitary-authority/warrington,FWB,Care Purchase - West,54080,Supporting People - External,441250,04/08/2020,1900570525,532.5,Catalyst Choices Community Interest,114235
WARRINGTON BOROUGH COUNCIL,http://opendatacommunities.org/id/unitary-authority/warrington,FWB,Care Purchase - West,54080,Supported Accommodation,440975,04/08/2020,1900570532,3074.35,Catalyst Choices Community Interest,114235
WARRINGTON BOROUGH COUNCIL,http://opendatacommunities.org/id/unitary-authority/warrington,FWB,Care Purchase - West,54080,Supported Accommodation,440975,04/08/2020,1900570524,2669.1,Catalyst Choices Community Interest,114235
WARRINGTON BOROUGH COUNCIL,http://opendatacommunities.org/id/unitary-authority/warrington,FWB,Care Purchase - West,54080,Supported Accommodation,440975,04/08/2020,1900570527,3624.85,Catalyst Choices Community Interest,114235
WARRINGTON BOROUGH COUNCIL,http://opendatacommunities.org/id/unitary-authority/warrington,FWB,Care Purchase - West,54080,Supported Accommodation,440975,04/08/2020,1900570526,3457.45,Catalyst Choices Community Interest,114235
WARRINGTON BOROUGH COUNCIL,http://opendatacommunities.org/id/unitary-authority/warrington,FWB,Care Purchase - West,54080,Supported Accommodation,440975,04/08/2020,1900570530,3377.65,Catalyst Choices Community Interest,114235
WARRINGTON BOROUGH COUNCIL,http://opendatacommunities.org/id/unitary-authority/warrington,FWB,Care Purchase - West,54080,Supported Accommodation,440975,04/08/2020,1900570523,3377.65,Catalyst Choices Community Interest,114235
WARRINGTON BOROUGH COUNCIL,http://opendatacommunities.org/id/unitary-authority/warrington,FWB,Care Purchase - West,54080,Supported Accommodation,440975,04/08/2020,1900570515,3377.65,Catalyst Choices Community Interest,114235
WARRINGTON BOROUGH COUNCIL,http://opendatacommunities.org/id/unitary-authority/warrington,FWB,Care Purchase - West,54080,Supported Accommodation,440975,04/08/2020,1900570518,3204.85,Catalyst Choices Community Interest,114235
WARRINGTON BOROUGH COUNCIL,http://opendatacommunities.org/id/unitary-authority/warrington,FWB,Care Purchase - West,54080,Supported Accommodation,440975,04/08/2020,1900570536,3209.65,Catalyst Choices Community Interest,114235
WARRINGTON BOROUGH COUNCIL,http://opendatacommunities.org/id/unitary-authority/warrington,FWB,Care Purchase - West,54080,Supported Accommodation,440975,04/08/2020,1900570529,5053.3,Catalyst Choices Community Interest,114235
WARRINGTON BOROUGH COUNCIL,http://opendatacommunities.org/id/unitary-authority/warrington,FWB,Care Purchase - West,54080,Supported Accommodation,440975,04/08/2020,1900570528,3377.65,Catalyst Choices Community Interest,114235
WARRINGTON BOROUGH COUNCIL,http://opendatacommunities.org/id/unitary-authority/warrington,FWB,Care Purchase - West,54080,Supported Accommodation,440975,04/08/2020,1900570533,2831.65,Catalyst Choices Community Interest,114235
WARRINGTON BOROUGH COUNCIL,http://opendatacommunities.org/id/unitary-authority/warrington,FWB,Care Purchase - West,54080,Supported Accommodation,440975,04/08/2020,1900570514,3335.65,Catalyst Choices Community Interest,114235
WARRINGTON BOROUGH COUNCIL,http://opendatacommunities.org/id/unitary-authority/warrington,FWB,Care Purchase - West,54080,Supported Accommodation,440975,06/08/2020,1900571018,4410.6,Catalyst Choices Community Interest,114235
WARRINGTON BOROUGH COUNCIL,http://opendatacommunities.org/id/unitary-authority/warrington,FWB,Care Purchase - West,54080,Supported Accommodation,440975,06/08/2020,1900571015,3898.95,Catalyst Choices Community Interest,114235
WARRINGTON BOROUGH COUNCIL,http://opendatacommunities.org/id/unitary-authority/warrington,FWB,Care Purchase - West,54080,Supported Accommodation,440975,06/08/2020,1900571021,4646.8,Catalyst Choices Community Interest,114235
WARRINGTON BOROUGH COUNCIL,http://opendatacommunities.org/id/unitary-authority/warrington,FWB,Care Purchase - West,54080,Supported Accommodation,440975,06/08/2020,1900571016,4764.85,Catalyst Choices Community Interest,114235
WARRINGTON BOROUGH COUNCIL,http://opendatacommunities.org/id/unitary-authority/warrington,FWB,Care Purchase - West,54080,Supported Accommodation,440975,06/08/2020,1900571019,4646.8,Catalyst Choices Community Interest,114235
WARRINGTON BOROUGH COUNCIL,http://opendatacommunities.org/id/unitary-authority/warrington,FWB,Care Purchase - West,54080,Supported Accommodation,440975,06/08/2020,1900571014,3898.95,Catalyst Choices Community Interest,114235
WARRINGTON BOROUGH COUNCIL,http://opendatacommunities.org/id/unitary-authority/warrington,FWB,Care Purchase - West,54080,Supported Accommodation,440975,06/08/2020,1900571008,3977.65,Catalyst Choices Community Interest,114235
WARRINGTON BOROUGH COUNCIL,http://opendatacommunities.org/id/unitary-authority/warrington,FWB,Care Purchase - West,54080,Supported Accommodation,440975,06/08/2020,1900571009,4528.7,Catalyst Choices Community Interest,114235
WARRINGTON BOROUGH COUNCIL,http://opendatacommunities.org/id/unitary-authority/warrington,FWB,Care Purchase - West,54080,Supported Accommodation,440975,06/08/2020,1900571013,5001,Catalyst Choices Community Interest,114235
WARRINGTON BOROUGH COUNCIL,http://opendatacommunities.org/id/unitary-authority/warrington,FWB,Care Purchase - West,54080,Supported Accommodation,440975,06/08/2020,1900571020,4804.2,Catalyst Choices Community Interest,114235
WARRINGTON BOROUGH COUNCIL,http://opendatacommunities.org/id/unitary-authority/warrington,FWB,Care Purchase - West,54080,Supported Accommodation,440975,06/08/2020,1900571007,4607.4,Catalyst Choices Community Interest,114235
WARRINGTON BOROUGH COUNCIL,http://opendatacommunities.org/id/unitary-authority/warrington,FWB,Care Purchase - West,54080,Supported Accommodation,440975,06/08/2020,1900571010,4607.4,Catalyst Choices Community Interest,114235
WARRINGTON BOROUGH COUNCIL,http://opendatacommunities.org/id/unitary-authority/warrington,FWB,Care Purchase - West,54080,Supported Accommodation,440975,06/08/2020,1900571012,8149.8,Catalyst Choices Community Interest,114235
WARRINGTON BOROUGH COUNCIL,http://opendatacommunities.org/id/unitary-authority/warrington,FWB,Care Purchase - West,54080,Supported Accommodation,440975,06/08/2020,1900571017,6103.1,Catalyst Choices Community Interest,114235
WARRINGTON BOROUGH COUNCIL,http://opendatacommunities.org/id/unitary-authority/warrington,FWB,Care Purchase - East,54060,Supported Accommodation,440975,06/08/2020,1900571011,5237.2,Catalyst Choices Community Interest,114235
WARRINGTON BOROUGH COUNCIL,http://opendatacommunities.org/id/unitary-authority/warrington,FWB,Care Purchase - West,54080,Supported Accommodation,440975,06/08/2020,1900570995,4410.6,Catalyst Choices Community Interest,114235
WARRINGTON BOROUGH COUNCIL,http://opendatacommunities.org/id/unitary-authority/warrington,FWB,Care Purchase - West,54080,Supported Accommodation,440975,06/08/2020,1900570992,3898.95,Catalyst Choices Community Interest,114235
WARRINGTON BOROUGH COUNCIL,http://opendatacommunities.org/id/unitary-authority/warrington,FWB,Care Purchase - West,54080,Supported Accommodation,440975,06/08/2020,1900570998,4646.8,Catalyst Choices Community Interest,114235
WARRINGTON BOROUGH COUNCIL,http://opendatacommunities.org/id/unitary-authority/warrington,FWB,Care Purchase - West,54080,Supported Accommodation,440975,06/08/2020,1900570993,4764.85,Catalyst Choices Community Interest,114235
WARRINGTON BOROUGH COUNCIL,http://opendatacommunities.org/id/unitary-authority/warrington,FWB,Care Purchase - West,54080,Supported Accommodation,440975,06/08/2020,1900570996,4646.8,Catalyst Choices Community Interest,114235
WARRINGTON BOROUGH COUNCIL,http://opendatacommunities.org/id/unitary-authority/warrington,FWB,Care Purchase - West,54080,Supported Accommodation,440975,06/08/2020,1900570991,3898.95,Catalyst Choices Community Interest,114235
WARRINGTON BOROUGH COUNCIL,http://opendatacommunities.org/id/unitary-authority/warrington,FWB,Care Purchase - West,54080,Supported Accommodation,440975,06/08/2020,1900570985,3977.65,Catalyst Choices Community Interest,114235
WARRINGTON BOROUGH COUNCIL,http://opendatacommunities.org/id/unitary-authority/warrington,FWB,Care Purchase - West,54080,Supported Accommodation,440975,06/08/2020,1900570986,4528.7,Catalyst Choices Community Interest,114235
WARRINGTON BOROUGH COUNCIL,http://opendatacommunities.org/id/unitary-authority/warrington,FWB,Care Purchase - West,54080,Supported Accommodation,440975,06/08/2020,1900570997,4804.2,Catalyst Choices Community Interest,114235
WARRINGTON BOROUGH COUNCIL,http://opendatacommunities.org/id/unitary-authority/warrington,FWB,Care Purchase - West,54080,Supported Accommodation,440975,06/08/2020,1900570984,4607.4,Catalyst Choices Community Interest,114235
WARRINGTON BOROUGH COUNCIL,http://opendatacommunities.org/id/unitary-authority/warrington,FWB,Care Purchase - West,54080,Supported Accommodation,440975,06/08/2020,1900570987,4607.4,Catalyst Choices Community Interest,114235
WARRINGTON BOROUGH COUNCIL,http://opendatacommunities.org/id/unitary-authority/warrington,FWB,Care Purchase - West,54080,Supported Accommodation,440975,06/08/2020,1900570990,5001,Catalyst Choices Community Interest,114235
WARRINGTON BOROUGH COUNCIL,http://opendatacommunities.org/id/unitary-authority/warrington,FWB,Care Purchase - West,54080,Supported Accommodation,440975,06/08/2020,1900570989,8149.8,Catalyst Choices Community Interest,114235
WARRINGTON BOROUGH COUNCIL,http://opendatacommunities.org/id/unitary-authority/warrington,FWB,Care Purchase - West,54080,Supported Accommodation,440975,06/08/2020,1900570994,6103.1,Catalyst Choices Community Interest,114235
WARRINGTON BOROUGH COUNCIL,http://opendatacommunities.org/id/unitary-authority/warrington,FWB,Care Purchase - East,54060,Supported Accommodation,440975,06/08/2020,1900570988,5237.2,Catalyst Choices Community Interest,114235
WARRINGTON BOROUGH COUNCIL,http://opendatacommunities.org/id/unitary-authority/warrington,FWB,CWD Care Purchasing,32212,Direct Payments,552000,12/08/2020,1900573031,836,Catholic Blind Institute,112964
WARRINGTON BOROUGH COUNCIL,http://opendatacommunities.org/id/unitary-authority/warrington,FWB,Residential Placements,30102,CP-LongStayExternal,441150,07/08/2020,1900572336,16215.92,Cedar House School,111289
WARRINGTON BOROUGH COUNCIL,http://opendatacommunities.org/id/unitary-authority/warrington,RSC,Legal Services,11200,Consult.& Prof. Serv,440000,20/08/2020,1900575290,1950,Centre For Assessment Ltd,103443
WARRINGTON BOROUGH COUNCIL,http://opendatacommunities.org/id/unitary-authority/warrington,RSC,Accountancy and Financial Planning,10100,Equipment Purchase & Contract,400000,26/08/2020,1900536357,493501,Cheshire Fire Authority,102857
WARRINGTON BOROUGH COUNCIL,http://opendatacommunities.org/id/unitary-authority/warrington,RSC,Accountancy and Financial Planning,10100,Equipment Purchase & Contract,400000,28/08/2020,1900536323,493501,Cheshire Fire Authority,102857
WARRINGTON BOROUGH COUNCIL,http://opendatacommunities.org/id/unitary-authority/warrington,FWB,Director Adult Social Care,54000,Supplies & Services - Covid 19,499919,07/08/2020,1900571112,44966.61,Cls Care Services (belong) Ltd,104615
WARRINGTON BOROUGH COUNCIL,http://opendatacommunities.org/id/unitary-authority/warrington,ET0,Walton Estate,41430,Fees (Including Agents Fees),441450,14/08/2020,1900573377,900,Code and Create Ltd,116954
WARRINGTON BOROUGH COUNCIL,http://opendatacommunities.org/id/unitary-authority/warrington,FWB,Director Adult Social Care,54000,Supplies & Services - Covid 19,499919,07/08/2020,1900571110,1543.83,Community Care Matters Limited,102791
WARRINGTON BOROUGH COUNCIL,http://opendatacommunities.org/id/unitary-authority/warrington,FWB,Director Adult Social Care,54000,Supplies & Services - Covid 19,499919,07/08/2020,1900571145,2573.06,Community Care Matters Limited,102791
WARRINGTON BOROUGH COUNCIL,http://opendatacommunities.org/id/unitary-authority/warrington,FWB,Fostering Placements,30003,Fostering Accommodation,441050,14/08/2020,1900573411,2959.88,Compass Fostering North West Ltd,113301
WARRINGTON BOROUGH COUNCIL,http://opendatacommunities.org/id/unitary-authority/warrington,FWB,Fostering Placements,30003,Fostering Accommodation,441050,14/08/2020,1900573483,708.41,Compass Fostering North West Ltd,113301
WARRINGTON BOROUGH COUNCIL,http://opendatacommunities.org/id/unitary-authority/warrington,FWB,Fostering Placements,30003,Fostering Accommodation,441050,14/08/2020,1900573409,3276,Compass Fostering North West Ltd,113301
WARRINGTON BOROUGH COUNCIL,http://opendatacommunities.org/id/unitary-authority/warrington,FWB,Fostering Placements,30003,Fostering Accommodation,441050,14/08/2020,1900573444,4914,Compass Fostering North West Ltd,113301
WARRINGTON BOROUGH COUNCIL,http://opendatacommunities.org/id/unitary-authority/warrington,FWB,Fostering Placements,30003,Fostering Accommodation,441050,14/08/2020,1900573402,3112.2,Compass Fostering North West Ltd,113301
WARRINGTON BOROUGH COUNCIL,http://opendatacommunities.org/id/unitary-authority/warrington,FWB,Fostering Placements,30003,Fostering Accommodation,441050,14/08/2020,1900573463,3276,Compass Fostering North West Ltd,113301
WARRINGTON BOROUGH COUNCIL,http://opendatacommunities.org/id/unitary-authority/warrington,FWB,Fostering Placements,30003,Fostering Accommodation,441050,14/08/2020,1900573412,2811.88,Compass Fostering North West Ltd,113301
WARRINGTON BOROUGH COUNCIL,http://opendatacommunities.org/id/unitary-authority/warrington,FWB,Fostering Placements,30003,Fostering Accommodation,441050,14/08/2020,1900573428,2811.88,Compass Fostering North West Ltd,113301
WARRINGTON BOROUGH COUNCIL,http://opendatacommunities.org/id/unitary-authority/warrington,COR,Covid-19,61030,Covid-19 Small Business Grants (not NNDR),552599,31/07/2020,1900569332,10000,Concom Website Design Ltd,117915
WARRINGTON BOROUGH COUNCIL,http://opendatacommunities.org/id/unitary-authority/warrington,FWB,Residential Placements,30102,CP-LongStayExternal,441150,14/08/2020,1900573410,22000,Continuum Support Ltd,112065
WARRINGTON BOROUGH COUNCIL,http://opendatacommunities.org/id/unitary-authority/warrington,FWB,Residential Placements,30102,CP-LongStayExternal,441150,14/08/2020,1900573473,7416,Continuum Support Ltd,112065
WARRINGTON BOROUGH COUNCIL,http://opendatacommunities.org/id/unitary-authority/warrington,FWB,Care Purchase - South,54070,Supported Accommodation,440975,26/08/2020,1900575791,4763.92,Continuum Support Ltd,112065
WARRINGTON BOROUGH COUNCIL,http://opendatacommunities.org/id/unitary-authority/warrington,FWB,Care Purchase - Central,54050,CP-Domicil.External,440950,07/08/2020,1900572042,2716,Continuum Support Ltd,112065
WARRINGTON BOROUGH COUNCIL,http://opendatacommunities.org/id/unitary-authority/warrington,FWB,Care Purchase - East,54060,CP-Domicil.External,440950,07/08/2020,1900572041,10027.92,Continuum Support Ltd,112065
WARRINGTON BOROUGH COUNCIL,http://opendatacommunities.org/id/unitary-authority/warrington,FWB,Care Purchase - Central,54050,CP-Domicil.External,440950,26/08/2020,1900575790,2479.96,Continuum Support Ltd,112065
WARRINGTON BOROUGH COUNCIL,http://opendatacommunities.org/id/unitary-authority/warrington,FWB,Care Purchase - Central,54050,Supported Accommodation,440975,26/08/2020,1900575790,1499.96,Continuum Support Ltd,112065
WARRINGTON BOROUGH COUNCIL,http://opendatacommunities.org/id/unitary-authority/warrington,FWB,Care Purchase - South,54070,Supported Accommodation,440975,26/08/2020,1900575792,4763.92,Continuum Support Ltd,112065
WARRINGTON BOROUGH COUNCIL,http://opendatacommunities.org/id/unitary-authority/warrington,FWB,Care Purchase - Central,54050,CP-Domicil.External,440950,25/08/2020,1900575780,2716,Continuum Support Ltd,112065
WARRINGTON BOROUGH COUNCIL,http://opendatacommunities.org/id/unitary-authority/warrington,FWB,Care Purchase - East,54060,CP-Domicil.External,440950,25/08/2020,1900575781,10027.92,Continuum Support Ltd,112065
WARRINGTON BOROUGH COUNCIL,http://opendatacommunities.org/id/unitary-authority/warrington,FWB,Care Purchase - Central,54050,CP-Domicil.External,440950,26/08/2020,1900575789,2479.96,Continuum Support Ltd,112065
WARRINGTON BOROUGH COUNCIL,http://opendatacommunities.org/id/unitary-authority/warrington,FWB,Care Purchase - Central,54050,Supported Accommodation,440975,26/08/2020,1900575789,1499.96,Continuum Support Ltd,112065
WARRINGTON BOROUGH COUNCIL,http://opendatacommunities.org/id/unitary-authority/warrington,FWB,Care Purchase - Central,54050,CP-Domicil.External,440950,19/08/2020,1900575087,2716,Continuum Support Ltd,112065
WARRINGTON BOROUGH COUNCIL,http://opendatacommunities.org/id/unitary-authority/warrington,HOL,Single Billing Holding Account,91130,Gas,210050,10/08/2020,1900572392,8677.41,Corona Energy Retail 4 Limited,115857
WARRINGTON BOROUGH COUNCIL,http://opendatacommunities.org/id/unitary-authority/warrington,HOL,Single Billing Holding Account,91130,Gas,210050,10/08/2020,1900572392,4887.36,Corona Energy Retail 4 Limited,115857
WARRINGTON BOROUGH COUNCIL,http://opendatacommunities.org/id/unitary-authority/warrington,FWB,Care Purchase - Central,54050,Supporting People - External,441250,21/08/2020,1900575647,7176.2,Creative Support Ltd,100902
WARRINGTON BOROUGH COUNCIL,http://opendatacommunities.org/id/unitary-authority/warrington,FWB,Care Purchase - Central,54050,Supporting People - External,441250,21/08/2020,1900575652,4549.44,Creative Support Ltd,100902
WARRINGTON BOROUGH COUNCIL,http://opendatacommunities.org/id/unitary-authority/warrington,FWB,Care Purchase - East,54060,CP-Domicil.External,440950,21/08/2020,1900575640,592.4,Creative Support Ltd,100902
WARRINGTON BOROUGH COUNCIL,http://opendatacommunities.org/id/unitary-authority/warrington,FWB,Care Purchase - East,54060,Supporting People - External,441250,21/08/2020,1900575655,533.16,Creative Support Ltd,100902
WARRINGTON BOROUGH COUNCIL,http://opendatacommunities.org/id/unitary-authority/warrington,FWB,Care Purchase - Central,54050,CP-Domicil.External,440950,21/08/2020,1900575628,859.08,Creative Support Ltd,100902
WARRINGTON BOROUGH COUNCIL,http://opendatacommunities.org/id/unitary-authority/warrington,FWB,Care Purchase - Central,54050,Supported Accommodation,440975,21/08/2020,1900575631,592.4,Creative Support Ltd,100902
WARRINGTON BOROUGH COUNCIL,http://opendatacommunities.org/id/unitary-authority/warrington,FWB,Director Adult Social Care,54000,Supplies & Services - Covid 19,499919,07/08/2020,1900571139,24634.44,Croftwood Care ltd - Holcroft Grang,115736
WARRINGTON BOROUGH COUNCIL,http://opendatacommunities.org/id/unitary-authority/warrington,FWB,Director Adult Social Care,54000,Supplies & Services - Covid 19,499919,07/08/2020,1900571178,25863.67,Croftwood Care Ltd - Westy Hall,115737
WARRINGTON BOROUGH COUNCIL,http://opendatacommunities.org/id/unitary-authority/warrington,FWB,Director Adult Social Care,54000,Supplies & Services - Covid 19,499919,07/08/2020,1900571190,1857.6,Croftwood Care Ltd - Westy Hall,115737
WARRINGTON BOROUGH COUNCIL,http://opendatacommunities.org/id/unitary-authority/warrington,FWB,Residential Placements,30102,CP-LongStayExternal,441150,14/08/2020,1900573478,15899.2,Crystal Care Solutions Ltd,115360
WARRINGTON BOROUGH COUNCIL,http://opendatacommunities.org/id/unitary-authority/warrington,COR,MRP,62060,Consult.& Prof. Serv,440000,10/08/2020,1900572367,500,DAC Beachcroft LLP,116768
WARRINGTON BOROUGH COUNCIL,http://opendatacommunities.org/id/unitary-authority/warrington,COR,Debt Management Expenses,62080,Consult.& Prof. Serv,440000,10/08/2020,1900572376,12066,DAC Beachcroft LLP,116768
WARRINGTON BOROUGH COUNCIL,http://opendatacommunities.org/id/unitary-authority/warrington,FWB,Care Purchase - South,54070,CP-Domicil.External,440950,04/08/2020,1900570368,519.68,Dh Homecare,101961
WARRINGTON BOROUGH COUNCIL,http://opendatacommunities.org/id/unitary-authority/warrington,FWB,Care Purchase - South,54070,CP-Domicil.External,440950,04/08/2020,1900570377,519.68,Dh Homecare,101961
WARRINGTON BOROUGH COUNCIL,http://opendatacommunities.org/id/unitary-authority/warrington,FWB,Care Purchase - South,54070,CP-Domicil.External,440950,04/08/2020,1900570473,577.5,Dh Homecare,101961
WARRINGTON BOROUGH COUNCIL,http://opendatacommunities.org/id/unitary-authority/warrington,FWB,Care Purchase - South,54070,CP-Domicil.External,440950,04/08/2020,1900570657,519.68,Dh Homecare,101961
WARRINGTON BOROUGH COUNCIL,http://opendatacommunities.org/id/unitary-authority/warrington,FWB,Care Purchase - South,54070,CP-Domicil.External,440950,04/08/2020,1900570665,519.68,Dh Homecare,101961
WARRINGTON BOROUGH COUNCIL,http://opendatacommunities.org/id/unitary-authority/warrington,FWB,Care Purchase - South,54070,CP-Domicil.External,440950,04/08/2020,1900570732,577.5,Dh Homecare,101961
WARRINGTON BOROUGH COUNCIL,http://opendatacommunities.org/id/unitary-authority/warrington,FWB,Care Purchase - South,54070,CP-Domicil.External,440950,11/08/2020,1900572978,519.68,Dh Homecare,101961
WARRINGTON BOROUGH COUNCIL,http://opendatacommunities.org/id/unitary-authority/warrington,FWB,Care Purchase - South,54070,CP-Domicil.External,440950,11/08/2020,1900572981,519.68,Dh Homecare,101961
WARRINGTON BOROUGH COUNCIL,http://opendatacommunities.org/id/unitary-authority/warrington,FWB,Care Purchase - South,54070,CP-Domicil.External,440950,11/08/2020,1900573001,577.5,Dh Homecare,101961
WARRINGTON BOROUGH COUNCIL,http://opendatacommunities.org/id/unitary-authority/warrington,FWB,Care Purchase - South,54070,CP-Domicil.External,440950,20/08/2020,1900575401,519.68,Dh Homecare,101961
WARRINGTON BOROUGH COUNCIL,http://opendatacommunities.org/id/unitary-authority/warrington,FWB,Care Purchase - South,54070,CP-Domicil.External,440950,20/08/2020,1900575413,519.68,Dh Homecare,101961
WARRINGTON BOROUGH COUNCIL,http://opendatacommunities.org/id/unitary-authority/warrington,FWB,Care Purchase - South,54070,CP-Domicil.External,440950,20/08/2020,1900575501,577.5,Dh Homecare,101961
WARRINGTON BOROUGH COUNCIL,http://opendatacommunities.org/id/unitary-authority/warrington,FWB,Care Purchase - South,54070,CP-Domicil.External,440950,27/08/2020,1900576285,519.68,Dh Homecare,101961
WARRINGTON BOROUGH COUNCIL,http://opendatacommunities.org/id/unitary-authority/warrington,FWB,Care Purchase - South,54070,CP-Domicil.External,440950,27/08/2020,1900576306,519.68,Dh Homecare,101961
WARRINGTON BOROUGH COUNCIL,http://opendatacommunities.org/id/unitary-authority/warrington,FWB,Care Purchase - South,54070,CP-Domicil.External,440950,27/08/2020,1900576444,577.5,Dh Homecare,101961
WARRINGTON BOROUGH COUNCIL,http://opendatacommunities.org/id/unitary-authority/warrington,FWB,Care Purchase - West,54080,Supported Accommodation,440975,26/08/2020,1900576151,7885.24,Dimensions,116164
WARRINGTON BOROUGH COUNCIL,http://opendatacommunities.org/id/unitary-authority/warrington,FWB,Care Purchase - West,54080,Supporting People - External,441250,26/08/2020,1900576151,765.75,Dimensions,116164
WARRINGTON BOROUGH COUNCIL,http://opendatacommunities.org/id/unitary-authority/warrington,FWB,Care Purchase - West,54080,Supported Accommodation,440975,26/08/2020,1900576158,14078.23,Dimensions,116164
WARRINGTON BOROUGH COUNCIL,http://opendatacommunities.org/id/unitary-authority/warrington,FWB,Care Purchase - East,54060,Supported Accommodation,440975,26/08/2020,1900576165,16432.38,Dimensions,116164
WARRINGTON BOROUGH COUNCIL,http://opendatacommunities.org/id/unitary-authority/warrington,FWB,Care Purchase - East,54060,Supporting People - External,441250,26/08/2020,1900576159,13587.94,Dimensions,116164
WARRINGTON BOROUGH COUNCIL,http://opendatacommunities.org/id/unitary-authority/warrington,FWB,Care Purchase - South,54070,Supported Accommodation,440975,26/08/2020,1900576144,9250.08,Dimensions,116164
WARRINGTON BOROUGH COUNCIL,http://opendatacommunities.org/id/unitary-authority/warrington,FWB,Care Purchase - East,54060,Supported Accommodation,440975,26/08/2020,1900576148,600,Dimensions,116164
WARRINGTON BOROUGH COUNCIL,http://opendatacommunities.org/id/unitary-authority/warrington,FWB,Care Purchase - West,54080,Supported Accommodation,440975,26/08/2020,1900576145,540,Dimensions,116164
WARRINGTON BOROUGH COUNCIL,http://opendatacommunities.org/id/unitary-authority/warrington,FWB,Care Purchase - West,54080,Supported Accommodation,440975,26/08/2020,1900576155,5400,Dimensions,116164
WARRINGTON BOROUGH COUNCIL,http://opendatacommunities.org/id/unitary-authority/warrington,FWB,Care Purchase - South,54070,Supported Accommodation,440975,26/08/2020,1900576139,7990.08,Dimensions,116164
WARRINGTON BOROUGH COUNCIL,http://opendatacommunities.org/id/unitary-authority/warrington,FWB,Care Purchase - South,54070,Supported Accommodation,440975,26/08/2020,1900576150,690,Dimensions,116164
WARRINGTON BOROUGH COUNCIL,http://opendatacommunities.org/id/unitary-authority/warrington,FWB,Care Purchase - West,54080,Supported Accommodation,440975,26/08/2020,1900576157,13029.72,Dimensions,116164
WARRINGTON BOROUGH COUNCIL,http://opendatacommunities.org/id/unitary-authority/warrington,FWB,Care Purchase - West,54080,Supported Accommodation,440975,26/08/2020,1900576166,540,Dimensions,116164
WARRINGTON BOROUGH COUNCIL,http://opendatacommunities.org/id/unitary-authority/warrington,FWB,Care Purchase - West,54080,Supported Accommodation,440975,26/08/2020,1900576160,1440,Dimensions,116164
WARRINGTON BOROUGH COUNCIL,http://opendatacommunities.org/id/unitary-authority/warrington,FWB,Care Purchase - Central,54050,Supported Accommodation,440975,26/08/2020,1900576143,2100,Dimensions,116164
WARRINGTON BOROUGH COUNCIL,http://opendatacommunities.org/id/unitary-authority/warrington,FWB,Care Purchase - Central,54050,Supported Accommodation,440975,26/08/2020,1900576140,3785.76,Dimensions,116164
WARRINGTON BOROUGH COUNCIL,http://opendatacommunities.org/id/unitary-authority/warrington,FWB,Care Purchase - East,54060,Supported Accommodation,440975,26/08/2020,1900576154,960,Dimensions,116164
WARRINGTON BOROUGH COUNCIL,http://opendatacommunities.org/id/unitary-authority/warrington,FWB,Care Purchase - East,54060,Supported Accommodation,440975,26/08/2020,1900576169,780,Dimensions,116164
WARRINGTON BOROUGH COUNCIL,http://opendatacommunities.org/id/unitary-authority/warrington,FWB,Care Purchase - West,54080,Supported Accommodation,440975,26/08/2020,1900576142,1440,Dimensions,116164
WARRINGTON BOROUGH COUNCIL,http://opendatacommunities.org/id/unitary-authority/warrington,FWB,Care Purchase - South,54070,Supported Accommodation,440975,26/08/2020,1900576141,3881.2,Dimensions,116164
WARRINGTON BOROUGH COUNCIL,http://opendatacommunities.org/id/unitary-authority/warrington,RSC,Recruitment & Advertising,52123,CRB Checks,190050,07/08/2020,1900571120,7263,Disclosure & Barring Service,440085
WARRINGTON BOROUGH COUNCIL,http://opendatacommunities.org/id/unitary-authority/warrington,RSC,Recruitment & Advertising,52123,CRB Checks,190050,21/08/2020,1900575566,7023,Disclosure & Barring Service,440085
WARRINGTON BOROUGH COUNCIL,http://opendatacommunities.org/id/unitary-authority/warrington,FWB,Residential Placements,30102,CP-LongStayExternal,441150,14/08/2020,1900573405,25604,Dove Adolescent Services Ltd,117290
WARRINGTON BOROUGH COUNCIL,http://opendatacommunities.org/id/unitary-authority/warrington,RSC,Coroners Service,11100,Post Mortem Fees-Rep,440250,21/08/2020,1900575594,3667.2,Dr Cheng Li,107950
WARRINGTON BOROUGH COUNCIL,http://opendatacommunities.org/id/unitary-authority/warrington,RSC,Coroners Service,11100,Post Mortem Fees-Rep,440250,21/08/2020,1900575592,3644.1,Dr D Butterworth,100765
WARRINGTON BOROUGH COUNCIL,http://opendatacommunities.org/id/unitary-authority/warrington,RSC,Coroners Service,11100,Post Mortem Fees-Rep,440250,10/08/2020,1900572378,595.9,Dr J E Medcalf,112248
WARRINGTON BOROUGH COUNCIL,http://opendatacommunities.org/id/unitary-authority/warrington,RSC,Coroners Service,11100,Post Mortem Fees-Rep,440250,10/08/2020,1900572379,556.9,Dr J E Medcalf,112248
WARRINGTON BOROUGH COUNCIL,http://opendatacommunities.org/id/unitary-authority/warrington,RSC,Coroners Service,11100,Post Mortem Fees-Rep,440250,24/08/2020,1900575656,2996.5,Dr Jackie Elder,101240
WARRINGTON BOROUGH COUNCIL,http://opendatacommunities.org/id/unitary-authority/warrington,RSC,Coroners Service,11100,Post Mortem Fees-Rep,440250,21/08/2020,1900575595,2117.7,Dr Jackie Elder,101240
WARRINGTON BOROUGH COUNCIL,http://opendatacommunities.org/id/unitary-authority/warrington,RSC,Coroners Service,11100,Post Mortem Fees-Rep,440250,10/08/2020,1900572380,874.1,Dr Natalie Meara,101727
WARRINGTON BOROUGH COUNCIL,http://opendatacommunities.org/id/unitary-authority/warrington,RSC,Coroners Service,11100,Post Mortem Fees-Rep,440250,24/08/2020,1900575657,3707.6,Dr S A Hales,100988
WARRINGTON BOROUGH COUNCIL,http://opendatacommunities.org/id/unitary-authority/warrington,FWB,Residential Placements,30102,Fostering Accommodation,441050,07/08/2020,1900572355,23585.71,Dudley Lodge,117666
WARRINGTON BOROUGH COUNCIL,http://opendatacommunities.org/id/unitary-authority/warrington,FWB,Care Purchase - Central,54050,CP-Domicil.External,440950,04/08/2020,1900570759,2000,East Cheshire Housing Consortium,110170
WARRINGTON BOROUGH COUNCIL,http://opendatacommunities.org/id/unitary-authority/warrington,FWB,Care Purchase - Central,54050,Supported Accommodation,440975,04/08/2020,1900570760,4000,East Cheshire Housing Consortium,110170
WARRINGTON BOROUGH COUNCIL,http://opendatacommunities.org/id/unitary-authority/warrington,FWB,Care Purchase - East,54060,Supported Accommodation,440975,04/08/2020,1900570758,711.36,East Cheshire Housing Consortium,110170
WARRINGTON BOROUGH COUNCIL,http://opendatacommunities.org/id/unitary-authority/warrington,FWB,Care Purchase - Central,54050,Supported Accommodation,440975,04/08/2020,1900570761,2000,East Cheshire Housing Consortium,110170
WARRINGTON BOROUGH COUNCIL,http://opendatacommunities.org/id/unitary-authority/warrington,FWB,Care Purchase - Central,54050,CP-Domicil.External,440950,24/08/2020,1900575708,2000,East Cheshire Housing Consortium,110170
WARRINGTON BOROUGH COUNCIL,http://opendatacommunities.org/id/unitary-authority/warrington,FWB,Care Purchase - Central,54050,Supported Accommodation,440975,24/08/2020,1900575706,4000,East Cheshire Housing Consortium,110170
WARRINGTON BOROUGH COUNCIL,http://opendatacommunities.org/id/unitary-authority/warrington,FWB,Care Purchase - East,54060,Supported Accommodation,440975,24/08/2020,1900575707,711.36,East Cheshire Housing Consortium,110170
WARRINGTON BOROUGH COUNCIL,http://opendatacommunities.org/id/unitary-authority/warrington,FWB,Care Purchase - Central,54050,Supported Accommodation,440975,24/08/2020,1900575709,2000,East Cheshire Housing Consortium,110170
WARRINGTON BOROUGH COUNCIL,http://opendatacommunities.org/id/unitary-authority/warrington,RSC,Coroners Service,11100,Hire Of Mortuaries,220200,10/08/2020,1900572363,1949,East Cheshire Nhs Trust,440130
WARRINGTON BOROUGH COUNCIL,http://opendatacommunities.org/id/unitary-authority/warrington,FWB,Residential Placements,30102,CP-LongStayExternal,441150,14/08/2020,1900573459,12800.12,Eastfield Group,114936
WARRINGTON BOROUGH COUNCIL,http://opendatacommunities.org/id/unitary-authority/warrington,HOL,Single Billing Holding Account,91130,ICT Comms - Line Rental,450200,07/08/2020,1900571123,15225.18,EE Airtime,104996
WARRINGTON BOROUGH COUNCIL,http://opendatacommunities.org/id/unitary-authority/warrington,COR,Covid-19,61030,Covid-19 Small Business Grants (not NNDR),552599,21/08/2020,1900575616,10000,Elite Services (NW) Ltd T/A Pink Pa,117933
WARRINGTON BOROUGH COUNCIL,http://opendatacommunities.org/id/unitary-authority/warrington,FWB,Fostering Placements,30003,Fostering Accommodation,441050,14/08/2020,1900573454,2513,Excel Fostering Ltd,108752
WARRINGTON BOROUGH COUNCIL,http://opendatacommunities.org/id/unitary-authority/warrington,FWB,Fostering Placements,30003,Fostering Accommodation,441050,14/08/2020,1900573453,5960,Excel Fostering Ltd,108752
WARRINGTON BOROUGH COUNCIL,http://opendatacommunities.org/id/unitary-authority/warrington,FWB,Fostering Placements,30003,Fostering Accommodation,441050,14/08/2020,1900573442,2789,Excel Fostering Ltd,108752
WARRINGTON BOROUGH COUNCIL,http://opendatacommunities.org/id/unitary-authority/warrington,FWB,Fostering Placements,30003,Fostering Accommodation,441050,14/08/2020,1900573418,3175.2,Family Care Fostering Ltd,108419
WARRINGTON BOROUGH COUNCIL,http://opendatacommunities.org/id/unitary-authority/warrington,FWB,Fostering Placements,30003,Fostering Accommodation,441050,14/08/2020,1900573481,3280,First Affinity Fostering Service,114585
WARRINGTON BOROUGH COUNCIL,http://opendatacommunities.org/id/unitary-authority/warrington,FWB,Fostering Placements,30003,Fostering Accommodation,441050,14/08/2020,1900573408,1249.29,First Affinity Fostering Service,114585
WARRINGTON BOROUGH COUNCIL,http://opendatacommunities.org/id/unitary-authority/warrington,FWB,Fostering Placements,30003,Fostering Accommodation,441050,14/08/2020,1900573479,527.14,First Affinity Fostering Service,114585
WARRINGTON BOROUGH COUNCIL,http://opendatacommunities.org/id/unitary-authority/warrington,FWB,Care Purchase - East,54060,CP-Domicil.External,440950,04/08/2020,1900570390,693,Focus on Care,108343
WARRINGTON BOROUGH COUNCIL,http://opendatacommunities.org/id/unitary-authority/warrington,FWB,Care Purchase - West,54080,CP-Domicil.External,440950,04/08/2020,1900570385,693,Focus on Care,108343
WARRINGTON BOROUGH COUNCIL,http://opendatacommunities.org/id/unitary-authority/warrington,FWB,Care Purchase - West,54080,CP-Domicil.External,440950,04/08/2020,1900570382,519.82,Focus on Care,108343
WARRINGTON BOROUGH COUNCIL,http://opendatacommunities.org/id/unitary-authority/warrington,FWB,Care Purchase - East,54060,CP-Domicil.External,440950,07/08/2020,1900572178,693,Focus on Care,108343
WARRINGTON BOROUGH COUNCIL,http://opendatacommunities.org/id/unitary-authority/warrington,FWB,Care Purchase - West,54080,CP-Domicil.External,440950,07/08/2020,1900572166,693,Focus on Care,108343
WARRINGTON BOROUGH COUNCIL,http://opendatacommunities.org/id/unitary-authority/warrington,FWB,Care Purchase - West,54080,CP-Domicil.External,440950,07/08/2020,1900572165,519.82,Focus on Care,108343
WARRINGTON BOROUGH COUNCIL,http://opendatacommunities.org/id/unitary-authority/warrington,FWB,Care Purchase - East,54060,CP-Domicil.External,440950,14/08/2020,1900573523,693,Focus on Care,108343
WARRINGTON BOROUGH COUNCIL,http://opendatacommunities.org/id/unitary-authority/warrington,FWB,Care Purchase - West,54080,CP-Domicil.External,440950,14/08/2020,1900573521,693,Focus on Care,108343
WARRINGTON BOROUGH COUNCIL,http://opendatacommunities.org/id/unitary-authority/warrington,FWB,Care Purchase - West,54080,CP-Domicil.External,440950,14/08/2020,1900573520,519.82,Focus on Care,108343
